Workbook

Sheet Results (hidden)
C1: GSP Group Name
A2: Regime | B2: Period | C2: Eastern | D2: East Midlands | E2: London | F2: Merseyside & North Wales | G2: Midlands | H2: Northern | I2: North Western | J2: Southern | K2: South Eastern | L2: South Wales | M2: South Western | N2: Yorkshire | O2: South Scotland | P2: North Scotland | Q2: After Sunset | R2: Before Sunrise | S2: Lux On | T2: Lux Off | U2: Intermediate Off | V2: Intermediate On | W2: Switch On | X2: Switch Off | Y2: Switch Class | Z2: Category | AA2: Status | AB2: Default Switch Regime | AC2: Effective From Date | AD2: Effective To Date
Y3: V | Z3: B | AA3: P
Y4: V | Z4: B | AA4: P
C5: =VLOOKUP(#REF!,lookupPECU,4,FALSE) ->  | D5: =VLOOKUP(#REF!,lookupPECU,5,FALSE) ->  | E5: =VLOOKUP(#REF!,lookupPECU,6,FALSE) ->  | F5: =VLOOKUP(#REF!,lookupPECU,7,FALSE) ->  | G5: =VLOOKUP(#REF!,lookupPECU,8,FALSE) ->  | H5: =VLOOKUP(#REF!,lookupPECU,9,FALSE) ->  | I5: =VLOOKUP(#REF!,lookupPECU,10,FALSE) ->  | J5: =VLOOKUP(#REF!,lookupPECU,11,FALSE) ->  | K5: =VLOOKUP(#REF!,lookupPECU,12,FALSE) ->  | L5: =VLOOKUP(#REF!,lookupPECU,13,FALSE) ->  | M5: =VLOOKUP(#REF!,lookupPECU,14,FALSE) ->  | N5: =VLOOKUP(#REF!,lookupPECU,15,FALSE) ->  | O5: =VLOOKUP(#REF!,lookupPECU,16,FALSE) ->  | P5: =VLOOKUP(#REF!,lookupPECU,17,FALSE) ->  | Y5: P | Z5: B | AA5: P

Sheet 800 Regimes (hidden)
B1: Regime | C1: Period | D1: Eastern | E1: East Midlands | F1: London | G1: Merseyside & North Wales | H1: Midlands | I1: Northern | J1: North Western | K1: Southern | L1: South Eastern | M1: South Wales | N1: South Western | O1: Yorkshire | P1: South Scotland | Q1: North Scotland | R1: After Sunset | S1: Before Sunrise | T1: Lux On | U1: Lux Off | V1: Intermediate Off | W1: Intermediate On | X1: Switch On | Y1: Switch Off | Z1: Switch Class | AA1: Category | AB1: Status | AC1: Default Switch Regime | AD1: Effective From Date
A2: 20/20 | B2: 806 | C2: Electronic PEC 20/20 | D2: 4092 | E2: 4089 | F2: 4094 | G2: 4088 | H2: 4091 | I2: 4082 | J2: 4087 | K2: 4095 | L2: 4095 | M2: 4093 | N2: 4096 | O2: 4086 | P2: 4078 | Q2: 4071 | T2: 20 | U2: 20 | Z2: P | AA2: B | AB2: P | AC2: 205 | AD2: 2011-04-05
A3: 35/35 | B3: 807 | C3: Electronic PEC 35/35 | D3: 4119 | E3: 4117 | F3: 4121 | G3: 4115 | H3: 4118 | I3: 4109 | J3: 4115 | K3: 4122 | L3: 4122 | M3: 4120 | N3: 4124 | O3: 4113 | P3: 4106 | Q3: 4098 | T3: 35 | U3: 35 | Z3: P | AA3: B | AB3: P | AC3: 205 | AD3: 2011-04-05
A4: 35/18 | B4: 808 | C4: Electronic PEC 35/18 | D4: 4103 | E4: 4101 | F4: 4106 | G4: 4100 | H4: 4103 | I4: 4094 | J4: 4099 | K4: 4107 | L4: 4107 | M4: 4105 | N4: 4108 | O4: 4098 | P4: 4090 | Q4: 4083 | T4: 35 | U4: 18 | Z4: P | AA4: B | AB4: P | AC4: 205 | AD4: 2011-04-05
A5: 40/60 | B5: 809 | C5: Electronic PEC 40/60 | D5: 4146 | E5: 4144 | F5: 4149 | G5: 4143 | H5: 4145 | I5: 4137 | J5: 4142 | K5: 4150 | L5: 4150 | M5: 4148 | N5: 4151 | O5: 4141 | P5: 4133 | Q5: 4126 | T5: 40 | U5: 60 | Z5: P | AA5: B | AB5: P | AC5: 206 | AD5: 2011-04-05
A6: 40/20 | B6: 810 | C6: Electronic PEC 40/20 | D6: 4110 | E6: 4107 | F6: 4112 | G6: 4106 | H6: 4109 | I6: 4100 | J6: 4106 | K6: 4113 | L6: 4113 | M6: 4111 | N6: 4114 | O6: 4104 | P6: 4097 | Q6: 4089 | T6: 40 | U6: 20 | Z6: P | AA6: B | AB6: P | AC6: 205 | AD6: 2011-04-05
A7: 55/28 | B7: 811 | C7: Electronic PEC 55/28 | D7: 4131 | E7: 4128 | F7: 4133 | G7: 4127 | H7: 4130 | I7: 4121 | J7: 4127 | K7: 4134 | L7: 4134 | M7: 4132 | N7: 4135 | O7: 4125 | P7: 4118 | Q7: 4110 | T7: 55 | U7: 28 | Z7: P | AA7: B | AB7: P | AC7: 206 | AD7: 2011-04-05
A8: 55/55 | B8: 812 | C8: Electronic PEC 55/55 | D8: 4155 | E8: 4153 | F8: 4158 | G8: 4152 | H8: 4155 | I8: 4146 | J8: 4151 | K8: 4159 | L8: 4159 | M8: 4157 | N8: 4160 | O8: 4150 | P8: 4142 | Q8: 4135 | T8: 55 | U8: 55 | Z8: P | AA8: B | AB8: P | AC8: 206 | AD8: 2011-04-05
A9: 55/83 | B9: 813 | C9: Electronic PEC 55/83 | D9: 4181 | E9: 4179 | F9: 4183 | G9: 4177 | H9: 4180 | I9: 4171 | J9: 4177 | K9: 4184 | L9: 4184 | M9: 4182 | N9: 4186 | O9: 4175 | P9: 4168 | Q9: 4160 | T9: 55 | U9: 83 | Z9: P | AA9: B | AB9: P | AC9: 208 | AD9: 2011-04-05
A10: 70/35 | B10: 821 | C10: Electronic PEC 70/35 | D10: 4151 | E10: 4149 | F10: 4153 | G10: 4147 | H10: 4150 | I10: 4141 | J10: 4147 | K10: 4154 | L10: 4154 | M10: 4152 | N10: 4156 | O10: 4145 | P10: 4138 | Q10: 4130 | T10: 70 | U10: 35 | Z10: P | AA10: B | AB10: P | AC10: 206 | AD10: 2011-04-05
A11: 70/70 | B11: 822 | C11: Electronic PEC 70/70 | D11: 4183 | E11: 4180 | F11: 4185 | G11: 4179 | H11: 4182 | I11: 4173 | J11: 4179 | K11: 4186 | L11: 4186 | M11: 4184 | N11: 4187 | O11: 4177 | P11: 4170 | Q11: 4162 | T11: 70 | U11: 70 | Z11: P | AA11: B | AB11: P | AC11: 208 | AD11: 2011-04-05
A12: 70/135 | B12: 823 | C12: Electronic PEC 70/135 | D12: 4242 | E12: 4240 | F12: 4244 | G12: 4238 | H12: 4241 | I12: 4233 | J12: 4238 | K12: 4245 | L12: 4246 | M12: 4243 | N12: 4247 | O12: 4236 | P12: 4229 | Q12: 4221 | T12: 70 | U12: 135 | Z12: P | AA12: B | AB12: P | AC12: 207 | AD12: 2011-04-05
A13: 70/140 | B13: 824 | C13: Electronic PEC 70/140 | D13: 4247 | E13: 4244 | F13: 4249 | G13: 4243 | H13: 4246 | I13: 4237 | J13: 4243 | K13: 4250 | L13: 4250 | M13: 4248 | N13: 4251 | O13: 4241 | P13: 4234 | Q13: 4226 | T13: 70 | U13: 140 | Z13: P | AA13: B | AB13: P | AC13: 207 | AD13: 2011-04-05
A14: 70/50 | B14: 825 | C14: Electronic PEC 70/50 | D14: 4165 | E14: 4162 | F14: 4167 | G14: 4161 | H14: 4164 | I14: 4155 | J14: 4160 | K14: 4168 | L14: 4168 | M14: 4166 | N14: 4169 | O14: 4159 | P14: 4151 | Q14: 4144 | T14: 70 | U14: 50 | Z14: P | AA14: B | AB14: P | AC14: 208 | AD14: 2011-04-05
A15: 70/55 | B15: 826 | C15: Electronic PEC 70/55 | D15: 4169 | E15: 4167 | F15: 4171 | G15: 4165 | H15: 4168 | I15: 4160 | J15: 4165 | K15: 4172 | L15: 4173 | M15: 4170 | N15: 4174 | O15: 4163 | P15: 4156 | Q15: 4148 | T15: 70 | U15: 55 | Z15: P | AA15: B | AB15: P | AC15: 208 | AD15: 2011-04-05
A16: 80/20 | B16: 835 | C16: Electronic PEC 80/20 | D16: 4146.363195 | E16: 4143.996528 | F16: 4148.663195 | G16: 4142.663195 | H16: 4145.413195 | I16: 4136.713195 | J16: 4142.163195 | K16: 4149.563195 | L16: 4149.796528 | M16: 4147.563195 | N16: 4150.996528 | O16: 4140.579862 | P16: 4133.129862 | Q16: 4125.646528 | T16: 80 | U16: 20 | Z16: P | AA16: B | AB16: P | AD16: 2017-05-17
A17: 100/50 | B17: 831 | C17: Electronic PEC 100/50 | D17: 4192 | E17: 4190 | F17: 4194 | G17: 4188 | H17: 4191 | I17: 4182 | J17: 4188 | K17: 4195 | L17: 4195 | M17: 4193 | N17: 4197 | O17: 4186 | P17: 4179 | Q17: 4171 | T17: 100 | U17: 50 | Z17: P | AA17: B | AB17: P | AC17: 208 | AD17: 2011-04-05
A18: 100/100 | B18: 832 | C18: Electronic PEC 100/100 | D18: 4238 | E18: 4235 | F18: 4240 | G18: 4234 | H18: 4237 | I18: 4228 | J18: 4233 | K18: 4241 | L18: 4241 | M18: 4239 | N18: 4242 | O18: 4232 | P18: 4224 | Q18: 4217 | T18: 100 | U18: 100 | Z18: P | AA18: B | AB18: P | AC18: 207 | AD18: 2011-04-05
A19: 100/150 | B19: 833 | C19: Electronic PEC 100/150 | D19: 4283 | E19: 4281 | F19: 4286 | G19: 4280 | H19: 4282 | I19: 4274 | J19: 4279 | K19: 4286 | L19: 4287 | M19: 4284 | N19: 4288 | O19: 4277 | P19: 4270 | Q19: 4263 | T19: 100 | U19: 150 | Z19: P | AA19: B | AB19: P | AC19: 210 | AD19: 2011-04-05
A20: 100/200 | B20: 834 | C20: Electronic PEC 100/200 | D20: 4291 | E20: 4288 | F20: 4293 | G20: 4287 | H20: 4290 | I20: 4281 | J20: 4287 | K20: 4294 | L20: 4294 | M20: 4292 | N20: 4295 | O20: 4285 | P20: 4278 | Q20: 4270 | T20: 100 | U20: 200 | Z20: P | AA20: B | AB20: P | AC20: 210 | AD20: 2011-04-05
A21: 120/120 | B21: n/a | C21: Electronic PEC 120/120 | D21: 4274.113195 | E21: 4271.746528 | F21: 4276.413195 | G21: 4270.413195 | H21: 4273.163195 | I21: 4264.463195 | J21: 4269.913195 | K21: 4277.313195 | L21: 4277.546528 | M21: 4275.313195 | N21: 4278.746528 | O21: 4268.329862 | P21: 4260.879862 | Q21: 4253.396528
A22: Sunset/sunrise | B22: 210 | C22: Sunset to Sunrise | D22: 4282.683333 | E22: 4280.316667 | F22: 4284.933333 | G22: 4278.983333 | H22: 4281.7 | I22: 4273.05 | J22: 4278.483333 | K22: 4285.883333 | L22: 4286.116667 | M22: 4283.85 | N22: 4287.3 | O22: 4276.933333 | P22: 4269.45 | Q22: 4262.016667
A23: Dusk30/dawn30 | B23: 200 | C23: Dusk to Dawn 30 mins | D23: 3917.683333 | E23: 3915.316667 | F23: 3919.933333 | G23: 3913.983333 | H23: 3916.7 | I23: 3908.05 | J23: 3913.483333 | K23: 3920.883333 | L23: 3921.116667 | M23: 3918.85 | N23: 3922.3 | O23: 3911.933333 | P23: 3904.45 | Q23: 3897.016667 | R23: 30 | S23: 30
A24: Dusk15/dawn15 | B24: 205 | C24: Dusk to Dawn 15mins | D24: 4100.183333 | E24: 4097.816667 | F24: 4102.433333 | G24: 4096.483333 | H24: 4099.2 | I24: 4090.55 | J24: 4095.983333 | K24: 4103.383333 | L24: 4103.616667 | M24: 4101.35 | N24: 4104.8 | O24: 4094.433333 | P24: 4086.95 | Q24: 4079.516667 | R24: 15 | S24: 15
A25: Dusk30/dawn | B25: 380 | D25: 3735.058333 | E25: 3732.691667 | F25: 3737.308333 | G25: 3731.358333 | H25: 3734.075 | I25: 3725.425 | J25: 3730.858333 | K25: 3738.258333 | L25: 3738.491667 | M25: 3736.225 | N25: 3739.675 | O25: 3729.308333 | P25: 3721.825 | Q25: 3714.391667 | R25: 30
A26: 55/36 | B26: n/a | C26: Electronic PEC 55/36 | D26: 4138.150695 | E26: 4135.784028 | F26: 4140.450695 | G26: 4134.450695 | H26: 4137.200695 | I26: 4128.500695 | J26: 4133.950695 | K26: 4141.350695 | L26: 4141.584028 | M26: 4139.350695 | N26: 4142.784028 | O26: 4132.367362 | P26: 4124.917362 | Q26: 4117.434028

Sheet Calc (hidden)
D1: End mins | E1: Start mins | F1: GMT/CLK | I1: Dim end | J1: Dim start | L1: Total Minutes (Unadjusted) | O1: Adjustment SR | Q1: Adjustment SS | S1: Adjusted (total amount of off/dimmed time) | U1: Enter GMT or CLK | W1: GMT | Z1: 1
A2: 2011-04-01 | B2: =Sunrise_set!AE3 -> 545 | C2: =Sunrise_set!AF3 -> 1858 | D2: =LEFT(B2,1)*60+RIGHT(B2,2)+F2-$V$17 ->  | E2: =LEFT(C2,2)*60+RIGHT(C2,2)+F2+$V$17 ->  | F2: =IF($W$1="CLK",60,0) -> 0 | I2: =$W$6*60+$X$6 -> 660 | J2: =IF($W$7<12,($W$7+24)*60+$X$7,$W$7*60+$X$7) -> 1740 | L2: =IF(AND($W$7>12,$W$6>12),I2-J2,(24*60)-J2+I2) -> 360 | O2: =IF(AND($W$6>12,$W$7>12),0,IF(D2>I2,0,I2-D2)) ->  | Q2: =IF(E2>J2,E2-J2,0) ->  | S2: =MAX(L2-SUM(O2,Q2),0) ->  | T2: =S2/60 -> 
A3: 2011-04-02 | B3: =Sunrise_set!AE4 -> 542 | C3: =Sunrise_set!AF4 -> 1900 | D3: =LEFT(B3,1)*60+RIGHT(B3,2)+F3-$V$17 ->  | E3: =LEFT(C3,2)*60+RIGHT(C3,2)+F3+$V$17 ->  | F3: =IF($W$1="CLK",60,0) -> 0 | I3: =$W$6*60+$X$6 -> 660 | J3: =IF($W$7<12,($W$7+24)*60+$X$7,$W$7*60+$X$7) -> 1740 | L3: =IF(AND($W$7>12,$W$6>12),I3-J3,(24*60)-J3+I3) -> 360 | O3: =IF(AND($W$6>12,$W$7>12),0,IF(D3>I3,0,I3-D3)) ->  | S3: =MAX(L3-SUM(O3,Q3),0) -> 
A4: 2011-04-03 | B4: =Sunrise_set!AE5 -> 539 | C4: =Sunrise_set!AF5 -> 1902 | D4: =LEFT(B4,1)*60+RIGHT(B4,2)+F4-$V$17 ->  | E4: =LEFT(C4,2)*60+RIGHT(C4,2)+F4+$V$17 ->  | F4: 0 | I4: =$W$6*60+$X$6 -> 660 | J4: 1740 | L4: 360
A5: 2011-04-04 | B5: =Sunrise_set!AE6 -> 537 | C5: =Sunrise_set!AF6 -> 1904 | E5: =LEFT(C5,2)*60+RIGHT(C5,2)+F5+$V$17 ->  | F5: 0 | I5: =$W$6*60+$X$6 -> 660 | J5: 1740 | L5: =IF(AND($W$7>12,$W$6>12),I5-J5,(24*60)-J5+I5) -> 360 | O5: =IF(AND($W$6>12,$W$7>12),0,IF(D5>I5,0,I5-D5)) ->  | W5: Hours | X5: Minutes
A6: 2011-04-05 | B6: =Sunrise_set!AE7 -> 534 | C6: =Sunrise_set!AF7 -> 1906 | F6: 0 | I6: 660 | J6: 1740 | L6: 360 | U6: Enter Dim End | W6: 11 | X6: 0
A7: 2011-04-06 | B7: =Sunrise_set!AE8 -> 531 | C7: =Sunrise_set!AF8 -> 1909 | F7: 0 | I7: 660 | J7: 1740 | L7: 360 | U7: Enter Dim Start | W7: 5 | X7: 0
A8: 2011-04-07 | B8: =Sunrise_set!AE9 -> 528 | C8: =Sunrise_set!AF9 -> 1911 | F8: 0 | I8: 660 | J8: 1740 | L8: 360 | W8: _P | Y8: =VLOOKUP(W8,look2,2) -> 27 | Z8: =Y8+1 -> 28
A9: 2011-04-08 | B9: =Sunrise_set!AE10 -> 526 | C9: =Sunrise_set!AF10 -> 1913 | F9: 0 | I9: 660 | J9: 1740 | L9: 360
A10: 2011-04-09 | B10: =Sunrise_set!AE11 -> 523 | C10: =Sunrise_set!AF11 -> 1915 | F10: 0 | I10: 660 | J10: 1740 | L10: 360 | U10: Dimmed Hours
A11: 2011-04-10 | B11: =Sunrise_set!AE12 -> 520 | C11: =Sunrise_set!AF12 -> 1917 | F11: 0 | I11: 660 | J11: 1740 | L11: 360 | U11: =SUM(S2:S367)/60 -> 
A12: 2011-04-11 | B12: =Sunrise_set!AE13 -> 518 | C12: =Sunrise_set!AF13 -> 1920 | F12: 0 | I12: 660 | J12: 1740 | L12: 360
A13: 2011-04-12 | B13: =Sunrise_set!AE14 -> 515 | C13: =Sunrise_set!AF14 -> 1922 | F13: 0 | I13: 660 | J13: 1740 | L13: 360 | U13: avg published | V13: =AVERAGE(Results!C5:P5) ->  | X13: lookup
A14: 2011-04-13 | B14: =Sunrise_set!AE15 -> 512 | C14: =Sunrise_set!AF15 -> 1924 | F14: 0 | I14: 660 | J14: 1740 | L14: 360 | U14: Avg SS to SR | V14: 4277.857143 | X14: _A | Y14: 1
A15: 2011-04-14 | B15: =Sunrise_set!AE16 -> 510 | C15: =Sunrise_set!AF16 -> 1926 | F15: 0 | I15: 660 | J15: 1740 | L15: 360 | U15: Diff hrs | V15: =V14-V13 ->  | X15: _B | Y15: 3
A16: 2011-04-15 | B16: =Sunrise_set!AE17 -> 507 | C16: =Sunrise_set!AF17 -> 1928 | F16: 0 | I16: 660 | J16: 1740 | L16: 360 | U16: mins per day | V16: =V15*60/365 ->  | X16: _C | Y16: 5
A17: 2011-04-16 | B17: =Sunrise_set!AE18 -> 504 | C17: =Sunrise_set!AF18 -> 1930 | F17: 0 | I17: 660 | J17: 1740 | L17: 360 | U17: each end | V17: =V16/2 ->  | X17: _D | Y17: 7
A18: 2011-04-17 | B18: =Sunrise_set!AE19 -> 502 | C18: =Sunrise_set!AF19 -> 1933 | F18: 0 | I18: 660 | J18: 1740 | L18: 360 | X18: _E | Y18: 9
A19: 2011-04-18 | B19: =Sunrise_set!AE20 -> 459 | C19: =Sunrise_set!AF20 -> 1935 | F19: 0 | I19: 660 | J19: 1740 | L19: 360 | X19: _F | Y19: 11
A20: 2011-04-19 | B20: =Sunrise_set!AE21 -> 456 | C20: =Sunrise_set!AF21 -> 1937 | F20: 0 | I20: 660 | J20: 1740 | L20: 360 | X20: _G | Y20: 13
A21: 2011-04-20 | B21: =Sunrise_set!AE22 -> 454 | C21: =Sunrise_set!AF22 -> 1939 | F21: 0 | I21: 660 | J21: 1740 | L21: 360 | X21: _H | Y21: 15
A22: 2011-04-21 | B22: =Sunrise_set!AE23 -> 451 | C22: =Sunrise_set!AF23 -> 1941 | F22: 0 | I22: 660 | J22: 1740 | L22: 360 | X22: _J | Y22: 17
A23: 2011-04-22 | B23: =Sunrise_set!AE24 -> 449 | C23: =Sunrise_set!AF24 -> 1944 | F23: 0 | I23: 660 | J23: 1740 | L23: 360 | X23: _K | Y23: 19
A24: 2011-04-23 | B24: =Sunrise_set!AE25 -> 446 | C24: =Sunrise_set!AF25 -> 1946 | F24: 0 | I24: 660 | J24: 1740 | L24: 360 | X24: _L | Y24: 21
A25: 2011-04-24 | B25: =Sunrise_set!AE26 -> 444 | C25: =Sunrise_set!AF26 -> 1948 | F25: 0 | I25: 660 | J25: 1740 | L25: 360 | X25: _M | Y25: 23
A26: 2011-04-25 | B26: =Sunrise_set!AE27 -> 441 | C26: =Sunrise_set!AF27 -> 1950 | F26: 0 | I26: 660 | J26: 1740 | L26: 360 | X26: _N | Y26: 25
A27: 2011-04-26 | B27: =Sunrise_set!AE28 -> 439 | C27: =Sunrise_set!AF28 -> 1952 | F27: 0 | I27: 660 | J27: 1740 | L27: 360 | X27: _P | Y27: 27
A28: 2011-04-27 | B28: =Sunrise_set!AE29 -> 436 | C28: =Sunrise_set!AF29 -> 1954 | F28: 0 | I28: 660 | J28: 1740 | L28: 360
A29: 2011-04-28 | B29: =Sunrise_set!AE30 -> 434 | C29: =Sunrise_set!AF30 -> 1957 | F29: 0 | I29: 660 | J29: 1740 | L29: 360
A30: 2011-04-29 | B30: =Sunrise_set!AE31 -> 431 | C30: =Sunrise_set!AF31 -> 1959 | F30: 0 | I30: 660 | J30: 1740 | L30: 360 | W30: 4151 | X30: 4131 | Y30: =W30-X30 -> 20 | Z30: =Y30*60 -> 1200 | AA30: =Z30/365 -> 3.287671233
A31: 2011-04-30 | B31: =Sunrise_set!AE32 -> 429 | C31: =Sunrise_set!AF32 -> 2001 | F31: 0 | I31: 660 | J31: 1740 | L31: 360
A32: 2011-05-01 | B32: =Sunrise_set!AE33 -> 426 | C32: =Sunrise_set!AF33 -> 2003 | F32: 0 | I32: 660 | J32: 1740 | L32: 360
A33: 2011-05-02 | B33: =Sunrise_set!AE34 -> 424 | C33: =Sunrise_set!AF34 -> 2005 | F33: 0 | I33: 660 | J33: 1740 | L33: 360
A34: 2011-05-03 | B34: =Sunrise_set!AE35 -> 422 | C34: =Sunrise_set!AF35 -> 2007 | F34: 0 | I34: 660 | J34: 1740 | L34: 360
A35: 2011-05-04 | B35: =Sunrise_set!AE36 -> 419 | C35: =Sunrise_set!AF36 -> 2010 | F35: 0 | I35: 660 | J35: 1740 | L35: 360
A36: 2011-05-05 | B36: =Sunrise_set!AE37 -> 417 | C36: =Sunrise_set!AF37 -> 2012 | F36: 0 | I36: 660 | J36: 1740 | L36: 360 | V36: =150*365 -> 54750
A37: 2011-05-06 | B37: =Sunrise_set!AE38 -> 415 | C37: =Sunrise_set!AF38 -> 2014 | F37: 0 | I37: 660 | J37: 1740 | L37: 360
A38: 2011-05-07 | B38: =Sunrise_set!AE39 -> 412 | C38: =Sunrise_set!AF39 -> 2016 | F38: 0 | I38: 660 | J38: 1740 | L38: 360
A39: 2011-05-08 | B39: =Sunrise_set!AE40 -> 410 | C39: =Sunrise_set!AF40 -> 2018 | F39: 0 | I39: 660 | J39: 1740 | L39: 360
A40: 2011-05-09 | B40: =Sunrise_set!AE41 -> 408 | C40: =Sunrise_set!AF41 -> 2020 | F40: 0 | I40: 660 | J40: 1740 | L40: 360
A41: 2011-05-10 | B41: =Sunrise_set!AE42 -> 406 | C41: =Sunrise_set!AF42 -> 2022 | F41: 0 | I41: 660 | J41: 1740 | L41: 360
A42: 2011-05-11 | B42: =Sunrise_set!AE43 -> 404 | C42: =Sunrise_set!AF43 -> 2024 | F42: 0 | I42: 660 | J42: 1740 | L42: 360
A43: 2011-05-12 | B43: =Sunrise_set!AE44 -> 401 | C43: =Sunrise_set!AF44 -> 2026 | F43: 0 | I43: 660 | J43: 1740 | L43: 360
A44: 2011-05-13 | B44: =Sunrise_set!AE45 -> 359 | C44: =Sunrise_set!AF45 -> 2029 | F44: 0 | I44: 660 | J44: 1740 | L44: 360
A45: 2011-05-14 | B45: =Sunrise_set!AE46 -> 357 | C45: =Sunrise_set!AF46 -> 2031 | F45: 0 | I45: 660 | J45: 1740 | L45: 360
A46: 2011-05-15 | B46: =Sunrise_set!AE47 -> 355 | C46: =Sunrise_set!AF47 -> 2033 | F46: 0 | I46: 660 | J46: 1740 | L46: 360
A47: 2011-05-16 | B47: =Sunrise_set!AE48 -> 353 | C47: =Sunrise_set!AF48 -> 2035 | F47: 0 | I47: 660 | J47: 1740 | L47: 360
A48: 2011-05-17 | B48: =Sunrise_set!AE49 -> 351 | C48: =Sunrise_set!AF49 -> 2037 | F48: 0 | I48: 660 | J48: 1740 | L48: 360
A49: 2011-05-18 | B49: =Sunrise_set!AE50 -> 350 | C49: =Sunrise_set!AF50 -> 2039 | F49: 0 | I49: 660 | J49: 1740 | L49: 360
A50: 2011-05-19 | B50: =Sunrise_set!AE51 -> 348 | C50: =Sunrise_set!AF51 -> 2040 | F50: 0 | I50: 660 | J50: 1740 | L50: 360
A51: 2011-05-20 | B51: =Sunrise_set!AE52 -> 346 | C51: =Sunrise_set!AF52 -> 2042 | F51: 0 | I51: 660 | J51: 1740 | L51: 360
A52: 2011-05-21 | B52: =Sunrise_set!AE53 -> 344 | C52: =Sunrise_set!AF53 -> 2044 | F52: 0 | I52: 660 | J52: 1740 | L52: 360
A53: 2011-05-22 | B53: =Sunrise_set!AE54 -> 342 | C53: =Sunrise_set!AF54 -> 2046 | F53: 0 | I53: 660 | J53: 1740 | L53: 360
A54: 2011-05-23 | B54: =Sunrise_set!AE55 -> 341 | C54: =Sunrise_set!AF55 -> 2048 | F54: 0 | I54: 660 | J54: 1740 | L54: 360
A55: 2011-05-24 | B55: =Sunrise_set!AE56 -> 339 | C55: =Sunrise_set!AF56 -> 2050 | F55: 0 | I55: 660 | J55: 1740 | L55: 360
A56: 2011-05-25 | B56: =Sunrise_set!AE57 -> 338 | C56: =Sunrise_set!AF57 -> 2051 | F56: 0 | I56: 660 | J56: 1740 | L56: 360
A57: 2011-05-26 | B57: =Sunrise_set!AE58 -> 336 | C57: =Sunrise_set!AF58 -> 2053 | F57: 0 | I57: 660 | J57: 1740 | L57: 360
A58: 2011-05-27 | B58: =Sunrise_set!AE59 -> 335 | C58: =Sunrise_set!AF59 -> 2055 | F58: 0 | I58: 660 | J58: 1740 | L58: 360
A59: 2011-05-28 | B59: =Sunrise_set!AE60 -> 333 | C59: =Sunrise_set!AF60 -> 2056 | F59: 0 | I59: 660 | J59: 1740 | L59: 360
A60: 2011-05-29 | B60: =Sunrise_set!AE61 -> 332 | C60: =Sunrise_set!AF61 -> 2058 | F60: 0 | I60: 660 | J60: 1740 | L60: 360
A61: 2011-05-30 | B61: =Sunrise_set!AE62 -> 330 | C61: =Sunrise_set!AF62 -> 2100 | F61: 0 | I61: 660 | J61: 1740 | L61: 360
A62: 2011-05-31 | B62: =Sunrise_set!AE63 -> 329 | C62: =Sunrise_set!AF63 -> 2101 | F62: 0 | I62: 660 | J62: 1740 | L62: 360
A63: 2011-06-01 | B63: =Sunrise_set!AE64 -> 328 | C63: =Sunrise_set!AF64 -> 2103 | F63: 0 | I63: 660 | J63: 1740 | L63: 360
A64: 2011-06-02 | B64: =Sunrise_set!AE65 -> 327 | C64: =Sunrise_set!AF65 -> 2104 | F64: 0 | I64: 660 | J64: 1740 | L64: 360
A65: 2011-06-03 | B65: =Sunrise_set!AE66 -> 326 | C65: =Sunrise_set!AF66 -> 2105 | F65: 0 | I65: 660 | J65: 1740 | L65: 360
A66: 2011-06-04 | B66: =Sunrise_set!AE67 -> 325 | C66: =Sunrise_set!AF67 -> 2107 | D66: =LEFT(B66,1)*60+RIGHT(B66,2)+F66-$V$17 ->  | E66: =LEFT(C66,2)*60+RIGHT(C66,2)+F66+$V$17 ->  | F66: 0 | I66: =$W$6*60+$X$6 -> 660 | J66: 1740 | L66: 360 | Q66: =IF(E66>J66,E66-J66,0) -> 
A67: 2011-06-05 | B67: =Sunrise_set!AE68 -> 324 | C67: =Sunrise_set!AF68 -> 2108 | F67: =IF($W$1="CLK",60,0) -> 0 | I67: 660 | J67: =IF($W$7<12,($W$7+24)*60+$X$7,$W$7*60+$X$7) -> 1740 | L67: =IF(AND($W$7>12,$W$6>12),I67-J67,(24*60)-J67+I67) -> 360 | O67: =IF(AND($W$6>12,$W$7>12),0,IF(D67>I67,0,I67-D67)) ->  | S67: =MAX(L67-SUM(O67,Q67),0) -> 
A68: 2011-06-06 | B68: =Sunrise_set!AE69 -> 323 | C68: =Sunrise_set!AF69 -> 2109 | F68: 0 | I68: 660 | J68: 1740 | L68: 360
A69: 2011-06-07 | B69: =Sunrise_set!AE70 -> 322 | C69: =Sunrise_set!AF70 -> 2110 | F69: 0 | I69: 660 | J69: 1740 | L69: 360
A70: 2011-06-08 | B70: =Sunrise_set!AE71 -> 321 | C70: =Sunrise_set!AF71 -> 2111 | F70: 0 | I70: 660 | J70: 1740 | L70: 360
A71: 2011-06-09 | B71: =Sunrise_set!AE72 -> 321 | C71: =Sunrise_set!AF72 -> 2112 | F71: 0 | I71: 660 | J71: 1740 | L71: 360
A72: 2011-06-10 | B72: =Sunrise_set!AE73 -> 320 | C72: =Sunrise_set!AF73 -> 2113 | F72: 0 | I72: 660 | J72: 1740 | L72: 360
A73: 2011-06-11 | B73: =Sunrise_set!AE74 -> 320 | C73: =Sunrise_set!AF74 -> 2114 | F73: 0 | I73: 660 | J73: 1740 | L73: 360
A74: 2011-06-12 | B74: =Sunrise_set!AE75 -> 319 | C74: =Sunrise_set!AF75 -> 2115 | F74: 0 | I74: 660 | J74: 1740 | L74: 360
A75: 2011-06-13 | B75: =Sunrise_set!AE76 -> 319 | C75: =Sunrise_set!AF76 -> 2116 | F75: 0 | I75: 660 | J75: 1740 | L75: 360
A76: 2011-06-14 | B76: =Sunrise_set!AE77 -> 318 | C76: =Sunrise_set!AF77 -> 2116 | F76: 0 | I76: 660 | J76: 1740 | L76: 360
A77: 2011-06-15 | B77: =Sunrise_set!AE78 -> 318 | C77: =Sunrise_set!AF78 -> 2117 | F77: 0 | I77: 660 | J77: 1740 | L77: 360
A78: 2011-06-16 | B78: =Sunrise_set!AE79 -> 318 | C78: =Sunrise_set!AF79 -> 2118 | F78: 0 | I78: 660 | J78: 1740 | L78: 360
A79: 2011-06-17 | B79: =Sunrise_set!AE80 -> 318 | C79: =Sunrise_set!AF80 -> 2118 | F79: 0 | I79: 660 | J79: 1740 | L79: 360
A80: 2011-06-18 | B80: =Sunrise_set!AE81 -> 318 | C80: =Sunrise_set!AF81 -> 2118 | F80: 0 | I80: 660 | J80: 1740 | L80: 360
A81: 2011-06-19 | B81: =Sunrise_set!AE82 -> 318 | C81: =Sunrise_set!AF82 -> 2119 | F81: 0 | I81: 660 | J81: 1740 | L81: 360
A82: 2011-06-20 | B82: =Sunrise_set!AE83 -> 318 | C82: =Sunrise_set!AF83 -> 2119 | F82: 0 | I82: 660 | J82: 1740 | L82: 360
A83: 2011-06-21 | B83: =Sunrise_set!AE84 -> 318 | C83: =Sunrise_set!AF84 -> 2119 | F83: 0 | I83: 660 | J83: 1740 | L83: 360
A84: 2011-06-22 | B84: =Sunrise_set!AE85 -> 318 | C84: =Sunrise_set!AF85 -> 2119 | F84: 0 | I84: 660 | J84: 1740 | L84: 360
A85: 2011-06-23 | B85: =Sunrise_set!AE86 -> 319 | C85: =Sunrise_set!AF86 -> 2119 | F85: 0 | I85: 660 | J85: 1740 | L85: 360
A86: 2011-06-24 | B86: =Sunrise_set!AE87 -> 319 | C86: =Sunrise_set!AF87 -> 2119 | F86: 0 | I86: 660 | J86: 1740 | L86: 360
A87: 2011-06-25 | B87: =Sunrise_set!AE88 -> 320 | C87: =Sunrise_set!AF88 -> 2119 | F87: 0 | I87: 660 | J87: 1740 | L87: 360
A88: 2011-06-26 | B88: =Sunrise_set!AE89 -> 320 | C88: =Sunrise_set!AF89 -> 2119 | F88: 0 | I88: 660 | J88: 1740 | L88: 360
A89: 2011-06-27 | B89: =Sunrise_set!AE90 -> 321 | C89: =Sunrise_set!AF90 -> 2119 | F89: 0 | I89: 660 | J89: 1740 | L89: 360
A90: 2011-06-28 | B90: =Sunrise_set!AE91 -> 322 | C90: =Sunrise_set!AF91 -> 2119 | F90: 0 | I90: 660 | J90: 1740 | L90: 360
A91: 2011-06-29 | B91: =Sunrise_set!AE92 -> 322 | C91: =Sunrise_set!AF92 -> 2118 | F91: 0 | I91: 660 | J91: 1740 | L91: 360
A92: 2011-06-30 | B92: =Sunrise_set!AE93 -> 323 | C92: =Sunrise_set!AF93 -> 2118 | F92: 0 | I92: 660 | J92: 1740 | L92: 360
A93: 2011-07-01 | B93: =Sunrise_set!AE94 -> 324 | C93: =Sunrise_set!AF94 -> 2117 | F93: 0 | I93: 660 | J93: 1740 | L93: 360
A94: 2011-07-02 | B94: =Sunrise_set!AE95 -> 325 | C94: =Sunrise_set!AF95 -> 2116 | F94: 0 | I94: 660 | J94: 1740 | L94: 360
A95: 2011-07-03 | B95: =Sunrise_set!AE96 -> 326 | C95: =Sunrise_set!AF96 -> 2116 | F95: 0 | I95: 660 | J95: 1740 | L95: 360
A96: 2011-07-04 | B96: =Sunrise_set!AE97 -> 327 | C96: =Sunrise_set!AF97 -> 2115 | F96: 0 | I96: 660 | J96: 1740 | L96: 360
A97: 2011-07-05 | B97: =Sunrise_set!AE98 -> 328 | C97: =Sunrise_set!AF98 -> 2114 | F97: 0 | I97: 660 | J97: 1740 | L97: 360
A98: 2011-07-06 | B98: =Sunrise_set!AE99 -> 329 | C98: =Sunrise_set!AF99 -> 2113 | F98: 0 | I98: 660 | J98: 1740 | L98: 360
A99: 2011-07-07 | B99: =Sunrise_set!AE100 -> 331 | C99: =Sunrise_set!AF100 -> 2112 | F99: 0 | I99: 660 | J99: 1740 | L99: 360
A100: 2011-07-08 | B100: =Sunrise_set!AE101 -> 332 | C100: =Sunrise_set!AF101 -> 2111 | F100: 0 | I100: 660 | J100: 1740 | L100: 360
A101: 2011-07-09 | B101: =Sunrise_set!AE102 -> 333 | C101: =Sunrise_set!AF102 -> 2110 | F101: 0 | I101: 660 | J101: 1740 | L101: 360
A102: 2011-07-10 | B102: =Sunrise_set!AE103 -> 335 | C102: =Sunrise_set!AF103 -> 2109 | F102: 0 | I102: 660 | J102: 1740 | L102: 360
A103: 2011-07-11 | B103: =Sunrise_set!AE104 -> 336 | C103: =Sunrise_set!AF104 -> 2108 | F103: 0 | I103: 660 | J103: 1740 | L103: 360
A104: 2011-07-12 | B104: =Sunrise_set!AE105 -> 338 | C104: =Sunrise_set!AF105 -> 2107 | F104: 0 | I104: 660 | J104: 1740 | L104: 360
A105: 2011-07-13 | B105: =Sunrise_set!AE106 -> 339 | C105: =Sunrise_set!AF106 -> 2105 | F105: 0 | I105: 660 | J105: 1740 | L105: 360
A106: 2011-07-14 | B106: =Sunrise_set!AE107 -> 341 | C106: =Sunrise_set!AF107 -> 2104 | F106: 0 | I106: 660 | J106: 1740 | L106: 360
A107: 2011-07-15 | B107: =Sunrise_set!AE108 -> 342 | C107: =Sunrise_set!AF108 -> 2103 | F107: 0 | I107: 660 | J107: 1740 | L107: 360
A108: 2011-07-16 | B108: =Sunrise_set!AE109 -> 344 | C108: =Sunrise_set!AF109 -> 2101 | F108: 0 | I108: 660 | J108: 1740 | L108: 360
A109: 2011-07-17 | B109: =Sunrise_set!AE110 -> 346 | C109: =Sunrise_set!AF110 -> 2100 | F109: 0 | I109: 660 | J109: 1740 | L109: 360
A110: 2011-07-18 | B110: =Sunrise_set!AE111 -> 347 | C110: =Sunrise_set!AF111 -> 2058 | F110: 0 | I110: 660 | J110: 1740 | L110: 360
A111: 2011-07-19 | B111: =Sunrise_set!AE112 -> 349 | C111: =Sunrise_set!AF112 -> 2056 | F111: 0 | I111: 660 | J111: 1740 | L111: 360
A112: 2011-07-20 | B112: =Sunrise_set!AE113 -> 351 | C112: =Sunrise_set!AF113 -> 2055 | F112: 0 | I112: 660 | J112: 1740 | L112: 360
A113: 2011-07-21 | B113: =Sunrise_set!AE114 -> 353 | C113: =Sunrise_set!AF114 -> 2053 | F113: 0 | I113: 660 | J113: 1740 | L113: 360
A114: 2011-07-22 | B114: =Sunrise_set!AE115 -> 354 | C114: =Sunrise_set!AF115 -> 2051 | F114: 0 | I114: 660 | J114: 1740 | L114: 360
A115: 2011-07-23 | B115: =Sunrise_set!AE116 -> 356 | C115: =Sunrise_set!AF116 -> 2049 | F115: 0 | I115: 660 | J115: 1740 | L115: 360
A116: 2011-07-24 | B116: =Sunrise_set!AE117 -> 358 | C116: =Sunrise_set!AF117 -> 2047 | F116: 0 | I116: 660 | J116: 1740 | L116: 360
A117: 2011-07-25 | B117: =Sunrise_set!AE118 -> 400 | C117: =Sunrise_set!AF118 -> 2046 | F117: 0 | I117: 660 | J117: 1740 | L117: 360
A118: 2011-07-26 | B118: =Sunrise_set!AE119 -> 402 | C118: =Sunrise_set!AF119 -> 2044 | F118: 0 | I118: 660 | J118: 1740 | L118: 360
A119: 2011-07-27 | B119: =Sunrise_set!AE120 -> 404 | C119: =Sunrise_set!AF120 -> 2042 | F119: 0 | I119: 660 | J119: 1740 | L119: 360
A120: 2011-07-28 | B120: =Sunrise_set!AE121 -> 406 | C120: =Sunrise_set!AF121 -> 2040 | F120: 0 | I120: 660 | J120: 1740 | L120: 360
A121: 2011-07-29 | B121: =Sunrise_set!AE122 -> 408 | C121: =Sunrise_set!AF122 -> 2038 | F121: 0 | I121: 660 | J121: 1740 | L121: 360
A122: 2011-07-30 | B122: =Sunrise_set!AE123 -> 410 | C122: =Sunrise_set!AF123 -> 2035 | F122: 0 | I122: 660 | J122: 1740 | L122: 360
A123: 2011-07-31 | B123: =Sunrise_set!AE124 -> 412 | C123: =Sunrise_set!AF124 -> 2033 | F123: 0 | I123: 660 | J123: 1740 | L123: 360
A124: 2011-08-01 | B124: =Sunrise_set!AE125 -> 414 | C124: =Sunrise_set!AF125 -> 2031 | F124: 0 | I124: 660 | J124: 1740 | L124: 360
A125: 2011-08-02 | B125: =Sunrise_set!AE126 -> 416 | C125: =Sunrise_set!AF126 -> 2029 | F125: 0 | I125: 660 | J125: 1740 | L125: 360
A126: 2011-08-03 | B126: =Sunrise_set!AE127 -> 418 | C126: =Sunrise_set!AF127 -> 2027 | F126: 0 | I126: 660 | J126: 1740 | L126: 360
A127: 2011-08-04 | B127: =Sunrise_set!AE128 -> 420 | C127: =Sunrise_set!AF128 -> 2025 | F127: 0 | I127: 660 | J127: 1740 | L127: 360
A128: 2011-08-05 | B128: =Sunrise_set!AE129 -> 422 | C128: =Sunrise_set!AF129 -> 2022 | F128: 0 | I128: 660 | J128: 1740 | L128: 360
A129: 2011-08-06 | B129: =Sunrise_set!AE130 -> 424 | C129: =Sunrise_set!AF130 -> 2020 | F129: 0 | I129: 660 | J129: 1740 | L129: 360
A130: 2011-08-07 | B130: =Sunrise_set!AE131 -> 426 | C130: =Sunrise_set!AF131 -> 2018 | D130: =LEFT(B130,1)*60+RIGHT(B130,2)+F130-$V$17 ->  | E130: =LEFT(C130,2)*60+RIGHT(C130,2)+F130+$V$17 ->  | F130: 0 | I130: =$W$6*60+$X$6 -> 660 | J130: 1740 | L130: 360 | Q130: =IF(E130>J130,E130-J130,0) -> 
A131: 2011-08-08 | B131: =Sunrise_set!AE132 -> 428 | C131: =Sunrise_set!AF132 -> 2015 | F131: =IF($W$1="CLK",60,0) -> 0 | I131: 660 | J131: =IF($W$7<12,($W$7+24)*60+$X$7,$W$7*60+$X$7) -> 1740 | L131: =IF(AND($W$7>12,$W$6>12),I131-J131,(24*60)-J131+I131) -> 360 | O131: =IF(AND($W$6>12,$W$7>12),0,IF(D131>I131,0,I131-D131)) ->  | S131: =MAX(L131-SUM(O131,Q131),0) -> 
A132: 2011-08-09 | B132: =Sunrise_set!AE133 -> 430 | C132: =Sunrise_set!AF133 -> 2013 | F132: 0 | I132: 660 | J132: 1740 | L132: 360
A133: 2011-08-10 | B133: =Sunrise_set!AE134 -> 432 | C133: =Sunrise_set!AF134 -> 2011 | F133: 0 | I133: 660 | J133: 1740 | L133: 360
A134: 2011-08-11 | B134: =Sunrise_set!AE135 -> 435 | C134: =Sunrise_set!AF135 -> 2008 | F134: 0 | I134: 660 | J134: 1740 | L134: 360
A135: 2011-08-12 | B135: =Sunrise_set!AE136 -> 437 | C135: =Sunrise_set!AF136 -> 2006 | F135: 0 | I135: 660 | J135: 1740 | L135: 360
A136: 2011-08-13 | B136: =Sunrise_set!AE137 -> 439 | C136: =Sunrise_set!AF137 -> 2003 | F136: 0 | I136: 660 | J136: 1740 | L136: 360
A137: 2011-08-14 | B137: =Sunrise_set!AE138 -> 441 | C137: =Sunrise_set!AF138 -> 2001 | F137: 0 | I137: 660 | J137: 1740 | L137: 360
A138: 2011-08-15 | B138: =Sunrise_set!AE139 -> 443 | C138: =Sunrise_set!AF139 -> 1958 | F138: 0 | I138: 660 | J138: 1740 | L138: 360
A139: 2011-08-16 | B139: =Sunrise_set!AE140 -> 445 | C139: =Sunrise_set!AF140 -> 1956 | F139: 0 | I139: 660 | J139: 1740 | L139: 360
A140: 2011-08-17 | B140: =Sunrise_set!AE141 -> 447 | C140: =Sunrise_set!AF141 -> 1953 | F140: 0 | I140: 660 | J140: 1740 | L140: 360
A141: 2011-08-18 | B141: =Sunrise_set!AE142 -> 449 | C141: =Sunrise_set!AF142 -> 1951 | F141: 0 | I141: 660 | J141: 1740 | L141: 360
A142: 2011-08-19 | B142: =Sunrise_set!AE143 -> 451 | C142: =Sunrise_set!AF143 -> 1948 | F142: 0 | I142: 660 | J142: 1740 | L142: 360
A143: 2011-08-20 | B143: =Sunrise_set!AE144 -> 453 | C143: =Sunrise_set!AF144 -> 1945 | F143: 0 | I143: 660 | J143: 1740 | L143: 360
A144: 2011-08-21 | B144: =Sunrise_set!AE145 -> 456 | C144: =Sunrise_set!AF145 -> 1943 | F144: 0 | I144: 660 | J144: 1740 | L144: 360
A145: 2011-08-22 | B145: =Sunrise_set!AE146 -> 458 | C145: =Sunrise_set!AF146 -> 1940 | F145: 0 | I145: 660 | J145: 1740 | L145: 360
A146: 2011-08-23 | B146: =Sunrise_set!AE147 -> 500 | C146: =Sunrise_set!AF147 -> 1938 | F146: 0 | I146: 660 | J146: 1740 | L146: 360
A147: 2011-08-24 | B147: =Sunrise_set!AE148 -> 502 | C147: =Sunrise_set!AF148 -> 1935 | F147: 0 | I147: 660 | J147: 1740 | L147: 360
A148: 2011-08-25 | B148: =Sunrise_set!AE149 -> 504 | C148: =Sunrise_set!AF149 -> 1932 | F148: 0 | I148: 660 | J148: 1740 | L148: 360
A149: 2011-08-26 | B149: =Sunrise_set!AE150 -> 506 | C149: =Sunrise_set!AF150 -> 1930 | F149: 0 | I149: 660 | J149: 1740 | L149: 360
A150: 2011-08-27 | B150: =Sunrise_set!AE151 -> 508 | C150: =Sunrise_set!AF151 -> 1927 | F150: 0 | I150: 660 | J150: 1740 | L150: 360
A151: 2011-08-28 | B151: =Sunrise_set!AE152 -> 510 | C151: =Sunrise_set!AF152 -> 1924 | F151: 0 | I151: 660 | J151: 1740 | L151: 360
A152: 2011-08-29 | B152: =Sunrise_set!AE153 -> 512 | C152: =Sunrise_set!AF153 -> 1922 | F152: 0 | I152: 660 | J152: 1740 | L152: 360
A153: 2011-08-30 | B153: =Sunrise_set!AE154 -> 514 | C153: =Sunrise_set!AF154 -> 1919 | F153: 0 | I153: 660 | J153: 1740 | L153: 360
A154: 2011-08-31 | B154: =Sunrise_set!AE155 -> 517 | C154: =Sunrise_set!AF155 -> 1916 | F154: 0 | I154: 660 | J154: 1740 | L154: 360
A155: 2011-09-01 | B155: =Sunrise_set!AE156 -> 519 | C155: =Sunrise_set!AF156 -> 1913 | F155: 0 | I155: 660 | J155: 1740 | L155: 360
A156: 2011-09-02 | B156: =Sunrise_set!AE157 -> 521 | C156: =Sunrise_set!AF157 -> 1911 | F156: 0 | I156: 660 | J156: 1740 | L156: 360
A157: 2011-09-03 | B157: =Sunrise_set!AE158 -> 523 | C157: =Sunrise_set!AF158 -> 1908 | F157: 0 | I157: 660 | J157: 1740 | L157: 360
A158: 2011-09-04 | B158: =Sunrise_set!AE159 -> 525 | C158: =Sunrise_set!AF159 -> 1905 | F158: 0 | I158: 660 | J158: 1740 | L158: 360
A159: 2011-09-05 | B159: =Sunrise_set!AE160 -> 527 | C159: =Sunrise_set!AF160 -> 1903 | F159: 0 | I159: 660 | J159: 1740 | L159: 360
A160: 2011-09-06 | B160: =Sunrise_set!AE161 -> 529 | C160: =Sunrise_set!AF161 -> 1900 | F160: 0 | I160: 660 | J160: 1740 | L160: 360
A161: 2011-09-07 | B161: =Sunrise_set!AE162 -> 531 | C161: =Sunrise_set!AF162 -> 1857 | F161: 0 | I161: 660 | J161: 1740 | L161: 360
A162: 2011-09-08 | B162: =Sunrise_set!AE163 -> 533 | C162: =Sunrise_set!AF163 -> 1854 | F162: 0 | I162: 660 | J162: 1740 | L162: 360
A163: 2011-09-09 | B163: =Sunrise_set!AE164 -> 535 | C163: =Sunrise_set!AF164 -> 1852 | F163: 0 | I163: 660 | J163: 1740 | L163: 360
A164: 2011-09-10 | B164: =Sunrise_set!AE165 -> 537 | C164: =Sunrise_set!AF165 -> 1849 | F164: 0 | I164: 660 | J164: 1740 | L164: 360
A165: 2011-09-11 | B165: =Sunrise_set!AE166 -> 540 | C165: =Sunrise_set!AF166 -> 1846 | F165: 0 | I165: 660 | J165: 1740 | L165: 360
A166: 2011-09-12 | B166: =Sunrise_set!AE167 -> 542 | C166: =Sunrise_set!AF167 -> 1843 | F166: 0 | I166: 660 | J166: 1740 | L166: 360
A167: 2011-09-13 | B167: =Sunrise_set!AE168 -> 544 | C167: =Sunrise_set!AF168 -> 1840 | F167: 0 | I167: 660 | J167: 1740 | L167: 360
A168: 2011-09-14 | B168: =Sunrise_set!AE169 -> 546 | C168: =Sunrise_set!AF169 -> 1838 | F168: 0 | I168: 660 | J168: 1740 | L168: 360
A169: 2011-09-15 | B169: =Sunrise_set!AE170 -> 548 | C169: =Sunrise_set!AF170 -> 1835 | F169: 0 | I169: 660 | J169: 1740 | L169: 360
A170: 2011-09-16 | B170: =Sunrise_set!AE171 -> 550 | C170: =Sunrise_set!AF171 -> 1832 | F170: 0 | I170: 660 | J170: 1740 | L170: 360
A171: 2011-09-17 | B171: =Sunrise_set!AE172 -> 552 | C171: =Sunrise_set!AF172 -> 1829 | F171: 0 | I171: 660 | J171: 1740 | L171: 360
A172: 2011-09-18 | B172: =Sunrise_set!AE173 -> 554 | C172: =Sunrise_set!AF173 -> 1826 | F172: 0 | I172: 660 | J172: 1740 | L172: 360
A173: 2011-09-19 | B173: =Sunrise_set!AE174 -> 556 | C173: =Sunrise_set!AF174 -> 1824 | F173: 0 | I173: 660 | J173: 1740 | L173: 360
A174: 2011-09-20 | B174: =Sunrise_set!AE175 -> 558 | C174: =Sunrise_set!AF175 -> 1821 | F174: 0 | I174: 660 | J174: 1740 | L174: 360
A175: 2011-09-21 | B175: =Sunrise_set!AE176 -> 600 | C175: =Sunrise_set!AF176 -> 1818 | F175: 0 | I175: 660 | J175: 1740 | L175: 360
A176: 2011-09-22 | B176: =Sunrise_set!AE177 -> 602 | C176: =Sunrise_set!AF177 -> 1815 | F176: 0 | I176: 660 | J176: 1740 | L176: 360
A177: 2011-09-23 | B177: =Sunrise_set!AE178 -> 604 | C177: =Sunrise_set!AF178 -> 1812 | F177: 0 | I177: 660 | J177: 1740 | L177: 360
A178: 2011-09-24 | B178: =Sunrise_set!AE179 -> 607 | C178: =Sunrise_set!AF179 -> 1810 | F178: 0 | I178: 660 | J178: 1740 | L178: 360
A179: 2011-09-25 | B179: =Sunrise_set!AE180 -> 609 | C179: =Sunrise_set!AF180 -> 1807 | F179: 0 | I179: 660 | J179: 1740 | L179: 360
A180: 2011-09-26 | B180: =Sunrise_set!AE181 -> 611 | C180: =Sunrise_set!AF181 -> 1804 | F180: 0 | I180: 660 | J180: 1740 | L180: 360
A181: 2011-09-27 | B181: =Sunrise_set!AE182 -> 613 | C181: =Sunrise_set!AF182 -> 1801 | F181: 0 | I181: 660 | J181: 1740 | L181: 360
A182: 2011-09-28 | B182: =Sunrise_set!AE183 -> 615 | C182: =Sunrise_set!AF183 -> 1759 | F182: 0 | I182: 660 | J182: 1740 | L182: 360
A183: 2011-09-29 | B183: =Sunrise_set!AE184 -> 617 | C183: =Sunrise_set!AF184 -> 1756 | F183: 0 | I183: 660 | J183: 1740 | L183: 360
A184: 2011-09-30 | B184: =Sunrise_set!AE185 -> 619 | C184: =Sunrise_set!AF185 -> 1753 | F184: 0 | I184: 660 | J184: 1740 | L184: 360
A185: 2011-10-01 | B185: =Sunrise_set!AE186 -> 621 | C185: =Sunrise_set!AF186 -> 1750 | F185: 0 | I185: 660 | J185: 1740 | L185: 360
A186: 2011-10-02 | B186: =Sunrise_set!AE187 -> 623 | C186: =Sunrise_set!AF187 -> 1748 | F186: 0 | I186: 660 | J186: 1740 | L186: 360
A187: 2011-10-03 | B187: =Sunrise_set!AE188 -> 626 | C187: =Sunrise_set!AF188 -> 1745 | F187: 0 | I187: 660 | J187: 1740 | L187: 360
A188: 2011-10-04 | B188: =Sunrise_set!AE189 -> 628 | C188: =Sunrise_set!AF189 -> 1742 | F188: 0 | I188: 660 | J188: 1740 | L188: 360
A189: 2011-10-05 | B189: =Sunrise_set!AE190 -> 630 | C189: =Sunrise_set!AF190 -> 1739 | F189: 0 | I189: 660 | J189: 1740 | L189: 360
A190: 2011-10-06 | B190: =Sunrise_set!AE191 -> 632 | C190: =Sunrise_set!AF191 -> 1737 | F190: 0 | I190: 660 | J190: 1740 | L190: 360
A191: 2011-10-07 | B191: =Sunrise_set!AE192 -> 634 | C191: =Sunrise_set!AF192 -> 1734 | F191: 0 | I191: 660 | J191: 1740 | L191: 360
A192: 2011-10-08 | B192: =Sunrise_set!AE193 -> 636 | C192: =Sunrise_set!AF193 -> 1731 | F192: 0 | I192: 660 | J192: 1740 | L192: 360
A193: 2011-10-09 | B193: =Sunrise_set!AE194 -> 639 | C193: =Sunrise_set!AF194 -> 1729 | F193: 0 | I193: 660 | J193: 1740 | L193: 360
A194: 2011-10-10 | B194: =Sunrise_set!AE195 -> 641 | C194: =Sunrise_set!AF195 -> 1726 | D194: =LEFT(B194,1)*60+RIGHT(B194,2)+F194-$V$17 ->  | E194: =LEFT(C194,2)*60+RIGHT(C194,2)+F194+$V$17 ->  | F194: 0 | I194: =$W$6*60+$X$6 -> 660 | J194: 1740 | L194: 360 | Q194: =IF(E194>J194,E194-J194,0) -> 
A195: 2011-10-11 | B195: =Sunrise_set!AE196 -> 643 | C195: =Sunrise_set!AF196 -> 1723 | F195: =IF($W$1="CLK",60,0) -> 0 | I195: 660 | J195: =IF($W$7<12,($W$7+24)*60+$X$7,$W$7*60+$X$7) -> 1740 | L195: =IF(AND($W$7>12,$W$6>12),I195-J195,(24*60)-J195+I195) -> 360 | O195: =IF(AND($W$6>12,$W$7>12),0,IF(D195>I195,0,I195-D195)) ->  | S195: =MAX(L195-SUM(O195,Q195),0) -> 
A196: 2011-10-12 | B196: =Sunrise_set!AE197 -> 645 | C196: =Sunrise_set!AF197 -> 1721 | F196: 0 | I196: 660 | J196: 1740 | L196: 360
A197: 2011-10-13 | B197: =Sunrise_set!AE198 -> 647 | C197: =Sunrise_set!AF198 -> 1718 | F197: 0 | I197: 660 | J197: 1740 | L197: 360
A198: 2011-10-14 | B198: =Sunrise_set!AE199 -> 649 | C198: =Sunrise_set!AF199 -> 1715 | F198: 0 | I198: 660 | J198: 1740 | L198: 360
A199: 2011-10-15 | B199: =Sunrise_set!AE200 -> 652 | C199: =Sunrise_set!AF200 -> 1713 | F199: 0 | I199: 660 | J199: 1740 | L199: 360
A200: 2011-10-16 | B200: =Sunrise_set!AE201 -> 654 | C200: =Sunrise_set!AF201 -> 1710 | F200: 0 | I200: 660 | J200: 1740 | L200: 360
... 167 more rows

Sheet Sunrise_set (hidden)
B1: 1 | C1: 2 | D1: 3 | E1: 4 | F1: 5 | G1: 6 | H1: 7 | I1: 8 | J1: 9 | K1: 10 | L1: 11 | M1: 12 | N1: 13 | O1: 14 | P1: 15 | Q1: 16 | R1: 17 | S1: 18 | T1: 19 | U1: 20 | V1: 21 | W1: 22 | X1: 23 | Y1: 24 | Z1: 25 | AA1: 26 | AB1: 27 | AC1: 28
B2: _A | C2: _A | D2: _B | E2: _B | F2: _C | G2: _C | H2: _D | I2: _D | J2: _E | K2: _E | L2: _F | M2: _F | N2: _G | O2: _G | P2: _H | Q2: _H | R2: _J | S2: _J | T2: _K | U2: _K | V2: _L | W2: _L | X2: _M | Y2: _M | Z2: _N | AA2: _N | AB2: _P | AC2: _P
A3: 1 | B3: 531 | C3: 1832 | D3: 538 | E3: 1840 | F3: 535 | G3: 1835 | H3: 547 | I3: 1850 | J3: 541 | K3: 1842 | L3: 537 | M3: 1844 | N3: 542 | O3: 1845 | P3: 541 | Q3: 1839 | R3: 534 | S3: 1832 | T3: 552 | U3: 1852 | V3: 550 | W3: 1847 | X3: 539 | Y3: 1843 | Z3: 547 | AA3: 1856 | AB3: 545 | AC3: 1858 | AE3: =HLOOKUP(Calc!$Y$8,look1,Sunrise_set!A3+2) -> 545 | AF3: =HLOOKUP(Calc!$Z$8,look1,Sunrise_set!A3+2) -> 1858
A4: 2 | B4: 529 | C4: 1833 | D4: 536 | E4: 1842 | F4: 533 | G4: 1836 | H4: 544 | I4: 1852 | J4: 539 | K4: 1844 | L4: 535 | M4: 1846 | N4: 539 | O4: 1847 | P4: 539 | Q4: 1841 | R4: 532 | S4: 1834 | T4: 549 | U4: 1853 | V4: 547 | W4: 1849 | X4: 536 | Y4: 1845 | Z4: 544 | AA4: 1858 | AB4: 542 | AC4: 1900 | AE4: =HLOOKUP(Calc!$Y$8,look1,Sunrise_set!A4+2) -> 542 | AF4: =HLOOKUP(Calc!$Z$8,look1,Sunrise_set!A4+2) -> 1900
A5: 3 | B5: 527 | C5: 1835 | D5: 533 | E5: 1844 | F5: 531 | G5: 1838 | H5: 542 | I5: 1853 | J5: 536 | K5: 1846 | L5: 532 | M5: 1848 | N5: 537 | O5: 1849 | P5: 536 | Q5: 1843 | R5: 530 | S5: 1836 | T5: 547 | U5: 1855 | V5: 545 | W5: 1850 | X5: 534 | Y5: 1846 | Z5: 542 | AA5: 1900 | AB5: 539 | AC5: 1902 | AE5: =HLOOKUP(Calc!$Y$8,look1,Sunrise_set!A5+2) -> 539 | AF5: =HLOOKUP(Calc!$Z$8,look1,Sunrise_set!A5+2) -> 1902
A6: 4 | B6: 524 | C6: 1837 | D6: 531 | E6: 1845 | F6: 529 | G6: 1840 | H6: 540 | I6: 1855 | J6: 534 | K6: 1847 | L6: 530 | M6: 1850 | N6: 535 | O6: 1850 | P6: 534 | Q6: 1844 | R6: 527 | S6: 1837 | T6: 545 | U6: 1857 | V6: 543 | W6: 1852 | X6: 531 | Y6: 1848 | Z6: 539 | AA6: 1902 | AB6: 537 | AC6: 1904 | AE6: =HLOOKUP(Calc!$Y$8,look1,Sunrise_set!A6+2) -> 537 | AF6: =HLOOKUP(Calc!$Z$8,look1,Sunrise_set!A6+2) -> 1904
A7: 5 | B7: 522 | C7: 1839 | D7: 529 | E7: 1847 | F7: 526 | G7: 1841 | H7: 537 | I7: 1857 | J7: 532 | K7: 1849 | L7: 527 | M7: 1852 | N7: 532 | O7: 1852 | P7: 532 | Q7: 1846 | R7: 525 | S7: 1839 | T7: 543 | U7: 1858 | V7: 541 | W7: 1854 | X7: 529 | Y7: 1850 | Z7: 537 | AA7: 1904 | AB7: 534 | AC7: 1906 | AE7: =HLOOKUP(Calc!$Y$8,look1,Sunrise_set!A7+2) -> 534 | AF7: =HLOOKUP(Calc!$Z$8,look1,Sunrise_set!A7+2) -> 1906
A8: 6 | B8: 520 | C8: 1840 | D8: 526 | E8: 1849 | F8: 524 | G8: 1843 | H8: 535 | I8: 1859 | J8: 529 | K8: 1851 | L8: 525 | M8: 1854 | N8: 530 | O8: 1854 | P8: 530 | Q8: 1848 | R8: 523 | S8: 1841 | T8: 540 | U8: 1900 | V8: 539 | W8: 1855 | X8: 527 | Y8: 1852 | Z8: 534 | AA8: 1906 | AB8: 531 | AC8: 1909 | AE8: =HLOOKUP(Calc!$Y$8,look1,Sunrise_set!A8+2) -> 531 | AF8: =HLOOKUP(Calc!$Z$8,look1,Sunrise_set!A8+2) -> 1909
A9: 7 | B9: 517 | C9: 1842 | D9: 524 | E9: 1851 | F9: 522 | G9: 1845 | H9: 533 | I9: 1901 | J9: 527 | K9: 1853 | L9: 522 | M9: 1856 | N9: 527 | O9: 1856 | P9: 528 | Q9: 1849 | R9: 521 | S9: 1842 | T9: 538 | U9: 1902 | V9: 536 | W9: 1857 | X9: 524 | Y9: 1854 | Z9: 531 | AA9: 1908 | AB9: 528 | AC9: 1911 | AE9: =HLOOKUP(Calc!$Y$8,look1,Sunrise_set!A9+2) -> 528 | AF9: =HLOOKUP(Calc!$Z$8,look1,Sunrise_set!A9+2) -> 1911
A10: 8 | B10: 515 | C10: 1844 | D10: 521 | E10: 1853 | F10: 520 | G10: 1846 | H10: 530 | I10: 1902 | J10: 525 | K10: 1854 | L10: 520 | M10: 1858 | N10: 525 | O10: 1858 | P10: 525 | Q10: 1851 | R10: 519 | S10: 1844 | T10: 536 | U10: 1903 | V10: 534 | W10: 1859 | X10: 522 | Y10: 1856 | Z10: 529 | AA10: 1910 | AB10: 526 | AC10: 1913 | AE10: =HLOOKUP(Calc!$Y$8,look1,Sunrise_set!A10+2) -> 526 | AF10: =HLOOKUP(Calc!$Z$8,look1,Sunrise_set!A10+2) -> 1913
A11: 9 | B11: 513 | C11: 1846 | D11: 519 | E11: 1854 | F11: 518 | G11: 1848 | H11: 528 | I11: 1904 | J11: 523 | K11: 1856 | L11: 517 | M11: 1900 | N11: 523 | O11: 1900 | P11: 523 | Q11: 1853 | R11: 516 | S11: 1846 | T11: 534 | U11: 1905 | V11: 532 | W11: 1900 | X11: 519 | Y11: 1857 | Z11: 526 | AA11: 1912 | AB11: 523 | AC11: 1915 | AE11: =HLOOKUP(Calc!$Y$8,look1,Sunrise_set!A11+2) -> 523 | AF11: =HLOOKUP(Calc!$Z$8,look1,Sunrise_set!A11+2) -> 1915
A12: 10 | B12: 511 | C12: 1847 | D12: 517 | E12: 1856 | F12: 515 | G12: 1850 | H12: 525 | I12: 1906 | J12: 520 | K12: 1858 | L12: 515 | M12: 1902 | N12: 520 | O12: 1901 | P12: 521 | Q12: 1854 | R12: 514 | S12: 1847 | T12: 531 | U12: 1907 | V12: 530 | W12: 1902 | X12: 517 | Y12: 1859 | Z12: 524 | AA12: 1914 | AB12: 520 | AC12: 1917 | AE12: =HLOOKUP(Calc!$Y$8,look1,Sunrise_set!A12+2) -> 520 | AF12: =HLOOKUP(Calc!$Z$8,look1,Sunrise_set!A12+2) -> 1917
A13: 11 | B13: 508 | C13: 1849 | D13: 515 | E13: 1858 | F13: 513 | G13: 1851 | H13: 523 | I13: 1908 | J13: 518 | K13: 1900 | L13: 512 | M13: 1903 | N13: 518 | O13: 1903 | P13: 519 | Q13: 1856 | R13: 512 | S13: 1849 | T13: 529 | U13: 1909 | V13: 528 | W13: 1903 | X13: 515 | Y13: 1901 | Z13: 521 | AA13: 1916 | AB13: 518 | AC13: 1920 | AE13: =HLOOKUP(Calc!$Y$8,look1,Sunrise_set!A13+2) -> 518 | AF13: =HLOOKUP(Calc!$Z$8,look1,Sunrise_set!A13+2) -> 1920
A14: 12 | B14: 506 | C14: 1851 | D14: 512 | E14: 1900 | F14: 511 | G14: 1853 | H14: 521 | I14: 1910 | J14: 516 | K14: 1901 | L14: 510 | M14: 1905 | N14: 516 | O14: 1905 | P14: 517 | Q14: 1858 | R14: 510 | S14: 1851 | T14: 527 | U14: 1910 | V14: 526 | W14: 1905 | X14: 512 | Y14: 1903 | Z14: 519 | AA14: 1918 | AB14: 515 | AC14: 1922 | AE14: =HLOOKUP(Calc!$Y$8,look1,Sunrise_set!A14+2) -> 515 | AF14: =HLOOKUP(Calc!$Z$8,look1,Sunrise_set!A14+2) -> 1922
A15: 13 | B15: 504 | C15: 1852 | D15: 510 | E15: 1901 | F15: 509 | G15: 1855 | H15: 518 | I15: 1911 | J15: 513 | K15: 1903 | L15: 507 | M15: 1907 | N15: 513 | O15: 1907 | P15: 514 | Q15: 1859 | R15: 508 | S15: 1852 | T15: 525 | U15: 1912 | V15: 524 | W15: 1907 | X15: 510 | Y15: 1905 | Z15: 516 | AA15: 1920 | AB15: 512 | AC15: 1924 | AE15: =HLOOKUP(Calc!$Y$8,look1,Sunrise_set!A15+2) -> 512 | AF15: =HLOOKUP(Calc!$Z$8,look1,Sunrise_set!A15+2) -> 1924
A16: 14 | B16: 502 | C16: 1854 | D16: 508 | E16: 1903 | F16: 507 | G16: 1856 | H16: 516 | I16: 1913 | J16: 511 | K16: 1905 | L16: 505 | M16: 1909 | N16: 511 | O16: 1909 | P16: 512 | Q16: 1901 | R16: 506 | S16: 1854 | T16: 522 | U16: 1914 | V16: 521 | W16: 1908 | X16: 508 | Y16: 1907 | Z16: 513 | AA16: 1922 | AB16: 510 | AC16: 1926 | AE16: =HLOOKUP(Calc!$Y$8,look1,Sunrise_set!A16+2) -> 510 | AF16: =HLOOKUP(Calc!$Z$8,look1,Sunrise_set!A16+2) -> 1926
A17: 15 | B17: 459 | C17: 1856 | D17: 505 | E17: 1905 | F17: 504 | G17: 1858 | H17: 514 | I17: 1915 | J17: 509 | K17: 1907 | L17: 503 | M17: 1911 | N17: 509 | O17: 1911 | P17: 510 | Q17: 1903 | R17: 503 | S17: 1855 | T17: 520 | U17: 1915 | V17: 519 | W17: 1910 | X17: 505 | Y17: 1909 | Z17: 511 | AA17: 1924 | AB17: 507 | AC17: 1928 | AE17: =HLOOKUP(Calc!$Y$8,look1,Sunrise_set!A17+2) -> 507 | AF17: =HLOOKUP(Calc!$Z$8,look1,Sunrise_set!A17+2) -> 1928
A18: 16 | B18: 457 | C18: 1858 | D18: 503 | E18: 1907 | F18: 502 | G18: 1900 | H18: 512 | I18: 1917 | J18: 507 | K18: 1908 | L18: 500 | M18: 1913 | N18: 506 | O18: 1912 | P18: 508 | Q18: 1904 | R18: 501 | S18: 1857 | T18: 518 | U18: 1917 | V18: 517 | W18: 1911 | X18: 503 | Y18: 1910 | Z18: 508 | AA18: 1926 | AB18: 504 | AC18: 1930 | AE18: =HLOOKUP(Calc!$Y$8,look1,Sunrise_set!A18+2) -> 504 | AF18: =HLOOKUP(Calc!$Z$8,look1,Sunrise_set!A18+2) -> 1930
A19: 17 | B19: 455 | C19: 1859 | D19: 501 | E19: 1909 | F19: 500 | G19: 1901 | H19: 509 | I19: 1919 | J19: 505 | K19: 1910 | L19: 458 | M19: 1915 | N19: 504 | O19: 1914 | P19: 506 | Q19: 1906 | R19: 459 | S19: 1859 | T19: 516 | U19: 1919 | V19: 515 | W19: 1913 | X19: 501 | Y19: 1912 | Z19: 506 | AA19: 1928 | AB19: 502 | AC19: 1933 | AE19: =HLOOKUP(Calc!$Y$8,look1,Sunrise_set!A19+2) -> 502 | AF19: =HLOOKUP(Calc!$Z$8,look1,Sunrise_set!A19+2) -> 1933
A20: 18 | B20: 453 | C20: 1901 | D20: 459 | E20: 1910 | F20: 458 | G20: 1903 | H20: 507 | I20: 1920 | J20: 502 | K20: 1912 | L20: 455 | M20: 1917 | N20: 502 | O20: 1916 | P20: 504 | Q20: 1908 | R20: 457 | S20: 1900 | T20: 514 | U20: 1920 | V20: 513 | W20: 1915 | X20: 458 | Y20: 1914 | Z20: 504 | AA20: 1930 | AB20: 459 | AC20: 1935 | AE20: =HLOOKUP(Calc!$Y$8,look1,Sunrise_set!A20+2) -> 459 | AF20: =HLOOKUP(Calc!$Z$8,look1,Sunrise_set!A20+2) -> 1935
A21: 19 | B21: 451 | C21: 1903 | D21: 457 | E21: 1912 | F21: 456 | G21: 1905 | H21: 505 | I21: 1922 | J21: 500 | K21: 1914 | L21: 453 | M21: 1919 | N21: 500 | O21: 1918 | P21: 502 | Q21: 1909 | R21: 455 | S21: 1902 | T21: 512 | U21: 1922 | V21: 511 | W21: 1916 | X21: 456 | Y21: 1916 | Z21: 501 | AA21: 1932 | AB21: 456 | AC21: 1937 | AE21: =HLOOKUP(Calc!$Y$8,look1,Sunrise_set!A21+2) -> 456 | AF21: =HLOOKUP(Calc!$Z$8,look1,Sunrise_set!A21+2) -> 1937
A22: 20 | B22: 449 | C22: 1905 | D22: 454 | E22: 1914 | F22: 454 | G22: 1906 | H22: 503 | I22: 1924 | J22: 458 | K22: 1915 | L22: 451 | M22: 1921 | N22: 457 | O22: 1920 | P22: 500 | Q22: 1911 | R22: 453 | S22: 1904 | T22: 510 | U22: 1924 | V22: 509 | W22: 1918 | X22: 454 | Y22: 1918 | Z22: 459 | AA22: 1934 | AB22: 454 | AC22: 1939 | AE22: =HLOOKUP(Calc!$Y$8,look1,Sunrise_set!A22+2) -> 454 | AF22: =HLOOKUP(Calc!$Z$8,look1,Sunrise_set!A22+2) -> 1939
A23: 21 | B23: 446 | C23: 1906 | D23: 452 | E23: 1916 | F23: 452 | G23: 1908 | H23: 500 | I23: 1926 | J23: 456 | K23: 1917 | L23: 448 | M23: 1923 | N23: 455 | O23: 1921 | P23: 458 | Q23: 1912 | R23: 451 | S23: 1905 | T23: 507 | U23: 1925 | V23: 507 | W23: 1919 | X23: 452 | Y23: 1920 | Z23: 456 | AA23: 1936 | AB23: 451 | AC23: 1941 | AE23: =HLOOKUP(Calc!$Y$8,look1,Sunrise_set!A23+2) -> 451 | AF23: =HLOOKUP(Calc!$Z$8,look1,Sunrise_set!A23+2) -> 1941
A24: 22 | B24: 444 | C24: 1908 | D24: 450 | E24: 1917 | F24: 450 | G24: 1910 | H24: 458 | I24: 1928 | J24: 454 | K24: 1919 | L24: 446 | M24: 1925 | N24: 453 | O24: 1923 | P24: 456 | Q24: 1914 | R24: 449 | S24: 1907 | T24: 505 | U24: 1927 | V24: 505 | W24: 1921 | X24: 449 | Y24: 1922 | Z24: 454 | AA24: 1938 | AB24: 449 | AC24: 1944 | AE24: =HLOOKUP(Calc!$Y$8,look1,Sunrise_set!A24+2) -> 449 | AF24: =HLOOKUP(Calc!$Z$8,look1,Sunrise_set!A24+2) -> 1944
A25: 23 | B25: 442 | C25: 1910 | D25: 448 | E25: 1919 | F25: 448 | G25: 1911 | H25: 456 | I25: 1929 | J25: 452 | K25: 1921 | L25: 444 | M25: 1927 | N25: 451 | O25: 1925 | P25: 454 | Q25: 1916 | R25: 447 | S25: 1909 | T25: 503 | U25: 1929 | V25: 503 | W25: 1923 | X25: 447 | Y25: 1923 | Z25: 451 | AA25: 1940 | AB25: 446 | AC25: 1946 | AE25: =HLOOKUP(Calc!$Y$8,look1,Sunrise_set!A25+2) -> 446 | AF25: =HLOOKUP(Calc!$Z$8,look1,Sunrise_set!A25+2) -> 1946
A26: 24 | B26: 440 | C26: 1911 | D26: 446 | E26: 1921 | F26: 446 | G26: 1913 | H26: 454 | I26: 1931 | J26: 450 | K26: 1922 | L26: 441 | M26: 1929 | N26: 448 | O26: 1927 | P26: 452 | Q26: 1917 | R26: 445 | S26: 1910 | T26: 501 | U26: 1931 | V26: 501 | W26: 1924 | X26: 445 | Y26: 1925 | Z26: 449 | AA26: 1942 | AB26: 444 | AC26: 1948 | AE26: =HLOOKUP(Calc!$Y$8,look1,Sunrise_set!A26+2) -> 444 | AF26: =HLOOKUP(Calc!$Z$8,look1,Sunrise_set!A26+2) -> 1948
A27: 25 | B27: 438 | C27: 1913 | D27: 444 | E27: 1923 | F27: 444 | G27: 1915 | H27: 452 | I27: 1933 | J27: 448 | K27: 1924 | L27: 439 | M27: 1931 | N27: 446 | O27: 1929 | P27: 450 | Q27: 1919 | R27: 443 | S27: 1912 | T27: 459 | U27: 1932 | V27: 459 | W27: 1926 | X27: 443 | Y27: 1927 | Z27: 447 | AA27: 1944 | AB27: 441 | AC27: 1950 | AE27: =HLOOKUP(Calc!$Y$8,look1,Sunrise_set!A27+2) -> 441 | AF27: =HLOOKUP(Calc!$Z$8,look1,Sunrise_set!A27+2) -> 1950
A28: 26 | B28: 436 | C28: 1915 | D28: 441 | E28: 1925 | F28: 442 | G28: 1916 | H28: 450 | I28: 1935 | J28: 446 | K28: 1926 | L28: 437 | M28: 1933 | N28: 444 | O28: 1931 | P28: 448 | Q28: 1921 | R28: 441 | S28: 1913 | T28: 457 | U28: 1934 | V28: 457 | W28: 1927 | X28: 440 | Y28: 1929 | Z28: 444 | AA28: 1946 | AB28: 439 | AC28: 1952 | AE28: =HLOOKUP(Calc!$Y$8,look1,Sunrise_set!A28+2) -> 439 | AF28: =HLOOKUP(Calc!$Z$8,look1,Sunrise_set!A28+2) -> 1952
A29: 27 | B29: 434 | C29: 1917 | D29: 439 | E29: 1926 | F29: 440 | G29: 1918 | H29: 448 | I29: 1937 | J29: 443 | K29: 1928 | L29: 435 | M29: 1935 | N29: 442 | O29: 1932 | P29: 446 | Q29: 1922 | R29: 439 | S29: 1915 | T29: 455 | U29: 1936 | V29: 455 | W29: 1929 | X29: 438 | Y29: 1931 | Z29: 442 | AA29: 1948 | AB29: 436 | AC29: 1954 | AE29: =HLOOKUP(Calc!$Y$8,look1,Sunrise_set!A29+2) -> 436 | AF29: =HLOOKUP(Calc!$Z$8,look1,Sunrise_set!A29+2) -> 1954
A30: 28 | B30: 432 | C30: 1918 | D30: 437 | E30: 1928 | F30: 438 | G30: 1920 | H30: 445 | I30: 1938 | J30: 441 | K30: 1929 | L30: 432 | M30: 1937 | N30: 440 | O30: 1934 | P30: 444 | Q30: 1924 | R30: 437 | S30: 1917 | T30: 453 | U30: 1937 | V30: 453 | W30: 1931 | X30: 436 | Y30: 1933 | Z30: 440 | AA30: 1950 | AB30: 434 | AC30: 1957 | AE30: =HLOOKUP(Calc!$Y$8,look1,Sunrise_set!A30+2) -> 434 | AF30: =HLOOKUP(Calc!$Z$8,look1,Sunrise_set!A30+2) -> 1957
A31: 29 | B31: 430 | C31: 1920 | D31: 435 | E31: 1930 | F31: 436 | G31: 1921 | H31: 443 | I31: 1940 | J31: 439 | K31: 1931 | L31: 430 | M31: 1938 | N31: 438 | O31: 1936 | P31: 442 | Q31: 1926 | R31: 435 | S31: 1918 | T31: 451 | U31: 1939 | V31: 452 | W31: 1932 | X31: 434 | Y31: 1934 | Z31: 437 | AA31: 1952 | AB31: 431 | AC31: 1959 | AE31: =HLOOKUP(Calc!$Y$8,look1,Sunrise_set!A31+2) -> 431 | AF31: =HLOOKUP(Calc!$Z$8,look1,Sunrise_set!A31+2) -> 1959
A32: 30 | B32: 428 | C32: 1922 | D32: 433 | E32: 1932 | F32: 434 | G32: 1923 | H32: 441 | I32: 1942 | J32: 437 | K32: 1933 | L32: 428 | M32: 1940 | N32: 436 | O32: 1938 | P32: 440 | Q32: 1927 | R32: 433 | S32: 1920 | T32: 449 | U32: 1941 | V32: 450 | W32: 1934 | X32: 432 | Y32: 1936 | Z32: 435 | AA32: 1954 | AB32: 429 | AC32: 2001 | AE32: =HLOOKUP(Calc!$Y$8,look1,Sunrise_set!A32+2) -> 429 | AF32: =HLOOKUP(Calc!$Z$8,look1,Sunrise_set!A32+2) -> 2001
A33: 31 | B33: 426 | C33: 1923 | D33: 431 | E33: 1933 | F33: 432 | G33: 1924 | H33: 439 | I33: 1944 | J33: 436 | K33: 1934 | L33: 426 | M33: 1942 | N33: 434 | O33: 1940 | P33: 438 | Q33: 1929 | R33: 431 | S33: 1922 | T33: 448 | U33: 1942 | V33: 448 | W33: 1935 | X33: 430 | Y33: 1938 | Z33: 433 | AA33: 1956 | AB33: 426 | AC33: 2003 | AE33: =HLOOKUP(Calc!$Y$8,look1,Sunrise_set!A33+2) -> 426 | AF33: =HLOOKUP(Calc!$Z$8,look1,Sunrise_set!A33+2) -> 2003
A34: 32 | B34: 424 | C34: 1925 | D34: 429 | E34: 1935 | F34: 430 | G34: 1926 | H34: 437 | I34: 1946 | J34: 434 | K34: 1936 | L34: 424 | M34: 1944 | N34: 432 | O34: 1941 | P34: 436 | Q34: 1930 | R34: 430 | S34: 1923 | T34: 446 | U34: 1944 | V34: 446 | W34: 1937 | X34: 428 | Y34: 1940 | Z34: 431 | AA34: 1958 | AB34: 424 | AC34: 2005 | AE34: =HLOOKUP(Calc!$Y$8,look1,Sunrise_set!A34+2) -> 424 | AF34: =HLOOKUP(Calc!$Z$8,look1,Sunrise_set!A34+2) -> 2005
A35: 33 | B35: 422 | C35: 1927 | D35: 427 | E35: 1937 | F35: 428 | G35: 1928 | H35: 435 | I35: 1947 | J35: 432 | K35: 1938 | L35: 421 | M35: 1946 | N35: 430 | O35: 1943 | P35: 434 | Q35: 1932 | R35: 428 | S35: 1925 | T35: 444 | U35: 1946 | V35: 444 | W35: 1939 | X35: 426 | Y35: 1942 | Z35: 428 | AA35: 2000 | AB35: 422 | AC35: 2007 | AE35: =HLOOKUP(Calc!$Y$8,look1,Sunrise_set!A35+2) -> 422 | AF35: =HLOOKUP(Calc!$Z$8,look1,Sunrise_set!A35+2) -> 2007
A36: 34 | B36: 420 | C36: 1928 | D36: 425 | E36: 1939 | F36: 427 | G36: 1929 | H36: 433 | I36: 1949 | J36: 430 | K36: 1940 | L36: 419 | M36: 1948 | N36: 428 | O36: 1945 | P36: 433 | Q36: 1934 | R36: 426 | S36: 1926 | T36: 442 | U36: 1947 | V36: 443 | W36: 1940 | X36: 424 | Y36: 1943 | Z36: 426 | AA36: 2002 | AB36: 419 | AC36: 2010 | AE36: =HLOOKUP(Calc!$Y$8,look1,Sunrise_set!A36+2) -> 419 | AF36: =HLOOKUP(Calc!$Z$8,look1,Sunrise_set!A36+2) -> 2010
A37: 35 | B37: 419 | C37: 1930 | D37: 424 | E37: 1940 | F37: 425 | G37: 1931 | H37: 431 | I37: 1951 | J37: 428 | K37: 1941 | L37: 417 | M37: 1950 | N37: 426 | O37: 1947 | P37: 431 | Q37: 1935 | R37: 424 | S37: 1928 | T37: 440 | U37: 1949 | V37: 441 | W37: 1942 | X37: 422 | Y37: 1945 | Z37: 424 | AA37: 2004 | AB37: 417 | AC37: 2012 | AE37: =HLOOKUP(Calc!$Y$8,look1,Sunrise_set!A37+2) -> 417 | AF37: =HLOOKUP(Calc!$Z$8,look1,Sunrise_set!A37+2) -> 2012
A38: 36 | B38: 417 | C38: 1932 | D38: 422 | E38: 1942 | F38: 423 | G38: 1933 | H38: 430 | I38: 1953 | J38: 426 | K38: 1943 | L38: 415 | M38: 1952 | N38: 424 | O38: 1948 | P38: 429 | Q38: 1937 | R38: 423 | S38: 1930 | T38: 438 | U38: 1951 | V38: 439 | W38: 1943 | X38: 420 | Y38: 1947 | Z38: 422 | AA38: 2006 | AB38: 415 | AC38: 2014 | AE38: =HLOOKUP(Calc!$Y$8,look1,Sunrise_set!A38+2) -> 415 | AF38: =HLOOKUP(Calc!$Z$8,look1,Sunrise_set!A38+2) -> 2014
A39: 37 | B39: 415 | C39: 1933 | D39: 420 | E39: 1944 | F39: 421 | G39: 1934 | H39: 428 | I39: 1954 | J39: 424 | K39: 1945 | L39: 413 | M39: 1954 | N39: 422 | O39: 1950 | P39: 427 | Q39: 1938 | R39: 421 | S39: 1931 | T39: 437 | U39: 1952 | V39: 437 | W39: 1945 | X39: 418 | Y39: 1949 | Z39: 420 | AA39: 2008 | AB39: 412 | AC39: 2016 | AE39: =HLOOKUP(Calc!$Y$8,look1,Sunrise_set!A39+2) -> 412 | AF39: =HLOOKUP(Calc!$Z$8,look1,Sunrise_set!A39+2) -> 2016
A40: 38 | B40: 413 | C40: 1935 | D40: 418 | E40: 1945 | F40: 420 | G40: 1936 | H40: 426 | I40: 1956 | J40: 422 | K40: 1946 | L40: 411 | M40: 1956 | N40: 420 | O40: 1952 | P40: 426 | Q40: 1940 | R40: 419 | S40: 1933 | T40: 435 | U40: 1954 | V40: 436 | W40: 1946 | X40: 416 | Y40: 1951 | Z40: 418 | AA40: 2010 | AB40: 410 | AC40: 2018 | AE40: =HLOOKUP(Calc!$Y$8,look1,Sunrise_set!A40+2) -> 410 | AF40: =HLOOKUP(Calc!$Z$8,look1,Sunrise_set!A40+2) -> 2018
A41: 39 | B41: 412 | C41: 1937 | D41: 416 | E41: 1947 | F41: 418 | G41: 1937 | H41: 424 | I41: 1958 | J41: 421 | K41: 1948 | L41: 409 | M41: 1957 | N41: 418 | O41: 1954 | P41: 424 | Q41: 1942 | R41: 417 | S41: 1934 | T41: 433 | U41: 1955 | V41: 434 | W41: 1948 | X41: 414 | Y41: 1952 | Z41: 416 | AA41: 2012 | AB41: 408 | AC41: 2020 | AE41: =HLOOKUP(Calc!$Y$8,look1,Sunrise_set!A41+2) -> 408 | AF41: =HLOOKUP(Calc!$Z$8,look1,Sunrise_set!A41+2) -> 2020
A42: 40 | B42: 410 | C42: 1938 | D42: 414 | E42: 1949 | F42: 416 | G42: 1939 | H42: 422 | I42: 1959 | J42: 419 | K42: 1950 | L42: 407 | M42: 1959 | N42: 417 | O42: 1955 | P42: 422 | Q42: 1943 | R42: 416 | S42: 1936 | T42: 431 | U42: 1957 | V42: 433 | W42: 1949 | X42: 413 | Y42: 1954 | Z42: 414 | AA42: 2014 | AB42: 406 | AC42: 2022 | AE42: =HLOOKUP(Calc!$Y$8,look1,Sunrise_set!A42+2) -> 406 | AF42: =HLOOKUP(Calc!$Z$8,look1,Sunrise_set!A42+2) -> 2022
A43: 41 | B43: 408 | C43: 1940 | D43: 413 | E43: 1950 | F43: 415 | G43: 1940 | H43: 421 | I43: 2001 | J43: 417 | K43: 1951 | L43: 406 | M43: 2001 | N43: 415 | O43: 1957 | P43: 421 | Q43: 1945 | R43: 414 | S43: 1937 | T43: 430 | U43: 1959 | V43: 431 | W43: 1951 | X43: 411 | Y43: 1956 | Z43: 412 | AA43: 2016 | AB43: 404 | AC43: 2024 | AE43: =HLOOKUP(Calc!$Y$8,look1,Sunrise_set!A43+2) -> 404 | AF43: =HLOOKUP(Calc!$Z$8,look1,Sunrise_set!A43+2) -> 2024
A44: 42 | B44: 406 | C44: 1942 | D44: 411 | E44: 1952 | F44: 413 | G44: 1942 | H44: 419 | I44: 2003 | J44: 416 | K44: 1953 | L44: 404 | M44: 2003 | N44: 413 | O44: 1959 | P44: 419 | Q44: 1946 | R44: 413 | S44: 1939 | T44: 428 | U44: 2000 | V44: 429 | W44: 1952 | X44: 409 | Y44: 1958 | Z44: 410 | AA44: 2018 | AB44: 401 | AC44: 2026 | AE44: =HLOOKUP(Calc!$Y$8,look1,Sunrise_set!A44+2) -> 401 | AF44: =HLOOKUP(Calc!$Z$8,look1,Sunrise_set!A44+2) -> 2026
A45: 43 | B45: 405 | C45: 1943 | D45: 409 | E45: 1954 | F45: 411 | G45: 1944 | H45: 417 | I45: 2005 | J45: 414 | K45: 1954 | L45: 402 | M45: 2005 | N45: 411 | O45: 2000 | P45: 418 | Q45: 1948 | R45: 411 | S45: 1940 | T45: 427 | U45: 2002 | V45: 428 | W45: 1954 | X45: 407 | Y45: 1959 | Z45: 408 | AA45: 2020 | AB45: 359 | AC45: 2029 | AE45: =HLOOKUP(Calc!$Y$8,look1,Sunrise_set!A45+2) -> 359 | AF45: =HLOOKUP(Calc!$Z$8,look1,Sunrise_set!A45+2) -> 2029
A46: 44 | B46: 403 | C46: 1945 | D46: 408 | E46: 1955 | F46: 410 | G46: 1945 | H46: 415 | I46: 2006 | J46: 412 | K46: 1956 | L46: 400 | M46: 2006 | N46: 410 | O46: 2002 | P46: 416 | Q46: 1949 | R46: 410 | S46: 1942 | T46: 425 | U46: 2003 | V46: 426 | W46: 1955 | X46: 406 | Y46: 2001 | Z46: 406 | AA46: 2022 | AB46: 357 | AC46: 2031 | AE46: =HLOOKUP(Calc!$Y$8,look1,Sunrise_set!A46+2) -> 357 | AF46: =HLOOKUP(Calc!$Z$8,look1,Sunrise_set!A46+2) -> 2031
A47: 45 | B47: 402 | C47: 1946 | D47: 406 | E47: 1957 | F47: 408 | G47: 1947 | H47: 414 | I47: 2008 | J47: 411 | K47: 1958 | L47: 358 | M47: 2008 | N47: 408 | O47: 2004 | P47: 415 | Q47: 1951 | R47: 408 | S47: 1943 | T47: 424 | U47: 2005 | V47: 425 | W47: 1957 | X47: 404 | Y47: 2003 | Z47: 404 | AA47: 2024 | AB47: 355 | AC47: 2033 | AE47: =HLOOKUP(Calc!$Y$8,look1,Sunrise_set!A47+2) -> 355 | AF47: =HLOOKUP(Calc!$Z$8,look1,Sunrise_set!A47+2) -> 2033
A48: 46 | B48: 400 | C48: 1948 | D48: 405 | E48: 1959 | F48: 407 | G48: 1948 | H48: 412 | I48: 2009 | J48: 409 | K48: 1959 | L48: 357 | M48: 2010 | N48: 406 | O48: 2005 | P48: 413 | Q48: 1952 | R48: 407 | S48: 1945 | T48: 422 | U48: 2006 | V48: 424 | W48: 1958 | X48: 402 | Y48: 2004 | Z48: 402 | AA48: 2025 | AB48: 353 | AC48: 2035 | AE48: =HLOOKUP(Calc!$Y$8,look1,Sunrise_set!A48+2) -> 353 | AF48: =HLOOKUP(Calc!$Z$8,look1,Sunrise_set!A48+2) -> 2035
A49: 47 | B49: 359 | C49: 1949 | D49: 403 | E49: 2000 | F49: 406 | G49: 1950 | H49: 411 | I49: 2011 | J49: 408 | K49: 2001 | L49: 355 | M49: 2012 | N49: 405 | O49: 2007 | P49: 412 | Q49: 1954 | R49: 405 | S49: 1946 | T49: 421 | U49: 2008 | V49: 422 | W49: 2000 | X49: 401 | Y49: 2006 | Z49: 401 | AA49: 2027 | AB49: 351 | AC49: 2037 | AE49: =HLOOKUP(Calc!$Y$8,look1,Sunrise_set!A49+2) -> 351 | AF49: =HLOOKUP(Calc!$Z$8,look1,Sunrise_set!A49+2) -> 2037
A50: 48 | B50: 357 | C50: 1951 | D50: 402 | E50: 2002 | F50: 404 | G50: 1951 | H50: 409 | I50: 2013 | J50: 406 | K50: 2002 | L50: 353 | M50: 2013 | N50: 403 | O50: 2009 | P50: 411 | Q50: 1955 | R50: 404 | S50: 1948 | T50: 419 | U50: 2009 | V50: 421 | W50: 2001 | X50: 359 | Y50: 2007 | Z50: 359 | AA50: 2029 | AB50: 350 | AC50: 2039 | AE50: =HLOOKUP(Calc!$Y$8,look1,Sunrise_set!A50+2) -> 350 | AF50: =HLOOKUP(Calc!$Z$8,look1,Sunrise_set!A50+2) -> 2039
A51: 49 | B51: 356 | C51: 1952 | D51: 400 | E51: 2003 | F51: 403 | G51: 1952 | H51: 408 | I51: 2014 | J51: 405 | K51: 2004 | L51: 352 | M51: 2015 | N51: 402 | O51: 2010 | P51: 409 | Q51: 1956 | R51: 403 | S51: 1949 | T51: 418 | U51: 2011 | V51: 420 | W51: 2002 | X51: 358 | Y51: 2009 | Z51: 357 | AA51: 2031 | AB51: 348 | AC51: 2040 | AE51: =HLOOKUP(Calc!$Y$8,look1,Sunrise_set!A51+2) -> 348 | AF51: =HLOOKUP(Calc!$Z$8,look1,Sunrise_set!A51+2) -> 2040
A52: 50 | B52: 355 | C52: 1954 | D52: 359 | E52: 2005 | F52: 402 | G52: 1954 | H52: 406 | I52: 2016 | J52: 404 | K52: 2005 | L52: 350 | M52: 2017 | N52: 400 | O52: 2012 | P52: 408 | Q52: 1958 | R52: 401 | S52: 1950 | T52: 416 | U52: 2012 | V52: 418 | W52: 2004 | X52: 356 | Y52: 2011 | Z52: 356 | AA52: 2032 | AB52: 346 | AC52: 2042 | AE52: =HLOOKUP(Calc!$Y$8,look1,Sunrise_set!A52+2) -> 346 | AF52: =HLOOKUP(Calc!$Z$8,look1,Sunrise_set!A52+2) -> 2042
A53: 51 | B53: 353 | C53: 1955 | D53: 357 | E53: 2006 | F53: 400 | G53: 1955 | H53: 405 | I53: 2017 | J53: 402 | K53: 2006 | L53: 349 | M53: 2018 | N53: 359 | O53: 2013 | P53: 407 | Q53: 1959 | R53: 400 | S53: 1952 | T53: 415 | U53: 2013 | V53: 417 | W53: 2005 | X53: 355 | Y53: 2012 | Z53: 354 | AA53: 2034 | AB53: 344 | AC53: 2044 | AE53: =HLOOKUP(Calc!$Y$8,look1,Sunrise_set!A53+2) -> 344 | AF53: =HLOOKUP(Calc!$Z$8,look1,Sunrise_set!A53+2) -> 2044
A54: 52 | B54: 352 | C54: 1957 | D54: 356 | E54: 2008 | F54: 359 | G54: 1957 | H54: 404 | I54: 2019 | J54: 401 | K54: 2008 | L54: 347 | M54: 2020 | N54: 358 | O54: 2015 | P54: 405 | Q54: 2000 | R54: 359 | S54: 1953 | T54: 414 | U54: 2015 | V54: 416 | W54: 2006 | X54: 353 | Y54: 2014 | Z54: 352 | AA54: 2036 | AB54: 342 | AC54: 2046 | AE54: =HLOOKUP(Calc!$Y$8,look1,Sunrise_set!A54+2) -> 342 | AF54: =HLOOKUP(Calc!$Z$8,look1,Sunrise_set!A54+2) -> 2046
A55: 53 | B55: 351 | C55: 1958 | D55: 355 | E55: 2009 | F55: 358 | G55: 1958 | H55: 402 | I55: 2020 | J55: 400 | K55: 2009 | L55: 346 | M55: 2022 | N55: 356 | O55: 2016 | P55: 404 | Q55: 2002 | R55: 358 | S55: 1954 | T55: 413 | U55: 2016 | V55: 415 | W55: 2008 | X55: 352 | Y55: 2015 | Z55: 351 | AA55: 2038 | AB55: 341 | AC55: 2048 | AE55: =HLOOKUP(Calc!$Y$8,look1,Sunrise_set!A55+2) -> 341 | AF55: =HLOOKUP(Calc!$Z$8,look1,Sunrise_set!A55+2) -> 2048
A56: 54 | B56: 350 | C56: 1959 | D56: 354 | E56: 2010 | F56: 357 | G56: 1959 | H56: 401 | I56: 2022 | J56: 359 | K56: 2011 | L56: 344 | M56: 2023 | N56: 355 | O56: 2018 | P56: 403 | Q56: 2003 | R56: 357 | S56: 1956 | T56: 412 | U56: 2018 | V56: 414 | W56: 2009 | X56: 351 | Y56: 2017 | Z56: 350 | AA56: 2039 | AB56: 339 | AC56: 2050 | AE56: =HLOOKUP(Calc!$Y$8,look1,Sunrise_set!A56+2) -> 339 | AF56: =HLOOKUP(Calc!$Z$8,look1,Sunrise_set!A56+2) -> 2050
A57: 55 | B57: 348 | C57: 2001 | D57: 352 | E57: 2012 | F57: 356 | G57: 2000 | H57: 400 | I57: 2023 | J57: 357 | K57: 2012 | L57: 343 | M57: 2025 | N57: 354 | O57: 2019 | P57: 402 | Q57: 2004 | R57: 356 | S57: 1957 | T57: 410 | U57: 2019 | V57: 413 | W57: 2010 | X57: 349 | Y57: 2018 | Z57: 348 | AA57: 2041 | AB57: 338 | AC57: 2051 | AE57: =HLOOKUP(Calc!$Y$8,look1,Sunrise_set!A57+2) -> 338 | AF57: =HLOOKUP(Calc!$Z$8,look1,Sunrise_set!A57+2) -> 2051
A58: 56 | B58: 347 | C58: 2002 | D58: 351 | E58: 2013 | F58: 355 | G58: 2002 | H58: 359 | I58: 2024 | J58: 356 | K58: 2013 | L58: 342 | M58: 2026 | N58: 353 | O58: 2020 | P58: 401 | Q58: 2006 | R58: 355 | S58: 1958 | T58: 409 | U58: 2020 | V58: 412 | W58: 2011 | X58: 348 | Y58: 2019 | Z58: 347 | AA58: 2042 | AB58: 336 | AC58: 2053 | AE58: =HLOOKUP(Calc!$Y$8,look1,Sunrise_set!A58+2) -> 336 | AF58: =HLOOKUP(Calc!$Z$8,look1,Sunrise_set!A58+2) -> 2053
A59: 57 | B59: 346 | C59: 2003 | D59: 350 | E59: 2015 | F59: 354 | G59: 2003 | H59: 357 | I59: 2026 | J59: 355 | K59: 2015 | L59: 340 | M59: 2028 | N59: 352 | O59: 2022 | P59: 400 | Q59: 2007 | R59: 354 | S59: 1959 | T59: 408 | U59: 2021 | V59: 411 | W59: 2013 | X59: 347 | Y59: 2021 | Z59: 345 | AA59: 2044 | AB59: 335 | AC59: 2055 | AE59: =HLOOKUP(Calc!$Y$8,look1,Sunrise_set!A59+2) -> 335 | AF59: =HLOOKUP(Calc!$Z$8,look1,Sunrise_set!A59+2) -> 2055
A60: 58 | B60: 345 | C60: 2004 | D60: 349 | E60: 2016 | F60: 353 | G60: 2004 | H60: 356 | I60: 2027 | J60: 354 | K60: 2016 | L60: 339 | M60: 2029 | N60: 350 | O60: 2023 | P60: 359 | Q60: 2008 | R60: 353 | S60: 2001 | T60: 407 | U60: 2023 | V60: 410 | W60: 2014 | X60: 346 | Y60: 2022 | Z60: 344 | AA60: 2045 | AB60: 333 | AC60: 2056 | AE60: =HLOOKUP(Calc!$Y$8,look1,Sunrise_set!A60+2) -> 333 | AF60: =HLOOKUP(Calc!$Z$8,look1,Sunrise_set!A60+2) -> 2056
A61: 59 | B61: 344 | C61: 2006 | D61: 348 | E61: 2017 | F61: 352 | G61: 2005 | H61: 355 | I61: 2028 | J61: 353 | K61: 2017 | L61: 338 | M61: 2030 | N61: 349 | O61: 2024 | P61: 358 | Q61: 2009 | R61: 352 | S61: 2002 | T61: 406 | U61: 2024 | V61: 409 | W61: 2015 | X61: 345 | Y61: 2024 | Z61: 343 | AA61: 2047 | AB61: 332 | AC61: 2058 | AE61: =HLOOKUP(Calc!$Y$8,look1,Sunrise_set!A61+2) -> 332 | AF61: =HLOOKUP(Calc!$Z$8,look1,Sunrise_set!A61+2) -> 2058
A62: 60 | B62: 343 | C62: 2007 | D62: 347 | E62: 2018 | F62: 351 | G62: 2007 | H62: 354 | I62: 2030 | J62: 352 | K62: 2018 | L62: 337 | M62: 2032 | N62: 348 | O62: 2026 | P62: 357 | Q62: 2010 | R62: 351 | S62: 2003 | T62: 405 | U62: 2025 | V62: 408 | W62: 2016 | X62: 344 | Y62: 2025 | Z62: 342 | AA62: 2048 | AB62: 330 | AC62: 2100 | AE62: =HLOOKUP(Calc!$Y$8,look1,Sunrise_set!A62+2) -> 330 | AF62: =HLOOKUP(Calc!$Z$8,look1,Sunrise_set!A62+2) -> 2100
A63: 61 | B63: 342 | C63: 2008 | D63: 346 | E63: 2019 | F63: 350 | G63: 2008 | H63: 353 | I63: 2031 | J63: 351 | K63: 2020 | L63: 336 | M63: 2033 | N63: 347 | O63: 2027 | P63: 356 | Q63: 2011 | R63: 350 | S63: 2004 | T63: 404 | U63: 2026 | V63: 407 | W63: 2017 | X63: 343 | Y63: 2026 | Z63: 341 | AA63: 2050 | AB63: 329 | AC63: 2101 | AE63: =HLOOKUP(Calc!$Y$8,look1,Sunrise_set!A63+2) -> 329 | AF63: =HLOOKUP(Calc!$Z$8,look1,Sunrise_set!A63+2) -> 2101
A64: 62 | B64: 342 | C64: 2009 | D64: 345 | E64: 2021 | F64: 349 | G64: 2009 | H64: 352 | I64: 2032 | J64: 350 | K64: 2021 | L64: 335 | M64: 2034 | N64: 346 | O64: 2028 | P64: 356 | Q64: 2012 | R64: 349 | S64: 2005 | T64: 404 | U64: 2027 | V64: 406 | W64: 2018 | X64: 342 | Y64: 2027 | Z64: 340 | AA64: 2051 | AB64: 328 | AC64: 2103 | AE64: =HLOOKUP(Calc!$Y$8,look1,Sunrise_set!A64+2) -> 328 | AF64: =HLOOKUP(Calc!$Z$8,look1,Sunrise_set!A64+2) -> 2103
A65: 63 | B65: 341 | C65: 2010 | D65: 344 | E65: 2022 | F65: 348 | G65: 2010 | H65: 352 | I65: 2033 | J65: 350 | K65: 2022 | L65: 334 | M65: 2036 | N65: 346 | O65: 2029 | P65: 355 | Q65: 2014 | R65: 348 | S65: 2006 | T65: 403 | U65: 2028 | V65: 406 | W65: 2019 | X65: 341 | Y65: 2028 | Z65: 339 | AA65: 2052 | AB65: 327 | AC65: 2104 | AE65: =HLOOKUP(Calc!$Y$8,look1,Sunrise_set!A65+2) -> 327 | AF65: =HLOOKUP(Calc!$Z$8,look1,Sunrise_set!A65+2) -> 2104
A66: 64 | B66: 340 | C66: 2011 | D66: 344 | E66: 2023 | F66: 348 | G66: 2011 | H66: 351 | I66: 2034 | J66: 349 | K66: 2023 | L66: 333 | M66: 2037 | N66: 345 | O66: 2030 | P66: 354 | Q66: 2015 | R66: 348 | S66: 2007 | T66: 402 | U66: 2029 | V66: 405 | W66: 2020 | X66: 340 | Y66: 2030 | Z66: 338 | AA66: 2054 | AB66: 326 | AC66: 2105 | AE66: =HLOOKUP(Calc!$Y$8,look1,Sunrise_set!A66+2) -> 326 | AF66: =HLOOKUP(Calc!$Z$8,look1,Sunrise_set!A66+2) -> 2105
A67: 65 | B67: 339 | C67: 2012 | D67: 343 | E67: 2024 | F67: 347 | G67: 2012 | H67: 350 | I67: 2035 | J67: 348 | K67: 2024 | L67: 332 | M67: 2038 | N67: 344 | O67: 2031 | P67: 354 | Q67: 2016 | R67: 347 | S67: 2008 | T67: 402 | U67: 2030 | V67: 404 | W67: 2021 | X67: 339 | Y67: 2031 | Z67: 337 | AA67: 2055 | AB67: 325 | AC67: 2107 | AE67: =HLOOKUP(Calc!$Y$8,look1,Sunrise_set!A67+2) -> 325 | AF67: =HLOOKUP(Calc!$Z$8,look1,Sunrise_set!A67+2) -> 2107
A68: 66 | B68: 339 | C68: 2013 | D68: 342 | E68: 2025 | F68: 346 | G68: 2013 | H68: 349 | I68: 2036 | J68: 348 | K68: 2025 | L68: 331 | M68: 2039 | N68: 343 | O68: 2032 | P68: 353 | Q68: 2016 | R68: 346 | S68: 2009 | T68: 401 | U68: 2031 | V68: 404 | W68: 2022 | X68: 339 | Y68: 2032 | Z68: 336 | AA68: 2056 | AB68: 324 | AC68: 2108 | AE68: =HLOOKUP(Calc!$Y$8,look1,Sunrise_set!A68+2) -> 324 | AF68: =HLOOKUP(Calc!$Z$8,look1,Sunrise_set!A68+2) -> 2108
A69: 67 | B69: 338 | C69: 2014 | D69: 342 | E69: 2026 | F69: 346 | G69: 2014 | H69: 349 | I69: 2037 | J69: 347 | K69: 2026 | L69: 331 | M69: 2040 | N69: 343 | O69: 2033 | P69: 352 | Q69: 2017 | R69: 346 | S69: 2010 | T69: 400 | U69: 2032 | V69: 403 | W69: 2023 | X69: 338 | Y69: 2033 | Z69: 335 | AA69: 2057 | AB69: 323 | AC69: 2109 | AE69: =HLOOKUP(Calc!$Y$8,look1,Sunrise_set!A69+2) -> 323 | AF69: =HLOOKUP(Calc!$Z$8,look1,Sunrise_set!A69+2) -> 2109
A70: 68 | B70: 338 | C70: 2015 | D70: 341 | E70: 2027 | F70: 345 | G70: 2014 | H70: 348 | I70: 2038 | J70: 346 | K70: 2027 | L70: 330 | M70: 2041 | N70: 342 | O70: 2034 | P70: 352 | Q70: 2018 | R70: 345 | S70: 2011 | T70: 400 | U70: 2033 | V70: 403 | W70: 2024 | X70: 337 | Y70: 2034 | Z70: 334 | AA70: 2058 | AB70: 322 | AC70: 2110 | AE70: =HLOOKUP(Calc!$Y$8,look1,Sunrise_set!A70+2) -> 322 | AF70: =HLOOKUP(Calc!$Z$8,look1,Sunrise_set!A70+2) -> 2110
A71: 69 | B71: 337 | C71: 2016 | D71: 340 | E71: 2028 | F71: 345 | G71: 2015 | H71: 348 | I71: 2039 | J71: 346 | K71: 2028 | L71: 329 | M71: 2042 | N71: 342 | O71: 2035 | P71: 351 | Q71: 2019 | R71: 345 | S71: 2012 | T71: 359 | U71: 2034 | V71: 402 | W71: 2025 | X71: 337 | Y71: 2035 | Z71: 334 | AA71: 2059 | AB71: 321 | AC71: 2111 | AE71: =HLOOKUP(Calc!$Y$8,look1,Sunrise_set!A71+2) -> 321 | AF71: =HLOOKUP(Calc!$Z$8,look1,Sunrise_set!A71+2) -> 2111
A72: 70 | B72: 337 | C72: 2017 | D72: 340 | E72: 2028 | F72: 344 | G72: 2016 | H72: 347 | I72: 2040 | J72: 345 | K72: 2028 | L72: 329 | M72: 2043 | N72: 341 | O72: 2036 | P72: 351 | Q72: 2020 | R72: 345 | S72: 2012 | T72: 359 | U72: 2035 | V72: 402 | W72: 2025 | X72: 336 | Y72: 2035 | Z72: 333 | AA72: 2100 | AB72: 321 | AC72: 2112 | AE72: =HLOOKUP(Calc!$Y$8,look1,Sunrise_set!A72+2) -> 321 | AF72: =HLOOKUP(Calc!$Z$8,look1,Sunrise_set!A72+2) -> 2112
A73: 71 | B73: 336 | C73: 2017 | D73: 340 | E73: 2029 | F73: 344 | G73: 2017 | H73: 347 | I73: 2041 | J73: 345 | K73: 2029 | L73: 328 | M73: 2044 | N73: 341 | O73: 2037 | P73: 351 | Q73: 2020 | R73: 344 | S73: 2013 | T73: 359 | U73: 2035 | V73: 402 | W73: 2026 | X73: 336 | Y73: 2036 | Z73: 333 | AA73: 2101 | AB73: 320 | AC73: 2113 | AE73: =HLOOKUP(Calc!$Y$8,look1,Sunrise_set!A73+2) -> 320 | AF73: =HLOOKUP(Calc!$Z$8,look1,Sunrise_set!A73+2) -> 2113
A74: 72 | B74: 336 | C74: 2018 | D74: 339 | E74: 2030 | F74: 344 | G74: 2017 | H74: 346 | I74: 2041 | J74: 345 | K74: 2030 | L74: 328 | M74: 2045 | N74: 340 | O74: 2038 | P74: 350 | Q74: 2021 | R74: 344 | S74: 2014 | T74: 358 | U74: 2036 | V74: 401 | W74: 2027 | X74: 336 | Y74: 2037 | Z74: 332 | AA74: 2102 | AB74: 320 | AC74: 2114 | AE74: =HLOOKUP(Calc!$Y$8,look1,Sunrise_set!A74+2) -> 320 | AF74: =HLOOKUP(Calc!$Z$8,look1,Sunrise_set!A74+2) -> 2114
A75: 73 | B75: 336 | C75: 2019 | D75: 339 | E75: 2031 | F75: 343 | G75: 2018 | H75: 346 | I75: 2042 | J75: 344 | K75: 2030 | L75: 328 | M75: 2045 | N75: 340 | O75: 2038 | P75: 350 | Q75: 2022 | R75: 344 | S75: 2014 | T75: 358 | U75: 2037 | V75: 401 | W75: 2027 | X75: 335 | Y75: 2038 | Z75: 332 | AA75: 2102 | AB75: 319 | AC75: 2115 | AE75: =HLOOKUP(Calc!$Y$8,look1,Sunrise_set!A75+2) -> 319 | AF75: =HLOOKUP(Calc!$Z$8,look1,Sunrise_set!A75+2) -> 2115
A76: 74 | B76: 335 | C76: 2019 | D76: 339 | E76: 2031 | F76: 343 | G76: 2019 | H76: 346 | I76: 2043 | J76: 344 | K76: 2031 | L76: 327 | M76: 2046 | N76: 340 | O76: 2039 | P76: 350 | Q76: 2022 | R76: 343 | S76: 2015 | T76: 358 | U76: 2037 | V76: 401 | W76: 2028 | X76: 335 | Y76: 2038 | Z76: 331 | AA76: 2103 | AB76: 319 | AC76: 2116 | AE76: =HLOOKUP(Calc!$Y$8,look1,Sunrise_set!A76+2) -> 319 | AF76: =HLOOKUP(Calc!$Z$8,look1,Sunrise_set!A76+2) -> 2116
A77: 75 | B77: 335 | C77: 2020 | D77: 339 | E77: 2032 | F77: 343 | G77: 2019 | H77: 346 | I77: 2043 | J77: 344 | K77: 2032 | L77: 327 | M77: 2047 | N77: 340 | O77: 2039 | P77: 350 | Q77: 2023 | R77: 343 | S77: 2015 | T77: 358 | U77: 2038 | V77: 401 | W77: 2028 | X77: 335 | Y77: 2039 | Z77: 331 | AA77: 2104 | AB77: 318 | AC77: 2116 | AE77: =HLOOKUP(Calc!$Y$8,look1,Sunrise_set!A77+2) -> 318 | AF77: =HLOOKUP(Calc!$Z$8,look1,Sunrise_set!A77+2) -> 2116
A78: 76 | B78: 335 | C78: 2020 | D78: 338 | E78: 2032 | F78: 343 | G78: 2020 | H78: 345 | I78: 2044 | J78: 344 | K78: 2032 | L78: 327 | M78: 2047 | N78: 339 | O78: 2040 | P78: 350 | Q78: 2023 | R78: 343 | S78: 2016 | T78: 357 | U78: 2038 | V78: 401 | W78: 2029 | X78: 335 | Y78: 2039 | Z78: 331 | AA78: 2104 | AB78: 318 | AC78: 2117 | AE78: =HLOOKUP(Calc!$Y$8,look1,Sunrise_set!A78+2) -> 318 | AF78: =HLOOKUP(Calc!$Z$8,look1,Sunrise_set!A78+2) -> 2117
A79: 77 | B79: 335 | C79: 2021 | D79: 338 | E79: 2033 | F79: 343 | G79: 2020 | H79: 345 | I79: 2044 | J79: 344 | K79: 2033 | L79: 327 | M79: 2048 | N79: 339 | O79: 2040 | P79: 350 | Q79: 2024 | R79: 343 | S79: 2016 | T79: 357 | U79: 2039 | V79: 401 | W79: 2029 | X79: 335 | Y79: 2040 | Z79: 331 | AA79: 2105 | AB79: 318 | AC79: 2118 | AE79: =HLOOKUP(Calc!$Y$8,look1,Sunrise_set!A79+2) -> 318 | AF79: =HLOOKUP(Calc!$Z$8,look1,Sunrise_set!A79+2) -> 2118
A80: 78 | B80: 335 | C80: 2021 | D80: 338 | E80: 2033 | F80: 343 | G80: 2021 | H80: 345 | I80: 2045 | J80: 344 | K80: 2033 | L80: 327 | M80: 2048 | N80: 339 | O80: 2041 | P80: 350 | Q80: 2024 | R80: 343 | S80: 2017 | T80: 357 | U80: 2039 | V80: 401 | W80: 2030 | X80: 335 | Y80: 2040 | Z80: 331 | AA80: 2105 | AB80: 318 | AC80: 2118 | AE80: =HLOOKUP(Calc!$Y$8,look1,Sunrise_set!A80+2) -> 318 | AF80: =HLOOKUP(Calc!$Z$8,look1,Sunrise_set!A80+2) -> 2118
A81: 79 | B81: 335 | C81: 2022 | D81: 338 | E81: 2034 | F81: 343 | G81: 2021 | H81: 345 | I81: 2045 | J81: 344 | K81: 2033 | L81: 327 | M81: 2049 | N81: 339 | O81: 2041 | P81: 350 | Q81: 2025 | R81: 343 | S81: 2017 | T81: 357 | U81: 2040 | V81: 401 | W81: 2030 | X81: 335 | Y81: 2041 | Z81: 331 | AA81: 2106 | AB81: 318 | AC81: 2118 | AE81: =HLOOKUP(Calc!$Y$8,look1,Sunrise_set!A81+2) -> 318 | AF81: =HLOOKUP(Calc!$Z$8,look1,Sunrise_set!A81+2) -> 2118
A82: 80 | B82: 335 | C82: 2022 | D82: 338 | E82: 2034 | F82: 343 | G82: 2021 | H82: 345 | I82: 2045 | J82: 344 | K82: 2034 | L82: 327 | M82: 2049 | N82: 339 | O82: 2042 | P82: 350 | Q82: 2025 | R82: 343 | S82: 2017 | T82: 358 | U82: 2040 | V82: 401 | W82: 2030 | X82: 335 | Y82: 2041 | Z82: 331 | AA82: 2106 | AB82: 318 | AC82: 2119 | AE82: =HLOOKUP(Calc!$Y$8,look1,Sunrise_set!A82+2) -> 318 | AF82: =HLOOKUP(Calc!$Z$8,look1,Sunrise_set!A82+2) -> 2119
A83: 81 | B83: 335 | C83: 2022 | D83: 339 | E83: 2034 | F83: 343 | G83: 2021 | H83: 346 | I83: 2046 | J83: 344 | K83: 2034 | L83: 327 | M83: 2049 | N83: 340 | O83: 2042 | P83: 350 | Q83: 2025 | R83: 343 | S83: 2018 | T83: 358 | U83: 2040 | V83: 401 | W83: 2031 | X83: 335 | Y83: 2041 | Z83: 331 | AA83: 2106 | AB83: 318 | AC83: 2119 | AE83: =HLOOKUP(Calc!$Y$8,look1,Sunrise_set!A83+2) -> 318 | AF83: =HLOOKUP(Calc!$Z$8,look1,Sunrise_set!A83+2) -> 2119
A84: 82 | B84: 336 | C84: 2022 | D84: 339 | E84: 2034 | F84: 343 | G84: 2022 | H84: 346 | I84: 2046 | J84: 344 | K84: 2034 | L84: 327 | M84: 2049 | N84: 340 | O84: 2042 | P84: 350 | Q84: 2025 | R84: 344 | S84: 2018 | T84: 358 | U84: 2040 | V84: 401 | W84: 2031 | X84: 335 | Y84: 2041 | Z84: 331 | AA84: 2106 | AB84: 318 | AC84: 2119 | AE84: =HLOOKUP(Calc!$Y$8,look1,Sunrise_set!A84+2) -> 318 | AF84: =HLOOKUP(Calc!$Z$8,look1,Sunrise_set!A84+2) -> 2119
A85: 83 | B85: 336 | C85: 2023 | D85: 339 | E85: 2034 | F85: 344 | G85: 2022 | H85: 346 | I85: 2046 | J85: 345 | K85: 2034 | L85: 327 | M85: 2049 | N85: 340 | O85: 2042 | P85: 350 | Q85: 2025 | R85: 344 | S85: 2018 | T85: 358 | U85: 2041 | V85: 401 | W85: 2031 | X85: 335 | Y85: 2042 | Z85: 331 | AA85: 2106 | AB85: 318 | AC85: 2119 | AE85: =HLOOKUP(Calc!$Y$8,look1,Sunrise_set!A85+2) -> 318 | AF85: =HLOOKUP(Calc!$Z$8,look1,Sunrise_set!A85+2) -> 2119
A86: 84 | B86: 336 | C86: 2023 | D86: 339 | E86: 2035 | F86: 344 | G86: 2022 | H86: 346 | I86: 2046 | J86: 345 | K86: 2034 | L86: 328 | M86: 2049 | N86: 340 | O86: 2042 | P86: 351 | Q86: 2026 | R86: 344 | S86: 2018 | T86: 358 | U86: 2041 | V86: 402 | W86: 2031 | X86: 336 | Y86: 2042 | Z86: 332 | AA86: 2107 | AB86: 319 | AC86: 2119 | AE86: =HLOOKUP(Calc!$Y$8,look1,Sunrise_set!A86+2) -> 319 | AF86: =HLOOKUP(Calc!$Z$8,look1,Sunrise_set!A86+2) -> 2119
A87: 85 | B87: 336 | C87: 2023 | D87: 340 | E87: 2035 | F87: 344 | G87: 2022 | H87: 347 | I87: 2046 | J87: 345 | K87: 2034 | L87: 328 | M87: 2049 | N87: 341 | O87: 2042 | P87: 351 | Q87: 2026 | R87: 345 | S87: 2018 | T87: 359 | U87: 2041 | V87: 402 | W87: 2031 | X87: 336 | Y87: 2042 | Z87: 332 | AA87: 2107 | AB87: 319 | AC87: 2119 | AE87: =HLOOKUP(Calc!$Y$8,look1,Sunrise_set!A87+2) -> 319 | AF87: =HLOOKUP(Calc!$Z$8,look1,Sunrise_set!A87+2) -> 2119
A88: 86 | B88: 337 | C88: 2023 | D88: 340 | E88: 2035 | F88: 345 | G88: 2022 | H88: 347 | I88: 2046 | J88: 346 | K88: 2034 | L88: 328 | M88: 2049 | N88: 341 | O88: 2042 | P88: 351 | Q88: 2026 | R88: 345 | S88: 2018 | T88: 359 | U88: 2041 | V88: 402 | W88: 2031 | X88: 336 | Y88: 2042 | Z88: 333 | AA88: 2106 | AB88: 320 | AC88: 2119 | AE88: =HLOOKUP(Calc!$Y$8,look1,Sunrise_set!A88+2) -> 320 | AF88: =HLOOKUP(Calc!$Z$8,look1,Sunrise_set!A88+2) -> 2119
A89: 87 | B89: 337 | C89: 2023 | D89: 341 | E89: 2034 | F89: 345 | G89: 2022 | H89: 348 | I89: 2046 | J89: 346 | K89: 2034 | L89: 329 | M89: 2049 | N89: 342 | O89: 2042 | P89: 352 | Q89: 2026 | R89: 345 | S89: 2018 | T89: 400 | U89: 2041 | V89: 403 | W89: 2031 | X89: 337 | Y89: 2042 | Z89: 333 | AA89: 2106 | AB89: 320 | AC89: 2119 | AE89: =HLOOKUP(Calc!$Y$8,look1,Sunrise_set!A89+2) -> 320 | AF89: =HLOOKUP(Calc!$Z$8,look1,Sunrise_set!A89+2) -> 2119
A90: 88 | B90: 338 | C90: 2022 | D90: 341 | E90: 2034 | F90: 346 | G90: 2022 | H90: 348 | I90: 2046 | J90: 347 | K90: 2034 | L90: 330 | M90: 2049 | N90: 342 | O90: 2042 | P90: 352 | Q90: 2025 | R90: 346 | S90: 2018 | T90: 400 | U90: 2040 | V90: 403 | W90: 2031 | X90: 337 | Y90: 2041 | Z90: 334 | AA90: 2106 | AB90: 321 | AC90: 2119 | AE90: =HLOOKUP(Calc!$Y$8,look1,Sunrise_set!A90+2) -> 321 | AF90: =HLOOKUP(Calc!$Z$8,look1,Sunrise_set!A90+2) -> 2119
A91: 89 | B91: 338 | C91: 2022 | D91: 342 | E91: 2034 | F91: 346 | G91: 2022 | H91: 349 | I91: 2046 | J91: 347 | K91: 2034 | L91: 330 | M91: 2049 | N91: 343 | O91: 2042 | P91: 353 | Q91: 2025 | R91: 346 | S91: 2018 | T91: 401 | U91: 2040 | V91: 404 | W91: 2031 | X91: 338 | Y91: 2041 | Z91: 334 | AA91: 2106 | AB91: 322 | AC91: 2119 | AE91: =HLOOKUP(Calc!$Y$8,look1,Sunrise_set!A91+2) -> 322 | AF91: =HLOOKUP(Calc!$Z$8,look1,Sunrise_set!A91+2) -> 2119
A92: 90 | B92: 339 | C92: 2022 | D92: 342 | E92: 2034 | F92: 347 | G92: 2021 | H92: 349 | I92: 2045 | J92: 348 | K92: 2034 | L92: 331 | M92: 2049 | N92: 343 | O92: 2041 | P92: 353 | Q92: 2025 | R92: 347 | S92: 2018 | T92: 401 | U92: 2040 | V92: 404 | W92: 2031 | X92: 339 | Y92: 2041 | Z92: 335 | AA92: 2106 | AB92: 322 | AC92: 2118 | AE92: =HLOOKUP(Calc!$Y$8,look1,Sunrise_set!A92+2) -> 322 | AF92: =HLOOKUP(Calc!$Z$8,look1,Sunrise_set!A92+2) -> 2118
A93: 91 | B93: 340 | C93: 2022 | D93: 343 | E93: 2034 | F93: 347 | G93: 2021 | H93: 350 | I93: 2045 | J93: 348 | K93: 2033 | L93: 332 | M93: 2048 | N93: 344 | O93: 2041 | P93: 354 | Q93: 2025 | R93: 348 | S93: 2017 | T93: 402 | U93: 2040 | V93: 405 | W93: 2030 | X93: 339 | Y93: 2041 | Z93: 336 | AA93: 2105 | AB93: 323 | AC93: 2118 | AE93: =HLOOKUP(Calc!$Y$8,look1,Sunrise_set!A93+2) -> 323 | AF93: =HLOOKUP(Calc!$Z$8,look1,Sunrise_set!A93+2) -> 2118
A94: 92 | B94: 340 | C94: 2021 | D94: 344 | E94: 2033 | F94: 348 | G94: 2021 | H94: 351 | I94: 2045 | J94: 349 | K94: 2033 | L94: 332 | M94: 2048 | N94: 345 | O94: 2041 | P94: 355 | Q94: 2025 | R94: 348 | S94: 2017 | T94: 403 | U94: 2039 | V94: 406 | W94: 2030 | X94: 340 | Y94: 2040 | Z94: 337 | AA94: 2105 | AB94: 324 | AC94: 2117 | AE94: =HLOOKUP(Calc!$Y$8,look1,Sunrise_set!A94+2) -> 324 | AF94: =HLOOKUP(Calc!$Z$8,look1,Sunrise_set!A94+2) -> 2117
A95: 93 | B95: 341 | C95: 2021 | D95: 344 | E95: 2033 | F95: 349 | G95: 2020 | H95: 352 | I95: 2044 | J95: 350 | K95: 2033 | L95: 333 | M95: 2047 | N95: 346 | O95: 2040 | P95: 355 | Q95: 2024 | R95: 349 | S95: 2017 | T95: 403 | U95: 2039 | V95: 406 | W95: 2030 | X95: 341 | Y95: 2040 | Z95: 337 | AA95: 2104 | AB95: 325 | AC95: 2116 | AE95: =HLOOKUP(Calc!$Y$8,look1,Sunrise_set!A95+2) -> 325 | AF95: =HLOOKUP(Calc!$Z$8,look1,Sunrise_set!A95+2) -> 2116
A96: 94 | B96: 342 | C96: 2021 | D96: 345 | E96: 2032 | F96: 350 | G96: 2020 | H96: 352 | I96: 2044 | J96: 351 | K96: 2032 | L96: 334 | M96: 2047 | N96: 346 | O96: 2040 | P96: 356 | Q96: 2024 | R96: 350 | S96: 2016 | T96: 404 | U96: 2039 | V96: 407 | W96: 2029 | X96: 342 | Y96: 2039 | Z96: 338 | AA96: 2104 | AB96: 326 | AC96: 2116 | AE96: =HLOOKUP(Calc!$Y$8,look1,Sunrise_set!A96+2) -> 326 | AF96: =HLOOKUP(Calc!$Z$8,look1,Sunrise_set!A96+2) -> 2116
A97: 95 | B97: 343 | C97: 2020 | D97: 346 | E97: 2032 | F97: 350 | G97: 2020 | H97: 353 | I97: 2043 | J97: 351 | K97: 2032 | L97: 335 | M97: 2046 | N97: 347 | O97: 2039 | P97: 357 | Q97: 2023 | R97: 351 | S97: 2016 | T97: 405 | U97: 2038 | V97: 408 | W97: 2029 | X97: 342 | Y97: 2039 | Z97: 339 | AA97: 2103 | AB97: 327 | AC97: 2115 | AE97: =HLOOKUP(Calc!$Y$8,look1,Sunrise_set!A97+2) -> 327 | AF97: =HLOOKUP(Calc!$Z$8,look1,Sunrise_set!A97+2) -> 2115
A98: 96 | B98: 344 | C98: 2020 | D98: 347 | E98: 2031 | F98: 351 | G98: 2019 | H98: 354 | I98: 2043 | J98: 352 | K98: 2031 | L98: 336 | M98: 2045 | N98: 348 | O98: 2039 | P98: 358 | Q98: 2023 | R98: 351 | S98: 2015 | T98: 406 | U98: 2038 | V98: 409 | W98: 2028 | X98: 343 | Y98: 2038 | Z98: 340 | AA98: 2102 | AB98: 328 | AC98: 2114 | AE98: =HLOOKUP(Calc!$Y$8,look1,Sunrise_set!A98+2) -> 328 | AF98: =HLOOKUP(Calc!$Z$8,look1,Sunrise_set!A98+2) -> 2114
A99: 97 | B99: 344 | C99: 2019 | D99: 348 | E99: 2031 | F99: 352 | G99: 2018 | H99: 355 | I99: 2042 | J99: 353 | K99: 2031 | L99: 337 | M99: 2045 | N99: 349 | O99: 2038 | P99: 359 | Q99: 2022 | R99: 352 | S99: 2015 | T99: 407 | U99: 2037 | V99: 409 | W99: 2028 | X99: 344 | Y99: 2037 | Z99: 341 | AA99: 2101 | AB99: 329 | AC99: 2113 | AE99: =HLOOKUP(Calc!$Y$8,look1,Sunrise_set!A99+2) -> 329 | AF99: =HLOOKUP(Calc!$Z$8,look1,Sunrise_set!A99+2) -> 2113
A100: 98 | B100: 345 | C100: 2018 | D100: 349 | E100: 2030 | F100: 353 | G100: 2018 | H100: 356 | I100: 2041 | J100: 354 | K100: 2030 | L100: 338 | M100: 2044 | N100: 350 | O100: 2037 | P100: 400 | Q100: 2022 | R100: 353 | S100: 2014 | T100: 408 | U100: 2036 | V100: 410 | W100: 2027 | X100: 345 | Y100: 2037 | Z100: 343 | AA100: 2101 | AB100: 331 | AC100: 2112 | AE100: =HLOOKUP(Calc!$Y$8,look1,Sunrise_set!A100+2) -> 331 | AF100: =HLOOKUP(Calc!$Z$8,look1,Sunrise_set!A100+2) -> 2112
A101: 99 | B101: 346 | C101: 2018 | D101: 350 | E101: 2029 | F101: 354 | G101: 2017 | H101: 357 | I101: 2040 | J101: 355 | K101: 2029 | L101: 339 | M101: 2043 | N101: 351 | O101: 2037 | P101: 401 | Q101: 2021 | R101: 354 | S101: 2014 | T101: 409 | U101: 2036 | V101: 411 | W101: 2027 | X101: 346 | Y101: 2036 | Z101: 344 | AA101: 2100 | AB101: 332 | AC101: 2111 | AE101: =HLOOKUP(Calc!$Y$8,look1,Sunrise_set!A101+2) -> 332 | AF101: =HLOOKUP(Calc!$Z$8,look1,Sunrise_set!A101+2) -> 2111
A102: 100 | B102: 347 | C102: 2017 | D102: 351 | E102: 2028 | F102: 355 | G102: 2016 | H102: 358 | I102: 2040 | J102: 356 | K102: 2028 | L102: 340 | M102: 2042 | N102: 352 | O102: 2036 | P102: 402 | Q102: 2020 | R102: 355 | S102: 2013 | T102: 410 | U102: 2035 | V102: 412 | W102: 2026 | X102: 348 | Y102: 2035 | Z102: 345 | AA102: 2059 | AB102: 333 | AC102: 2110 | AE102: =HLOOKUP(Calc!$Y$8,look1,Sunrise_set!A102+2) -> 333 | AF102: =HLOOKUP(Calc!$Z$8,look1,Sunrise_set!A102+2) -> 2110
A103: 101 | B103: 348 | C103: 2016 | D103: 352 | E103: 2028 | F103: 356 | G103: 2016 | H103: 359 | I103: 2039 | J103: 357 | K103: 2028 | L103: 342 | M103: 2041 | N103: 353 | O103: 2035 | P103: 403 | Q103: 2019 | R103: 356 | S103: 2012 | T103: 411 | U103: 2034 | V103: 413 | W103: 2025 | X103: 349 | Y103: 2034 | Z103: 346 | AA103: 2058 | AB103: 335 | AC103: 2109 | AE103: =HLOOKUP(Calc!$Y$8,look1,Sunrise_set!A103+2) -> 335 | AF103: =HLOOKUP(Calc!$Z$8,look1,Sunrise_set!A103+2) -> 2109
A104: 102 | B104: 350 | C104: 2015 | D104: 353 | E104: 2027 | F104: 357 | G104: 2015 | H104: 400 | I104: 2038 | J104: 358 | K104: 2027 | L104: 343 | M104: 2040 | N104: 354 | O104: 2034 | P104: 404 | Q104: 2019 | R104: 357 | S104: 2011 | T104: 412 | U104: 2033 | V104: 414 | W104: 2024 | X104: 350 | Y104: 2033 | Z104: 348 | AA104: 2057 | AB104: 336 | AC104: 2108 | AE104: =HLOOKUP(Calc!$Y$8,look1,Sunrise_set!A104+2) -> 336 | AF104: =HLOOKUP(Calc!$Z$8,look1,Sunrise_set!A104+2) -> 2108
A105: 103 | B105: 351 | C105: 2014 | D105: 354 | E105: 2026 | F105: 358 | G105: 2014 | H105: 402 | I105: 2037 | J105: 359 | K105: 2026 | L105: 344 | M105: 2039 | N105: 356 | O105: 2033 | P105: 405 | Q105: 2018 | R105: 358 | S105: 2010 | T105: 413 | U105: 2032 | V105: 415 | W105: 2024 | X105: 351 | Y105: 2032 | Z105: 349 | AA105: 2055 | AB105: 338 | AC105: 2107 | AE105: =HLOOKUP(Calc!$Y$8,look1,Sunrise_set!A105+2) -> 338 | AF105: =HLOOKUP(Calc!$Z$8,look1,Sunrise_set!A105+2) -> 2107
A106: 104 | B106: 352 | C106: 2013 | D106: 356 | E106: 2025 | F106: 359 | G106: 2013 | H106: 403 | I106: 2036 | J106: 401 | K106: 2025 | L106: 345 | M106: 2038 | N106: 357 | O106: 2032 | P106: 406 | Q106: 2017 | R106: 359 | S106: 2010 | T106: 414 | U106: 2032 | V106: 416 | W106: 2023 | X106: 352 | Y106: 2031 | Z106: 350 | AA106: 2054 | AB106: 339 | AC106: 2105 | AE106: =HLOOKUP(Calc!$Y$8,look1,Sunrise_set!A106+2) -> 339 | AF106: =HLOOKUP(Calc!$Z$8,look1,Sunrise_set!A106+2) -> 2105
A107: 105 | B107: 353 | C107: 2012 | D107: 357 | E107: 2024 | F107: 400 | G107: 2012 | H107: 404 | I107: 2035 | J107: 402 | K107: 2024 | L107: 347 | M107: 2037 | N107: 358 | O107: 2031 | P107: 407 | Q107: 2016 | R107: 400 | S107: 2009 | T107: 415 | U107: 2031 | V107: 417 | W107: 2022 | X107: 354 | Y107: 2030 | Z107: 352 | AA107: 2053 | AB107: 341 | AC107: 2104 | AE107: =HLOOKUP(Calc!$Y$8,look1,Sunrise_set!A107+2) -> 341 | AF107: =HLOOKUP(Calc!$Z$8,look1,Sunrise_set!A107+2) -> 2104
A108: 106 | B108: 354 | C108: 2011 | D108: 358 | E108: 2023 | F108: 401 | G108: 2011 | H108: 405 | I108: 2034 | J108: 403 | K108: 2023 | L108: 348 | M108: 2036 | N108: 359 | O108: 2030 | P108: 408 | Q108: 2015 | R108: 402 | S108: 2008 | T108: 416 | U108: 2030 | V108: 419 | W108: 2021 | X108: 355 | Y108: 2029 | Z108: 353 | AA108: 2052 | AB108: 342 | AC108: 2103 | AE108: =HLOOKUP(Calc!$Y$8,look1,Sunrise_set!A108+2) -> 342 | AF108: =HLOOKUP(Calc!$Z$8,look1,Sunrise_set!A108+2) -> 2103
A109: 107 | B109: 355 | C109: 2010 | D109: 359 | E109: 2021 | F109: 403 | G109: 2010 | H109: 407 | I109: 2033 | J109: 404 | K109: 2022 | L109: 350 | M109: 2034 | N109: 401 | O109: 2029 | P109: 409 | Q109: 2014 | R109: 403 | S109: 2007 | T109: 417 | U109: 2028 | V109: 420 | W109: 2020 | X109: 356 | Y109: 2028 | Z109: 355 | AA109: 2050 | AB109: 344 | AC109: 2101 | AE109: =HLOOKUP(Calc!$Y$8,look1,Sunrise_set!A109+2) -> 344 | AF109: =HLOOKUP(Calc!$Z$8,look1,Sunrise_set!A109+2) -> 2101
A110: 108 | B110: 357 | C110: 2009 | D110: 401 | E110: 2020 | F110: 404 | G110: 2009 | H110: 408 | I110: 2031 | J110: 406 | K110: 2021 | L110: 351 | M110: 2033 | N110: 402 | O110: 2027 | P110: 410 | Q110: 2013 | R110: 404 | S110: 2006 | T110: 419 | U110: 2027 | V110: 421 | W110: 2019 | X110: 358 | Y110: 2027 | Z110: 356 | AA110: 2049 | AB110: 346 | AC110: 2100 | AE110: =HLOOKUP(Calc!$Y$8,look1,Sunrise_set!A110+2) -> 346 | AF110: =HLOOKUP(Calc!$Z$8,look1,Sunrise_set!A110+2) -> 2100
A111: 109 | B111: 358 | C111: 2008 | D111: 402 | E111: 2019 | F111: 405 | G111: 2008 | H111: 409 | I111: 2030 | J111: 407 | K111: 2019 | L111: 353 | M111: 2032 | N111: 403 | O111: 2026 | P111: 412 | Q111: 2012 | R111: 405 | S111: 2004 | T111: 420 | U111: 2026 | V111: 422 | W111: 2018 | X111: 359 | Y111: 2025 | Z111: 358 | AA111: 2048 | AB111: 347 | AC111: 2058 | AE111: =HLOOKUP(Calc!$Y$8,look1,Sunrise_set!A111+2) -> 347 | AF111: =HLOOKUP(Calc!$Z$8,look1,Sunrise_set!A111+2) -> 2058
A112: 110 | B112: 359 | C112: 2007 | D112: 403 | E112: 2018 | F112: 406 | G112: 2007 | H112: 411 | I112: 2029 | J112: 408 | K112: 2018 | L112: 354 | M112: 2030 | N112: 405 | O112: 2025 | P112: 413 | Q112: 2011 | R112: 406 | S112: 2003 | T112: 421 | U112: 2025 | V112: 423 | W112: 2017 | X112: 400 | Y112: 2024 | Z112: 359 | AA112: 2046 | AB112: 349 | AC112: 2056 | AE112: =HLOOKUP(Calc!$Y$8,look1,Sunrise_set!A112+2) -> 349 | AF112: =HLOOKUP(Calc!$Z$8,look1,Sunrise_set!A112+2) -> 2056
A113: 111 | B113: 401 | C113: 2005 | D113: 405 | E113: 2016 | F113: 408 | G113: 2005 | H113: 412 | I113: 2027 | J113: 410 | K113: 2017 | L113: 356 | M113: 2029 | N113: 406 | O113: 2023 | P113: 414 | Q113: 2009 | R113: 408 | S113: 2002 | T113: 423 | U113: 2024 | V113: 425 | W113: 2015 | X113: 402 | Y113: 2023 | Z113: 401 | AA113: 2045 | AB113: 351 | AC113: 2055 | AE113: =HLOOKUP(Calc!$Y$8,look1,Sunrise_set!A113+2) -> 351 | AF113: =HLOOKUP(Calc!$Z$8,look1,Sunrise_set!A113+2) -> 2055
A114: 112 | B114: 402 | C114: 2004 | D114: 406 | E114: 2015 | F114: 409 | G114: 2004 | H114: 414 | I114: 2026 | J114: 411 | K114: 2016 | L114: 357 | M114: 2027 | N114: 408 | O114: 2022 | P114: 416 | Q114: 2008 | R114: 409 | S114: 2001 | T114: 424 | U114: 2023 | V114: 426 | W114: 2014 | X114: 403 | Y114: 2021 | Z114: 403 | AA114: 2043 | AB114: 353 | AC114: 2053 | AE114: =HLOOKUP(Calc!$Y$8,look1,Sunrise_set!A114+2) -> 353 | AF114: =HLOOKUP(Calc!$Z$8,look1,Sunrise_set!A114+2) -> 2053
A115: 113 | B115: 403 | C115: 2003 | D115: 408 | E115: 2014 | F115: 410 | G115: 2003 | H115: 415 | I115: 2025 | J115: 412 | K115: 2014 | L115: 359 | M115: 2026 | N115: 409 | O115: 2021 | P115: 417 | Q115: 2007 | R115: 410 | S115: 2000 | T115: 425 | U115: 2021 | V115: 427 | W115: 2013 | X115: 405 | Y115: 2020 | Z115: 404 | AA115: 2041 | AB115: 354 | AC115: 2051 | AE115: =HLOOKUP(Calc!$Y$8,look1,Sunrise_set!A115+2) -> 354 | AF115: =HLOOKUP(Calc!$Z$8,look1,Sunrise_set!A115+2) -> 2051
A116: 114 | B116: 405 | C116: 2001 | D116: 409 | E116: 2012 | F116: 412 | G116: 2002 | H116: 417 | I116: 2023 | J116: 414 | K116: 2013 | L116: 400 | M116: 2024 | N116: 411 | O116: 2019 | P116: 418 | Q116: 2006 | R116: 412 | S116: 1958 | T116: 427 | U116: 2020 | V116: 429 | W116: 2012 | X116: 406 | Y116: 2018 | Z116: 406 | AA116: 2040 | AB116: 356 | AC116: 2049 | AE116: =HLOOKUP(Calc!$Y$8,look1,Sunrise_set!A116+2) -> 356 | AF116: =HLOOKUP(Calc!$Z$8,look1,Sunrise_set!A116+2) -> 2049
A117: 115 | B117: 406 | C117: 2000 | D117: 410 | E117: 2011 | F117: 413 | G117: 2000 | H117: 418 | I117: 2022 | J117: 415 | K117: 2011 | L117: 402 | M117: 2023 | N117: 412 | O117: 2018 | P117: 420 | Q117: 2004 | R117: 413 | S117: 1957 | T117: 428 | U117: 2018 | V117: 430 | W117: 2010 | X117: 408 | Y117: 2017 | Z117: 408 | AA117: 2038 | AB117: 358 | AC117: 2047 | AE117: =HLOOKUP(Calc!$Y$8,look1,Sunrise_set!A117+2) -> 358 | AF117: =HLOOKUP(Calc!$Z$8,look1,Sunrise_set!A117+2) -> 2047
A118: 116 | B118: 408 | C118: 1959 | D118: 412 | E118: 2009 | F118: 415 | G118: 1959 | H118: 420 | I118: 2020 | J118: 417 | K118: 2010 | L118: 404 | M118: 2021 | N118: 414 | O118: 2016 | P118: 421 | Q118: 2003 | R118: 414 | S118: 1956 | T118: 430 | U118: 2017 | V118: 431 | W118: 2009 | X118: 409 | Y118: 2015 | Z118: 409 | AA118: 2036 | AB118: 400 | AC118: 2046 | AE118: =HLOOKUP(Calc!$Y$8,look1,Sunrise_set!A118+2) -> 400 | AF118: =HLOOKUP(Calc!$Z$8,look1,Sunrise_set!A118+2) -> 2046
A119: 117 | B119: 409 | C119: 1957 | D119: 414 | E119: 2008 | F119: 416 | G119: 1957 | H119: 421 | I119: 2019 | J119: 418 | K119: 2008 | L119: 405 | M119: 2019 | N119: 415 | O119: 2015 | P119: 422 | Q119: 2001 | R119: 416 | S119: 1954 | T119: 431 | U119: 2016 | V119: 433 | W119: 2008 | X119: 411 | Y119: 2013 | Z119: 411 | AA119: 2035 | AB119: 402 | AC119: 2044 | AE119: =HLOOKUP(Calc!$Y$8,look1,Sunrise_set!A119+2) -> 402 | AF119: =HLOOKUP(Calc!$Z$8,look1,Sunrise_set!A119+2) -> 2044
A120: 118 | B120: 411 | C120: 1956 | D120: 415 | E120: 2006 | F120: 417 | G120: 1956 | H120: 423 | I120: 2017 | J120: 420 | K120: 2007 | L120: 407 | M120: 2017 | N120: 417 | O120: 2013 | P120: 424 | Q120: 2000 | R120: 417 | S120: 1953 | T120: 433 | U120: 2014 | V120: 434 | W120: 2006 | X120: 413 | Y120: 2012 | Z120: 413 | AA120: 2033 | AB120: 404 | AC120: 2042 | AE120: =HLOOKUP(Calc!$Y$8,look1,Sunrise_set!A120+2) -> 404 | AF120: =HLOOKUP(Calc!$Z$8,look1,Sunrise_set!A120+2) -> 2042
A121: 119 | B121: 412 | C121: 1954 | D121: 417 | E121: 2005 | F121: 419 | G121: 1954 | H121: 424 | I121: 2015 | J121: 421 | K121: 2005 | L121: 409 | M121: 2016 | N121: 419 | O121: 2011 | P121: 425 | Q121: 1959 | R121: 419 | S121: 1951 | T121: 434 | U121: 2013 | V121: 435 | W121: 2005 | X121: 414 | Y121: 2010 | Z121: 415 | AA121: 2031 | AB121: 406 | AC121: 2040 | AE121: =HLOOKUP(Calc!$Y$8,look1,Sunrise_set!A121+2) -> 406 | AF121: =HLOOKUP(Calc!$Z$8,look1,Sunrise_set!A121+2) -> 2040
A122: 120 | B122: 414 | C122: 1952 | D122: 418 | E122: 2003 | F122: 420 | G122: 1953 | H122: 426 | I122: 2014 | J122: 423 | K122: 2004 | L122: 410 | M122: 2014 | N122: 420 | O122: 2010 | P122: 427 | Q122: 1957 | R122: 420 | S122: 1950 | T122: 435 | U122: 2011 | V122: 437 | W122: 2003 | X122: 416 | Y122: 2008 | Z122: 417 | AA122: 2029 | AB122: 408 | AC122: 2038 | AE122: =HLOOKUP(Calc!$Y$8,look1,Sunrise_set!A122+2) -> 408 | AF122: =HLOOKUP(Calc!$Z$8,look1,Sunrise_set!A122+2) -> 2038
A123: 121 | B123: 415 | C123: 1951 | D123: 420 | E123: 2001 | F123: 422 | G123: 1951 | H123: 427 | I123: 2012 | J123: 424 | K123: 2002 | L123: 412 | M123: 2012 | N123: 422 | O123: 2008 | P123: 428 | Q123: 1955 | R123: 422 | S123: 1948 | T123: 437 | U123: 2009 | V123: 438 | W123: 2002 | X123: 418 | Y123: 2007 | Z123: 418 | AA123: 2027 | AB123: 410 | AC123: 2035 | AE123: =HLOOKUP(Calc!$Y$8,look1,Sunrise_set!A123+2) -> 410 | AF123: =HLOOKUP(Calc!$Z$8,look1,Sunrise_set!A123+2) -> 2035
A124: 122 | B124: 417 | C124: 1949 | D124: 421 | E124: 2000 | F124: 423 | G124: 1950 | H124: 429 | I124: 2010 | J124: 426 | K124: 2000 | L124: 414 | M124: 2010 | N124: 423 | O124: 2006 | P124: 430 | Q124: 1954 | R124: 423 | S124: 1947 | T124: 439 | U124: 2008 | V124: 440 | W124: 2000 | X124: 419 | Y124: 2005 | Z124: 420 | AA124: 2025 | AB124: 412 | AC124: 2033 | AE124: =HLOOKUP(Calc!$Y$8,look1,Sunrise_set!A124+2) -> 412 | AF124: =HLOOKUP(Calc!$Z$8,look1,Sunrise_set!A124+2) -> 2033
A125: 123 | B125: 418 | C125: 1947 | D125: 423 | E125: 1958 | F125: 425 | G125: 1948 | H125: 431 | I125: 2009 | J125: 428 | K125: 1959 | L125: 416 | M125: 2008 | N125: 425 | O125: 2004 | P125: 431 | Q125: 1952 | R125: 424 | S125: 1945 | T125: 440 | U125: 2006 | V125: 441 | W125: 1959 | X125: 421 | Y125: 2003 | Z125: 422 | AA125: 2023 | AB125: 414 | AC125: 2031 | AE125: =HLOOKUP(Calc!$Y$8,look1,Sunrise_set!A125+2) -> 414 | AF125: =HLOOKUP(Calc!$Z$8,look1,Sunrise_set!A125+2) -> 2031
A126: 124 | B126: 420 | C126: 1946 | D126: 425 | E126: 1956 | F126: 426 | G126: 1946 | H126: 432 | I126: 2007 | J126: 429 | K126: 1957 | L126: 418 | M126: 2006 | N126: 427 | O126: 2003 | P126: 433 | Q126: 1951 | R126: 426 | S126: 1943 | T126: 442 | U126: 2004 | V126: 443 | W126: 1957 | X126: 423 | Y126: 2001 | Z126: 424 | AA126: 2021 | AB126: 416 | AC126: 2029 | AE126: =HLOOKUP(Calc!$Y$8,look1,Sunrise_set!A126+2) -> 416 | AF126: =HLOOKUP(Calc!$Z$8,look1,Sunrise_set!A126+2) -> 2029
A127: 125 | B127: 421 | C127: 1944 | D127: 426 | E127: 1954 | F127: 428 | G127: 1945 | H127: 434 | I127: 2005 | J127: 431 | K127: 1955 | L127: 419 | M127: 2004 | N127: 428 | O127: 2001 | P127: 434 | Q127: 1949 | R127: 427 | S127: 1942 | T127: 443 | U127: 2003 | V127: 444 | W127: 1955 | X127: 424 | Y127: 1959 | Z127: 426 | AA127: 2019 | AB127: 418 | AC127: 2027 | AE127: =HLOOKUP(Calc!$Y$8,look1,Sunrise_set!A127+2) -> 418 | AF127: =HLOOKUP(Calc!$Z$8,look1,Sunrise_set!A127+2) -> 2027
A128: 126 | B128: 423 | C128: 1942 | D128: 428 | E128: 1953 | F128: 429 | G128: 1943 | H128: 436 | I128: 2003 | J128: 432 | K128: 1953 | L128: 421 | M128: 2002 | N128: 430 | O128: 1959 | P128: 436 | Q128: 1947 | R128: 429 | S128: 1940 | T128: 445 | U128: 2001 | V128: 446 | W128: 1954 | X128: 426 | Y128: 1958 | Z128: 428 | AA128: 2017 | AB128: 420 | AC128: 2025 | AE128: =HLOOKUP(Calc!$Y$8,look1,Sunrise_set!A128+2) -> 420 | AF128: =HLOOKUP(Calc!$Z$8,look1,Sunrise_set!A128+2) -> 2025
A129: 127 | B129: 425 | C129: 1940 | D129: 430 | E129: 1951 | F129: 431 | G129: 1941 | H129: 437 | I129: 2001 | J129: 434 | K129: 1952 | L129: 423 | M129: 2000 | N129: 432 | O129: 1957 | P129: 437 | Q129: 1946 | R129: 431 | S129: 1938 | T129: 446 | U129: 1959 | V129: 447 | W129: 1952 | X129: 428 | Y129: 1956 | Z129: 430 | AA129: 2015 | AB129: 422 | AC129: 2022 | AE129: =HLOOKUP(Calc!$Y$8,look1,Sunrise_set!A129+2) -> 422 | AF129: =HLOOKUP(Calc!$Z$8,look1,Sunrise_set!A129+2) -> 2022
A130: 128 | B130: 426 | C130: 1939 | D130: 431 | E130: 1949 | F130: 433 | G130: 1940 | H130: 439 | I130: 1959 | J130: 436 | K130: 1950 | L130: 425 | M130: 1958 | N130: 433 | O130: 1955 | P130: 439 | Q130: 1944 | R130: 432 | S130: 1936 | T130: 448 | U130: 1957 | V130: 449 | W130: 1950 | X130: 429 | Y130: 1954 | Z130: 432 | AA130: 2013 | AB130: 424 | AC130: 2020 | AE130: =HLOOKUP(Calc!$Y$8,look1,Sunrise_set!A130+2) -> 424 | AF130: =HLOOKUP(Calc!$Z$8,look1,Sunrise_set!A130+2) -> 2020
A131: 129 | B131: 428 | C131: 1937 | D131: 433 | E131: 1947 | F131: 434 | G131: 1938 | H131: 441 | I131: 1957 | J131: 437 | K131: 1948 | L131: 427 | M131: 1956 | N131: 435 | O131: 1953 | P131: 440 | Q131: 1942 | R131: 434 | S131: 1935 | T131: 449 | U131: 1956 | V131: 450 | W131: 1949 | X131: 431 | Y131: 1952 | Z131: 433 | AA131: 2010 | AB131: 426 | AC131: 2018 | AE131: =HLOOKUP(Calc!$Y$8,look1,Sunrise_set!A131+2) -> 426 | AF131: =HLOOKUP(Calc!$Z$8,look1,Sunrise_set!A131+2) -> 2018
A132: 130 | B132: 429 | C132: 1935 | D132: 435 | E132: 1945 | F132: 436 | G132: 1936 | H132: 442 | I132: 1955 | J132: 439 | K132: 1946 | L132: 428 | M132: 1954 | N132: 437 | O132: 1951 | P132: 442 | Q132: 1940 | R132: 435 | S132: 1933 | T132: 451 | U132: 1954 | V132: 452 | W132: 1947 | X132: 433 | Y132: 1950 | Z132: 435 | AA132: 2008 | AB132: 428 | AC132: 2015 | AE132: =HLOOKUP(Calc!$Y$8,look1,Sunrise_set!A132+2) -> 428 | AF132: =HLOOKUP(Calc!$Z$8,look1,Sunrise_set!A132+2) -> 2015
A133: 131 | B133: 431 | C133: 1933 | D133: 436 | E133: 1943 | F133: 437 | G133: 1934 | H133: 444 | I133: 1953 | J133: 440 | K133: 1944 | L133: 430 | M133: 1952 | N133: 439 | O133: 1949 | P133: 443 | Q133: 1938 | R133: 437 | S133: 1931 | T133: 453 | U133: 1952 | V133: 453 | W133: 1945 | X133: 435 | Y133: 1948 | Z133: 437 | AA133: 2006 | AB133: 430 | AC133: 2013 | AE133: =HLOOKUP(Calc!$Y$8,look1,Sunrise_set!A133+2) -> 430 | AF133: =HLOOKUP(Calc!$Z$8,look1,Sunrise_set!A133+2) -> 2013
A134: 132 | B134: 433 | C134: 1931 | D134: 438 | E134: 1941 | F134: 439 | G134: 1932 | H134: 446 | I134: 1951 | J134: 442 | K134: 1942 | L134: 432 | M134: 1950 | N134: 440 | O134: 1947 | P134: 445 | Q134: 1936 | R134: 438 | S134: 1929 | T134: 454 | U134: 1950 | V134: 455 | W134: 1943 | X134: 436 | Y134: 1946 | Z134: 439 | AA134: 2004 | AB134: 432 | AC134: 2011 | AE134: =HLOOKUP(Calc!$Y$8,look1,Sunrise_set!A134+2) -> 432 | AF134: =HLOOKUP(Calc!$Z$8,look1,Sunrise_set!A134+2) -> 2011
A135: 133 | B135: 434 | C135: 1929 | D135: 440 | E135: 1939 | F135: 440 | G135: 1930 | H135: 448 | I135: 1949 | J135: 444 | K135: 1940 | L135: 434 | M135: 1948 | N135: 442 | O135: 1945 | P135: 446 | Q135: 1935 | R135: 440 | S135: 1927 | T135: 456 | U135: 1948 | V135: 456 | W135: 1941 | X135: 438 | Y135: 1944 | Z135: 441 | AA135: 2002 | AB135: 435 | AC135: 2008 | AE135: =HLOOKUP(Calc!$Y$8,look1,Sunrise_set!A135+2) -> 435 | AF135: =HLOOKUP(Calc!$Z$8,look1,Sunrise_set!A135+2) -> 2008
A136: 134 | B136: 436 | C136: 1927 | D136: 441 | E136: 1937 | F136: 442 | G136: 1928 | H136: 449 | I136: 1947 | J136: 445 | K136: 1938 | L136: 436 | M136: 1945 | N136: 444 | O136: 1943 | P136: 448 | Q136: 1933 | R136: 441 | S136: 1925 | T136: 457 | U136: 1946 | V136: 458 | W136: 1939 | X136: 440 | Y136: 1941 | Z136: 443 | AA136: 1959 | AB136: 437 | AC136: 2006 | AE136: =HLOOKUP(Calc!$Y$8,look1,Sunrise_set!A136+2) -> 437 | AF136: =HLOOKUP(Calc!$Z$8,look1,Sunrise_set!A136+2) -> 2006
A137: 135 | B137: 438 | C137: 1925 | D137: 443 | E137: 1935 | F137: 443 | G137: 1926 | H137: 451 | I137: 1945 | J137: 447 | K137: 1936 | L137: 438 | M137: 1943 | N137: 446 | O137: 1941 | P137: 450 | Q137: 1931 | R137: 443 | S137: 1924 | T137: 459 | U137: 1944 | V137: 459 | W137: 1938 | X137: 442 | Y137: 1939 | Z137: 445 | AA137: 1957 | AB137: 439 | AC137: 2003 | AE137: =HLOOKUP(Calc!$Y$8,look1,Sunrise_set!A137+2) -> 439 | AF137: =HLOOKUP(Calc!$Z$8,look1,Sunrise_set!A137+2) -> 2003
A138: 136 | B138: 439 | C138: 1923 | D138: 445 | E138: 1933 | F138: 445 | G138: 1924 | H138: 453 | I138: 1943 | J138: 449 | K138: 1934 | L138: 440 | M138: 1941 | N138: 447 | O138: 1939 | P138: 451 | Q138: 1929 | R138: 444 | S138: 1922 | T138: 501 | U138: 1942 | V138: 501 | W138: 1936 | X138: 443 | Y138: 1937 | Z138: 447 | AA138: 1955 | AB138: 441 | AC138: 2001 | AE138: =HLOOKUP(Calc!$Y$8,look1,Sunrise_set!A138+2) -> 441 | AF138: =HLOOKUP(Calc!$Z$8,look1,Sunrise_set!A138+2) -> 2001
A139: 137 | B139: 441 | C139: 1921 | D139: 446 | E139: 1931 | F139: 447 | G139: 1922 | H139: 454 | I139: 1941 | J139: 450 | K139: 1932 | L139: 441 | M139: 1939 | N139: 449 | O139: 1937 | P139: 453 | Q139: 1927 | R139: 446 | S139: 1920 | T139: 502 | U139: 1940 | V139: 502 | W139: 1934 | X139: 445 | Y139: 1935 | Z139: 449 | AA139: 1952 | AB139: 443 | AC139: 1958 | AE139: =HLOOKUP(Calc!$Y$8,look1,Sunrise_set!A139+2) -> 443 | AF139: =HLOOKUP(Calc!$Z$8,look1,Sunrise_set!A139+2) -> 1958
A140: 138 | B140: 443 | C140: 1919 | D140: 448 | E140: 1929 | F140: 448 | G140: 1920 | H140: 456 | I140: 1939 | J140: 452 | K140: 1930 | L140: 443 | M140: 1936 | N140: 451 | O140: 1934 | P140: 454 | Q140: 1925 | R140: 447 | S140: 1918 | T140: 504 | U140: 1938 | V140: 504 | W140: 1932 | X140: 447 | Y140: 1933 | Z140: 451 | AA140: 1950 | AB140: 445 | AC140: 1956 | AE140: =HLOOKUP(Calc!$Y$8,look1,Sunrise_set!A140+2) -> 445 | AF140: =HLOOKUP(Calc!$Z$8,look1,Sunrise_set!A140+2) -> 1956
A141: 139 | B141: 444 | C141: 1917 | D141: 450 | E141: 1926 | F141: 450 | G141: 1918 | H141: 458 | I141: 1937 | J141: 454 | K141: 1928 | L141: 445 | M141: 1934 | N141: 452 | O141: 1932 | P141: 456 | Q141: 1923 | R141: 449 | S141: 1916 | T141: 505 | U141: 1936 | V141: 505 | W141: 1930 | X141: 449 | Y141: 1931 | Z141: 453 | AA141: 1948 | AB141: 447 | AC141: 1953 | AE141: =HLOOKUP(Calc!$Y$8,look1,Sunrise_set!A141+2) -> 447 | AF141: =HLOOKUP(Calc!$Z$8,look1,Sunrise_set!A141+2) -> 1953
A142: 140 | B142: 446 | C142: 1915 | D142: 451 | E142: 1924 | F142: 451 | G142: 1916 | H142: 500 | I142: 1935 | J142: 455 | K142: 1926 | L142: 447 | M142: 1932 | N142: 454 | O142: 1930 | P142: 457 | Q142: 1921 | R142: 451 | S142: 1914 | T142: 507 | U142: 1934 | V142: 507 | W142: 1928 | X142: 451 | Y142: 1928 | Z142: 455 | AA142: 1945 | AB142: 449 | AC142: 1951 | AE142: =HLOOKUP(Calc!$Y$8,look1,Sunrise_set!A142+2) -> 449 | AF142: =HLOOKUP(Calc!$Z$8,look1,Sunrise_set!A142+2) -> 1951
A143: 141 | B143: 447 | C143: 1913 | D143: 453 | E143: 1922 | F143: 453 | G143: 1914 | H143: 501 | I143: 1932 | J143: 457 | K143: 1924 | L143: 449 | M143: 1930 | N143: 456 | O143: 1928 | P143: 459 | Q143: 1919 | R143: 452 | S143: 1912 | T143: 509 | U143: 1932 | V143: 508 | W143: 1926 | X143: 452 | Y143: 1926 | Z143: 457 | AA143: 1943 | AB143: 451 | AC143: 1948 | AE143: =HLOOKUP(Calc!$Y$8,look1,Sunrise_set!A143+2) -> 451 | AF143: =HLOOKUP(Calc!$Z$8,look1,Sunrise_set!A143+2) -> 1948
A144: 142 | B144: 449 | C144: 1911 | D144: 455 | E144: 1920 | F144: 455 | G144: 1912 | H144: 503 | I144: 1930 | J144: 459 | K144: 1921 | L144: 451 | M144: 1927 | N144: 458 | O144: 1926 | P144: 500 | Q144: 1917 | R144: 454 | S144: 1910 | T144: 510 | U144: 1930 | V144: 510 | W144: 1924 | X144: 454 | Y144: 1924 | Z144: 459 | AA144: 1940 | AB144: 453 | AC144: 1945 | AE144: =HLOOKUP(Calc!$Y$8,look1,Sunrise_set!A144+2) -> 453 | AF144: =HLOOKUP(Calc!$Z$8,look1,Sunrise_set!A144+2) -> 1945
A145: 143 | B145: 451 | C145: 1908 | D145: 456 | E145: 1918 | F145: 456 | G145: 1910 | H145: 505 | I145: 1928 | J145: 500 | K145: 1919 | L145: 453 | M145: 1925 | N145: 459 | O145: 1923 | P145: 502 | Q145: 1915 | R145: 455 | S145: 1908 | T145: 512 | U145: 1928 | V145: 511 | W145: 1922 | X145: 456 | Y145: 1922 | Z145: 501 | AA145: 1938 | AB145: 456 | AC145: 1943 | AE145: =HLOOKUP(Calc!$Y$8,look1,Sunrise_set!A145+2) -> 456 | AF145: =HLOOKUP(Calc!$Z$8,look1,Sunrise_set!A145+2) -> 1943
A146: 144 | B146: 452 | C146: 1906 | D146: 458 | E146: 1916 | F146: 458 | G146: 1908 | H146: 507 | I146: 1926 | J146: 502 | K146: 1917 | L146: 455 | M146: 1922 | N146: 501 | O146: 1921 | P146: 504 | Q146: 1913 | R146: 457 | S146: 1905 | T146: 513 | U146: 1925 | V146: 513 | W146: 1920 | X146: 458 | Y146: 1919 | Z146: 503 | AA146: 1936 | AB146: 458 | AC146: 1940 | AE146: =HLOOKUP(Calc!$Y$8,look1,Sunrise_set!A146+2) -> 458 | AF146: =HLOOKUP(Calc!$Z$8,look1,Sunrise_set!A146+2) -> 1940
A147: 145 | B147: 454 | C147: 1904 | D147: 500 | E147: 1913 | F147: 459 | G147: 1906 | H147: 508 | I147: 1923 | J147: 504 | K147: 1915 | L147: 456 | M147: 1920 | N147: 503 | O147: 1919 | P147: 505 | Q147: 1910 | R147: 458 | S147: 1903 | T147: 515 | U147: 1923 | V147: 514 | W147: 1918 | X147: 459 | Y147: 1917 | Z147: 504 | AA147: 1933 | AB147: 500 | AC147: 1938 | AE147: =HLOOKUP(Calc!$Y$8,look1,Sunrise_set!A147+2) -> 500 | AF147: =HLOOKUP(Calc!$Z$8,look1,Sunrise_set!A147+2) -> 1938
A148: 146 | B148: 456 | C148: 1902 | D148: 502 | E148: 1911 | F148: 501 | G148: 1904 | H148: 510 | I148: 1921 | J148: 505 | K148: 1913 | L148: 458 | M148: 1918 | N148: 505 | O148: 1917 | P148: 507 | Q148: 1908 | R148: 500 | S148: 1901 | T148: 517 | U148: 1921 | V148: 516 | W148: 1916 | X148: 501 | Y148: 1915 | Z148: 506 | AA148: 1931 | AB148: 502 | AC148: 1935 | AE148: =HLOOKUP(Calc!$Y$8,look1,Sunrise_set!A148+2) -> 502 | AF148: =HLOOKUP(Calc!$Z$8,look1,Sunrise_set!A148+2) -> 1935
A149: 147 | B149: 457 | C149: 1900 | D149: 503 | E149: 1909 | F149: 503 | G149: 1902 | H149: 512 | I149: 1919 | J149: 507 | K149: 1910 | L149: 500 | M149: 1915 | N149: 506 | O149: 1914 | P149: 508 | Q149: 1906 | R149: 502 | S149: 1859 | T149: 518 | U149: 1919 | V149: 518 | W149: 1913 | X149: 503 | Y149: 1912 | Z149: 508 | AA149: 1928 | AB149: 504 | AC149: 1932 | AE149: =HLOOKUP(Calc!$Y$8,look1,Sunrise_set!A149+2) -> 504 | AF149: =HLOOKUP(Calc!$Z$8,look1,Sunrise_set!A149+2) -> 1932
A150: 148 | B150: 459 | C150: 1857 | D150: 505 | E150: 1907 | F150: 504 | G150: 1859 | H150: 513 | I150: 1917 | J150: 509 | K150: 1908 | L150: 502 | M150: 1913 | N150: 508 | O150: 1912 | P150: 510 | Q150: 1904 | R150: 503 | S150: 1857 | T150: 520 | U150: 1917 | V150: 519 | W150: 1911 | X150: 505 | Y150: 1910 | Z150: 510 | AA150: 1926 | AB150: 506 | AC150: 1930 | AE150: =HLOOKUP(Calc!$Y$8,look1,Sunrise_set!A150+2) -> 506 | AF150: =HLOOKUP(Calc!$Z$8,look1,Sunrise_set!A150+2) -> 1930
A151: 149 | B151: 501 | C151: 1855 | D151: 507 | E151: 1904 | F151: 506 | G151: 1857 | H151: 515 | I151: 1914 | J151: 510 | K151: 1906 | L151: 504 | M151: 1910 | N151: 510 | O151: 1910 | P151: 511 | Q151: 1902 | R151: 505 | S151: 1855 | T151: 522 | U151: 1915 | V151: 521 | W151: 1909 | X151: 506 | Y151: 1908 | Z151: 512 | AA151: 1923 | AB151: 508 | AC151: 1927 | AE151: =HLOOKUP(Calc!$Y$8,look1,Sunrise_set!A151+2) -> 508 | AF151: =HLOOKUP(Calc!$Z$8,look1,Sunrise_set!A151+2) -> 1927
A152: 150 | B152: 502 | C152: 1853 | D152: 508 | E152: 1902 | F152: 507 | G152: 1855 | H152: 517 | I152: 1912 | J152: 512 | K152: 1904 | L152: 506 | M152: 1908 | N152: 512 | O152: 1907 | P152: 513 | Q152: 1900 | R152: 506 | S152: 1853 | T152: 523 | U152: 1912 | V152: 522 | W152: 1907 | X152: 508 | Y152: 1905 | Z152: 514 | AA152: 1920 | AB152: 510 | AC152: 1924 | AE152: =HLOOKUP(Calc!$Y$8,look1,Sunrise_set!A152+2) -> 510 | AF152: =HLOOKUP(Calc!$Z$8,look1,Sunrise_set!A152+2) -> 1924
A153: 151 | B153: 504 | C153: 1851 | D153: 510 | E153: 1900 | F153: 509 | G153: 1853 | H153: 519 | I153: 1910 | J153: 514 | K153: 1901 | L153: 508 | M153: 1905 | N153: 513 | O153: 1905 | P153: 515 | Q153: 1858 | R153: 508 | S153: 1851 | T153: 525 | U153: 1910 | V153: 524 | W153: 1905 | X153: 510 | Y153: 1903 | Z153: 516 | AA153: 1918 | AB153: 512 | AC153: 1922 | AE153: =HLOOKUP(Calc!$Y$8,look1,Sunrise_set!A153+2) -> 512 | AF153: =HLOOKUP(Calc!$Z$8,look1,Sunrise_set!A153+2) -> 1922
A154: 152 | B154: 506 | C154: 1849 | D154: 512 | E154: 1857 | F154: 511 | G154: 1851 | H154: 520 | I154: 1907 | J154: 515 | K154: 1859 | L154: 509 | M154: 1903 | N154: 515 | O154: 1903 | P154: 516 | Q154: 1855 | R154: 509 | S154: 1848 | T154: 526 | U154: 1908 | V154: 525 | W154: 1903 | X154: 512 | Y154: 1901 | Z154: 518 | AA154: 1915 | AB154: 514 | AC154: 1919 | AE154: =HLOOKUP(Calc!$Y$8,look1,Sunrise_set!A154+2) -> 514 | AF154: =HLOOKUP(Calc!$Z$8,look1,Sunrise_set!A154+2) -> 1919
A155: 153 | B155: 507 | C155: 1846 | D155: 514 | E155: 1855 | F155: 512 | G155: 1849 | H155: 522 | I155: 1905 | J155: 517 | K155: 1857 | L155: 511 | M155: 1900 | N155: 517 | O155: 1900 | P155: 518 | Q155: 1853 | R155: 511 | S155: 1846 | T155: 528 | U155: 1906 | V155: 527 | W155: 1901 | X155: 514 | Y155: 1858 | Z155: 520 | AA155: 1913 | AB155: 517 | AC155: 1916 | AE155: =HLOOKUP(Calc!$Y$8,look1,Sunrise_set!A155+2) -> 517 | AF155: =HLOOKUP(Calc!$Z$8,look1,Sunrise_set!A155+2) -> 1916
A156: 154 | B156: 509 | C156: 1844 | D156: 515 | E156: 1853 | F156: 514 | G156: 1846 | H156: 524 | I156: 1903 | J156: 519 | K156: 1855 | L156: 513 | M156: 1858 | N156: 519 | O156: 1858 | P156: 519 | Q156: 1851 | R156: 513 | S156: 1844 | T156: 530 | U156: 1903 | V156: 528 | W156: 1858 | X156: 515 | Y156: 1856 | Z156: 522 | AA156: 1910 | AB156: 519 | AC156: 1913 | AE156: =HLOOKUP(Calc!$Y$8,look1,Sunrise_set!A156+2) -> 519 | AF156: =HLOOKUP(Calc!$Z$8,look1,Sunrise_set!A156+2) -> 1913
A157: 155 | B157: 511 | C157: 1842 | D157: 517 | E157: 1850 | F157: 515 | G157: 1844 | H157: 526 | I157: 1900 | J157: 520 | K157: 1852 | L157: 515 | M157: 1855 | N157: 520 | O157: 1856 | P157: 521 | Q157: 1849 | R157: 514 | S157: 1842 | T157: 531 | U157: 1901 | V157: 530 | W157: 1856 | X157: 517 | Y157: 1853 | Z157: 524 | AA157: 1908 | AB157: 521 | AC157: 1911 | AE157: =HLOOKUP(Calc!$Y$8,look1,Sunrise_set!A157+2) -> 521 | AF157: =HLOOKUP(Calc!$Z$8,look1,Sunrise_set!A157+2) -> 1911
A158: 156 | B158: 512 | C158: 1839 | D158: 519 | E158: 1848 | F158: 517 | G158: 1842 | H158: 527 | I158: 1858 | J158: 522 | K158: 1850 | L158: 517 | M158: 1853 | N158: 522 | O158: 1853 | P158: 523 | Q158: 1847 | R158: 516 | S158: 1840 | T158: 533 | U158: 1859 | V158: 531 | W158: 1854 | X158: 519 | Y158: 1851 | Z158: 526 | AA158: 1905 | AB158: 523 | AC158: 1908 | AE158: =HLOOKUP(Calc!$Y$8,look1,Sunrise_set!A158+2) -> 523 | AF158: =HLOOKUP(Calc!$Z$8,look1,Sunrise_set!A158+2) -> 1908
A159: 157 | B159: 514 | C159: 1837 | D159: 520 | E159: 1846 | F159: 518 | G159: 1840 | H159: 529 | I159: 1855 | J159: 524 | K159: 1848 | L159: 519 | M159: 1850 | N159: 524 | O159: 1851 | P159: 524 | Q159: 1844 | R159: 517 | S159: 1837 | T159: 535 | U159: 1857 | V159: 533 | W159: 1852 | X159: 521 | Y159: 1849 | Z159: 528 | AA159: 1902 | AB159: 525 | AC159: 1905 | AE159: =HLOOKUP(Calc!$Y$8,look1,Sunrise_set!A159+2) -> 525 | AF159: =HLOOKUP(Calc!$Z$8,look1,Sunrise_set!A159+2) -> 1905
A160: 158 | B160: 515 | C160: 1835 | D160: 522 | E160: 1843 | F160: 520 | G160: 1837 | H160: 531 | I160: 1853 | J160: 525 | K160: 1845 | L160: 521 | M160: 1848 | N160: 526 | O160: 1848 | P160: 526 | Q160: 1842 | R160: 519 | S160: 1835 | T160: 536 | U160: 1854 | V160: 535 | W160: 1850 | X160: 522 | Y160: 1846 | Z160: 530 | AA160: 1900 | AB160: 527 | AC160: 1903 | AE160: =HLOOKUP(Calc!$Y$8,look1,Sunrise_set!A160+2) -> 527 | AF160: =HLOOKUP(Calc!$Z$8,look1,Sunrise_set!A160+2) -> 1903
A161: 159 | B161: 517 | C161: 1832 | D161: 524 | E161: 1841 | F161: 522 | G161: 1835 | H161: 533 | I161: 1851 | J161: 527 | K161: 1843 | L161: 522 | M161: 1845 | N161: 527 | O161: 1846 | P161: 527 | Q161: 1840 | R161: 520 | S161: 1833 | T161: 538 | U161: 1852 | V161: 536 | W161: 1848 | X161: 524 | Y161: 1844 | Z161: 532 | AA161: 1857 | AB161: 529 | AC161: 1900 | AE161: =HLOOKUP(Calc!$Y$8,look1,Sunrise_set!A161+2) -> 529 | AF161: =HLOOKUP(Calc!$Z$8,look1,Sunrise_set!A161+2) -> 1900
A162: 160 | B162: 519 | C162: 1830 | D162: 525 | E162: 1839 | F162: 523 | G162: 1833 | H162: 534 | I162: 1848 | J162: 529 | K162: 1841 | L162: 524 | M162: 1843 | N162: 529 | O162: 1844 | P162: 529 | Q162: 1838 | R162: 522 | S162: 1831 | T162: 539 | U162: 1850 | V162: 538 | W162: 1845 | X162: 526 | Y162: 1841 | Z162: 534 | AA162: 1855 | AB162: 531 | AC162: 1857 | AE162: =HLOOKUP(Calc!$Y$8,look1,Sunrise_set!A162+2) -> 531 | AF162: =HLOOKUP(Calc!$Z$8,look1,Sunrise_set!A162+2) -> 1857
A163: 161 | B163: 520 | C163: 1828 | D163: 527 | E163: 1836 | F163: 525 | G163: 1831 | H163: 536 | I163: 1846 | J163: 530 | K163: 1838 | L163: 526 | M163: 1840 | N163: 531 | O163: 1841 | P163: 530 | Q163: 1835 | R163: 524 | S163: 1828 | T163: 541 | U163: 1848 | V163: 539 | W163: 1843 | X163: 528 | Y163: 1839 | Z163: 536 | AA163: 1852 | AB163: 533 | AC163: 1854 | AE163: =HLOOKUP(Calc!$Y$8,look1,Sunrise_set!A163+2) -> 533 | AF163: =HLOOKUP(Calc!$Z$8,look1,Sunrise_set!A163+2) -> 1854
A164: 162 | B164: 522 | C164: 1825 | D164: 529 | E164: 1834 | F164: 526 | G164: 1828 | H164: 538 | I164: 1843 | J164: 532 | K164: 1836 | L164: 528 | M164: 1838 | N164: 533 | O164: 1839 | P164: 532 | Q164: 1833 | R164: 525 | S164: 1826 | T164: 543 | U164: 1845 | V164: 541 | W164: 1841 | X164: 529 | Y164: 1836 | Z164: 538 | AA164: 1849 | AB164: 535 | AC164: 1852 | AE164: =HLOOKUP(Calc!$Y$8,look1,Sunrise_set!A164+2) -> 535 | AF164: =HLOOKUP(Calc!$Z$8,look1,Sunrise_set!A164+2) -> 1852
A165: 163 | B165: 524 | C165: 1823 | D165: 531 | E165: 1831 | F165: 528 | G165: 1826 | H165: 539 | I165: 1841 | J165: 534 | K165: 1834 | L165: 530 | M165: 1835 | N165: 534 | O165: 1836 | P165: 534 | Q165: 1831 | R165: 527 | S165: 1824 | T165: 544 | U165: 1843 | V165: 542 | W165: 1839 | X165: 531 | Y165: 1834 | Z165: 539 | AA165: 1847 | AB165: 537 | AC165: 1849 | AE165: =HLOOKUP(Calc!$Y$8,look1,Sunrise_set!A165+2) -> 537 | AF165: =HLOOKUP(Calc!$Z$8,look1,Sunrise_set!A165+2) -> 1849
A166: 164 | B166: 525 | C166: 1821 | D166: 532 | E166: 1829 | F166: 530 | G166: 1824 | H166: 541 | I166: 1839 | J166: 535 | K166: 1831 | L166: 532 | M166: 1833 | N166: 536 | O166: 1834 | P166: 535 | Q166: 1829 | R166: 528 | S166: 1822 | T166: 546 | U166: 1841 | V166: 544 | W166: 1836 | X166: 533 | Y166: 1831 | Z166: 541 | AA166: 1844 | AB166: 540 | AC166: 1846 | AE166: =HLOOKUP(Calc!$Y$8,look1,Sunrise_set!A166+2) -> 540 | AF166: =HLOOKUP(Calc!$Z$8,look1,Sunrise_set!A166+2) -> 1846
A167: 165 | B167: 527 | C167: 1818 | D167: 534 | E167: 1827 | F167: 531 | G167: 1821 | H167: 543 | I167: 1836 | J167: 537 | K167: 1829 | L167: 534 | M167: 1830 | N167: 538 | O167: 1831 | P167: 537 | Q167: 1826 | R167: 530 | S167: 1819 | T167: 548 | U167: 1838 | V167: 545 | W167: 1834 | X167: 535 | Y167: 1829 | Z167: 543 | AA167: 1842 | AB167: 542 | AC167: 1843 | AE167: =HLOOKUP(Calc!$Y$8,look1,Sunrise_set!A167+2) -> 542 | AF167: =HLOOKUP(Calc!$Z$8,look1,Sunrise_set!A167+2) -> 1843
A168: 166 | B168: 529 | C168: 1816 | D168: 536 | E168: 1824 | F168: 533 | G168: 1819 | H168: 545 | I168: 1834 | J168: 539 | K168: 1826 | L168: 536 | M168: 1827 | N168: 540 | O168: 1829 | P168: 538 | Q168: 1824 | R168: 531 | S168: 1817 | T168: 549 | U168: 1836 | V168: 547 | W168: 1832 | X168: 537 | Y168: 1827 | Z168: 545 | AA168: 1839 | AB168: 544 | AC168: 1840 | AE168: =HLOOKUP(Calc!$Y$8,look1,Sunrise_set!A168+2) -> 544 | AF168: =HLOOKUP(Calc!$Z$8,look1,Sunrise_set!A168+2) -> 1840
A169: 167 | B169: 530 | C169: 1814 | D169: 537 | E169: 1822 | F169: 534 | G169: 1817 | H169: 546 | I169: 1831 | J169: 540 | K169: 1824 | L169: 537 | M169: 1825 | N169: 541 | O169: 1826 | P169: 540 | Q169: 1822 | R169: 533 | S169: 1815 | T169: 551 | U169: 1834 | V169: 548 | W169: 1830 | X169: 538 | Y169: 1824 | Z169: 547 | AA169: 1836 | AB169: 546 | AC169: 1838 | AE169: =HLOOKUP(Calc!$Y$8,look1,Sunrise_set!A169+2) -> 546 | AF169: =HLOOKUP(Calc!$Z$8,look1,Sunrise_set!A169+2) -> 1838
A170: 168 | B170: 532 | C170: 1811 | D170: 539 | E170: 1819 | F170: 536 | G170: 1814 | H170: 548 | I170: 1829 | J170: 542 | K170: 1822 | L170: 539 | M170: 1822 | N170: 543 | O170: 1824 | P170: 541 | Q170: 1819 | R170: 534 | S170: 1812 | T170: 552 | U170: 1831 | V170: 550 | W170: 1827 | X170: 540 | Y170: 1822 | Z170: 549 | AA170: 1834 | AB170: 548 | AC170: 1835 | AE170: =HLOOKUP(Calc!$Y$8,look1,Sunrise_set!A170+2) -> 548 | AF170: =HLOOKUP(Calc!$Z$8,look1,Sunrise_set!A170+2) -> 1835
A171: 169 | B171: 534 | C171: 1809 | D171: 541 | E171: 1817 | F171: 538 | G171: 1812 | H171: 550 | I171: 1826 | J171: 544 | K171: 1819 | L171: 541 | M171: 1820 | N171: 545 | O171: 1822 | P171: 543 | Q171: 1817 | R171: 536 | S171: 1810 | T171: 554 | U171: 1829 | V171: 551 | W171: 1825 | X171: 542 | Y171: 1819 | Z171: 551 | AA171: 1831 | AB171: 550 | AC171: 1832 | AE171: =HLOOKUP(Calc!$Y$8,look1,Sunrise_set!A171+2) -> 550 | AF171: =HLOOKUP(Calc!$Z$8,look1,Sunrise_set!A171+2) -> 1832
A172: 170 | B172: 535 | C172: 1807 | D172: 542 | E172: 1815 | F172: 539 | G172: 1810 | H172: 552 | I172: 1824 | J172: 545 | K172: 1817 | L172: 543 | M172: 1817 | N172: 546 | O172: 1819 | P172: 545 | Q172: 1815 | R172: 538 | S172: 1808 | T172: 556 | U172: 1827 | V172: 553 | W172: 1823 | X172: 544 | Y172: 1817 | Z172: 553 | AA172: 1828 | AB172: 552 | AC172: 1829 | AE172: =HLOOKUP(Calc!$Y$8,look1,Sunrise_set!A172+2) -> 552 | AF172: =HLOOKUP(Calc!$Z$8,look1,Sunrise_set!A172+2) -> 1829
A173: 171 | B173: 537 | C173: 1804 | D173: 544 | E173: 1812 | F173: 541 | G173: 1808 | H173: 553 | I173: 1821 | J173: 547 | K173: 1815 | L173: 545 | M173: 1815 | N173: 548 | O173: 1817 | P173: 546 | Q173: 1813 | R173: 539 | S173: 1806 | T173: 557 | U173: 1824 | V173: 555 | W173: 1821 | X173: 545 | Y173: 1814 | Z173: 555 | AA173: 1826 | AB173: 554 | AC173: 1826 | AE173: =HLOOKUP(Calc!$Y$8,look1,Sunrise_set!A173+2) -> 554 | AF173: =HLOOKUP(Calc!$Z$8,look1,Sunrise_set!A173+2) -> 1826
A174: 172 | B174: 539 | C174: 1802 | D174: 546 | E174: 1810 | F174: 542 | G174: 1805 | H174: 555 | I174: 1819 | J174: 549 | K174: 1812 | L174: 547 | M174: 1812 | N174: 550 | O174: 1814 | P174: 548 | Q174: 1810 | R174: 541 | S174: 1803 | T174: 559 | U174: 1822 | V174: 556 | W174: 1818 | X174: 547 | Y174: 1812 | Z174: 557 | AA174: 1823 | AB174: 556 | AC174: 1824 | AE174: =HLOOKUP(Calc!$Y$8,look1,Sunrise_set!A174+2) -> 556 | AF174: =HLOOKUP(Calc!$Z$8,look1,Sunrise_set!A174+2) -> 1824
A175: 173 | B175: 540 | C175: 1800 | D175: 548 | E175: 1807 | F175: 544 | G175: 1803 | H175: 557 | I175: 1817 | J175: 550 | K175: 1810 | L175: 549 | M175: 1809 | N175: 552 | O175: 1812 | P175: 549 | Q175: 1808 | R175: 542 | S175: 1801 | T175: 600 | U175: 1820 | V175: 558 | W175: 1816 | X175: 549 | Y175: 1809 | Z175: 559 | AA175: 1820 | AB175: 558 | AC175: 1821 | AE175: =HLOOKUP(Calc!$Y$8,look1,Sunrise_set!A175+2) -> 558 | AF175: =HLOOKUP(Calc!$Z$8,look1,Sunrise_set!A175+2) -> 1821
A176: 174 | B176: 542 | C176: 1757 | D176: 549 | E176: 1805 | F176: 546 | G176: 1801 | H176: 558 | I176: 1814 | J176: 552 | K176: 1807 | L176: 550 | M176: 1807 | N176: 553 | O176: 1809 | P176: 551 | Q176: 1806 | R176: 544 | S176: 1759 | T176: 602 | U176: 1817 | V176: 559 | W176: 1814 | X176: 551 | Y176: 1807 | Z176: 601 | AA176: 1818 | AB176: 600 | AC176: 1818 | AE176: =HLOOKUP(Calc!$Y$8,look1,Sunrise_set!A176+2) -> 600 | AF176: =HLOOKUP(Calc!$Z$8,look1,Sunrise_set!A176+2) -> 1818
A177: 175 | B177: 544 | C177: 1755 | D177: 551 | E177: 1802 | F177: 547 | G177: 1758 | H177: 600 | I177: 1812 | J177: 554 | K177: 1805 | L177: 552 | M177: 1804 | N177: 555 | O177: 1807 | P177: 552 | Q177: 1803 | R177: 545 | S177: 1757 | T177: 604 | U177: 1815 | V177: 601 | W177: 1812 | X177: 552 | Y177: 1804 | Z177: 603 | AA177: 1815 | AB177: 602 | AC177: 1815 | AE177: =HLOOKUP(Calc!$Y$8,look1,Sunrise_set!A177+2) -> 602 | AF177: =HLOOKUP(Calc!$Z$8,look1,Sunrise_set!A177+2) -> 1815
A178: 176 | B178: 545 | C178: 1752 | D178: 553 | E178: 1800 | F178: 549 | G178: 1756 | H178: 602 | I178: 1809 | J178: 555 | K178: 1803 | L178: 554 | M178: 1802 | N178: 557 | O178: 1804 | P178: 554 | Q178: 1801 | R178: 547 | S178: 1754 | T178: 605 | U178: 1813 | V178: 602 | W178: 1809 | X178: 554 | Y178: 1802 | Z178: 605 | AA178: 1812 | AB178: 604 | AC178: 1812 | AE178: =HLOOKUP(Calc!$Y$8,look1,Sunrise_set!A178+2) -> 604 | AF178: =HLOOKUP(Calc!$Z$8,look1,Sunrise_set!A178+2) -> 1812
A179: 177 | B179: 547 | C179: 1750 | D179: 554 | E179: 1758 | F179: 550 | G179: 1754 | H179: 604 | I179: 1807 | J179: 557 | K179: 1800 | L179: 556 | M179: 1759 | N179: 559 | O179: 1802 | P179: 556 | Q179: 1759 | R179: 549 | S179: 1752 | T179: 607 | U179: 1810 | V179: 604 | W179: 1807 | X179: 556 | Y179: 1759 | Z179: 607 | AA179: 1810 | AB179: 607 | AC179: 1810 | AE179: =HLOOKUP(Calc!$Y$8,look1,Sunrise_set!A179+2) -> 607 | AF179: =HLOOKUP(Calc!$Z$8,look1,Sunrise_set!A179+2) -> 1810
A180: 178 | B180: 549 | C180: 1748 | D180: 556 | E180: 1755 | F180: 552 | G180: 1751 | H180: 605 | I180: 1804 | J180: 559 | K180: 1758 | L180: 558 | M180: 1757 | N180: 600 | O180: 1800 | P180: 557 | Q180: 1757 | R180: 550 | S180: 1750 | T180: 609 | U180: 1808 | V180: 605 | W180: 1805 | X180: 558 | Y180: 1757 | Z180: 609 | AA180: 1807 | AB180: 609 | AC180: 1807 | AE180: =HLOOKUP(Calc!$Y$8,look1,Sunrise_set!A180+2) -> 609 | AF180: =HLOOKUP(Calc!$Z$8,look1,Sunrise_set!A180+2) -> 1807
A181: 179 | B181: 550 | C181: 1745 | D181: 558 | E181: 1753 | F181: 554 | G181: 1749 | H181: 607 | I181: 1802 | J181: 600 | K181: 1756 | L181: 600 | M181: 1754 | N181: 602 | O181: 1757 | P181: 559 | Q181: 1754 | R181: 552 | S181: 1747 | T181: 610 | U181: 1806 | V181: 607 | W181: 1803 | X181: 600 | Y181: 1754 | Z181: 611 | AA181: 1804 | AB181: 611 | AC181: 1804 | AE181: =HLOOKUP(Calc!$Y$8,look1,Sunrise_set!A181+2) -> 611 | AF181: =HLOOKUP(Calc!$Z$8,look1,Sunrise_set!A181+2) -> 1804
A182: 180 | B182: 552 | C182: 1743 | D182: 600 | E182: 1750 | F182: 555 | G182: 1747 | H182: 609 | I182: 1800 | J182: 602 | K182: 1753 | L182: 602 | M182: 1752 | N182: 604 | O182: 1755 | P182: 600 | Q182: 1752 | R182: 553 | S182: 1745 | T182: 612 | U182: 1803 | V182: 609 | W182: 1800 | X182: 601 | Y182: 1752 | Z182: 612 | AA182: 1802 | AB182: 613 | AC182: 1801 | AE182: =HLOOKUP(Calc!$Y$8,look1,Sunrise_set!A182+2) -> 613 | AF182: =HLOOKUP(Calc!$Z$8,look1,Sunrise_set!A182+2) -> 1801
A183: 181 | B183: 554 | C183: 1741 | D183: 601 | E183: 1748 | F183: 557 | G183: 1745 | H183: 611 | I183: 1757 | J183: 604 | K183: 1751 | L183: 604 | M183: 1749 | N183: 606 | O183: 1752 | P183: 602 | Q183: 1750 | R183: 555 | S183: 1743 | T183: 614 | U183: 1801 | V183: 610 | W183: 1758 | X183: 603 | Y183: 1749 | Z183: 614 | AA183: 1759 | AB183: 615 | AC183: 1759 | AE183: =HLOOKUP(Calc!$Y$8,look1,Sunrise_set!A183+2) -> 615 | AF183: =HLOOKUP(Calc!$Z$8,look1,Sunrise_set!A183+2) -> 1759
A184: 182 | B184: 555 | C184: 1738 | D184: 603 | E184: 1746 | F184: 559 | G184: 1742 | H184: 612 | I184: 1755 | J184: 606 | K184: 1749 | L184: 605 | M184: 1746 | N184: 608 | O184: 1750 | P184: 604 | Q184: 1748 | R184: 557 | S184: 1741 | T184: 615 | U184: 1759 | V184: 612 | W184: 1756 | X184: 605 | Y184: 1747 | Z184: 616 | AA184: 1757 | AB184: 617 | AC184: 1756 | AE184: =HLOOKUP(Calc!$Y$8,look1,Sunrise_set!A184+2) -> 617 | AF184: =HLOOKUP(Calc!$Z$8,look1,Sunrise_set!A184+2) -> 1756
A185: 183 | B185: 557 | C185: 1736 | D185: 605 | E185: 1743 | F185: 600 | G185: 1740 | H185: 614 | I185: 1752 | J185: 607 | K185: 1746 | L185: 607 | M185: 1744 | N185: 609 | O185: 1747 | P185: 605 | Q185: 1745 | R185: 558 | S185: 1738 | T185: 617 | U185: 1756 | V185: 613 | W185: 1754 | X185: 607 | Y185: 1745 | Z185: 618 | AA185: 1754 | AB185: 619 | AC185: 1753 | AE185: =HLOOKUP(Calc!$Y$8,look1,Sunrise_set!A185+2) -> 619 | AF185: =HLOOKUP(Calc!$Z$8,look1,Sunrise_set!A185+2) -> 1753
A186: 184 | B186: 559 | C186: 1734 | D186: 607 | E186: 1741 | F186: 602 | G186: 1738 | H186: 616 | I186: 1750 | J186: 609 | K186: 1744 | L186: 609 | M186: 1741 | N186: 611 | O186: 1745 | P186: 607 | Q186: 1743 | R186: 600 | S186: 1736 | T186: 619 | U186: 1754 | V186: 615 | W186: 1751 | X186: 609 | Y186: 1742 | Z186: 620 | AA186: 1751 | AB186: 621 | AC186: 1750 | AE186: =HLOOKUP(Calc!$Y$8,look1,Sunrise_set!A186+2) -> 621 | AF186: =HLOOKUP(Calc!$Z$8,look1,Sunrise_set!A186+2) -> 1750
A187: 185 | B187: 600 | C187: 1731 | D187: 608 | E187: 1739 | F187: 603 | G187: 1735 | H187: 618 | I187: 1748 | J187: 611 | K187: 1741 | L187: 611 | M187: 1739 | N187: 613 | O187: 1743 | P187: 608 | Q187: 1741 | R187: 601 | S187: 1734 | T187: 620 | U187: 1752 | V187: 616 | W187: 1749 | X187: 610 | Y187: 1740 | Z187: 622 | AA187: 1749 | AB187: 623 | AC187: 1748 | AE187: =HLOOKUP(Calc!$Y$8,look1,Sunrise_set!A187+2) -> 623 | AF187: =HLOOKUP(Calc!$Z$8,look1,Sunrise_set!A187+2) -> 1748
A188: 186 | B188: 602 | C188: 1729 | D188: 610 | E188: 1736 | F188: 605 | G188: 1733 | H188: 619 | I188: 1745 | J188: 612 | K188: 1739 | L188: 613 | M188: 1736 | N188: 615 | O188: 1740 | P188: 610 | Q188: 1739 | R188: 603 | S188: 1732 | T188: 622 | U188: 1750 | V188: 618 | W188: 1747 | X188: 612 | Y188: 1737 | Z188: 624 | AA188: 1746 | AB188: 626 | AC188: 1745 | AE188: =HLOOKUP(Calc!$Y$8,look1,Sunrise_set!A188+2) -> 626 | AF188: =HLOOKUP(Calc!$Z$8,look1,Sunrise_set!A188+2) -> 1745
A189: 187 | B189: 604 | C189: 1727 | D189: 612 | E189: 1734 | F189: 607 | G189: 1731 | H189: 621 | I189: 1743 | J189: 614 | K189: 1737 | L189: 615 | M189: 1734 | N189: 616 | O189: 1738 | P189: 612 | Q189: 1736 | R189: 605 | S189: 1729 | T189: 624 | U189: 1747 | V189: 620 | W189: 1745 | X189: 614 | Y189: 1735 | Z189: 626 | AA189: 1744 | AB189: 628 | AC189: 1742 | AE189: =HLOOKUP(Calc!$Y$8,look1,Sunrise_set!A189+2) -> 628 | AF189: =HLOOKUP(Calc!$Z$8,look1,Sunrise_set!A189+2) -> 1742
A190: 188 | B190: 605 | C190: 1724 | D190: 614 | E190: 1731 | F190: 608 | G190: 1729 | H190: 623 | I190: 1740 | J190: 616 | K190: 1734 | L190: 617 | M190: 1731 | N190: 618 | O190: 1735 | P190: 613 | Q190: 1734 | R190: 606 | S190: 1727 | T190: 625 | U190: 1745 | V190: 621 | W190: 1743 | X190: 616 | Y190: 1732 | Z190: 628 | AA190: 1741 | AB190: 630 | AC190: 1739 | AE190: =HLOOKUP(Calc!$Y$8,look1,Sunrise_set!A190+2) -> 630 | AF190: =HLOOKUP(Calc!$Z$8,look1,Sunrise_set!A190+2) -> 1739
A191: 189 | B191: 607 | C191: 1722 | D191: 615 | E191: 1729 | F191: 610 | G191: 1726 | H191: 625 | I191: 1738 | J191: 618 | K191: 1732 | L191: 619 | M191: 1729 | N191: 620 | O191: 1733 | P191: 615 | Q191: 1732 | R191: 608 | S191: 1725 | T191: 627 | U191: 1743 | V191: 623 | W191: 1740 | X191: 618 | Y191: 1730 | Z191: 630 | AA191: 1738 | AB191: 632 | AC191: 1737 | AE191: =HLOOKUP(Calc!$Y$8,look1,Sunrise_set!A191+2) -> 632 | AF191: =HLOOKUP(Calc!$Z$8,look1,Sunrise_set!A191+2) -> 1737
A192: 190 | B192: 609 | C192: 1720 | D192: 617 | E192: 1727 | F192: 612 | G192: 1724 | H192: 627 | I192: 1736 | J192: 619 | K192: 1730 | L192: 621 | M192: 1726 | N192: 622 | O192: 1731 | P192: 617 | Q192: 1730 | R192: 610 | S192: 1723 | T192: 629 | U192: 1740 | V192: 624 | W192: 1738 | X192: 620 | Y192: 1728 | Z192: 632 | AA192: 1736 | AB192: 634 | AC192: 1734 | AE192: =HLOOKUP(Calc!$Y$8,look1,Sunrise_set!A192+2) -> 634 | AF192: =HLOOKUP(Calc!$Z$8,look1,Sunrise_set!A192+2) -> 1734
A193: 191 | B193: 611 | C193: 1718 | D193: 619 | E193: 1724 | F193: 613 | G193: 1722 | H193: 628 | I193: 1733 | J193: 621 | K193: 1728 | L193: 623 | M193: 1724 | N193: 624 | O193: 1728 | P193: 618 | Q193: 1727 | R193: 611 | S193: 1721 | T193: 630 | U193: 1738 | V193: 626 | W193: 1736 | X193: 621 | Y193: 1725 | Z193: 634 | AA193: 1733 | AB193: 636 | AC193: 1731 | AE193: =HLOOKUP(Calc!$Y$8,look1,Sunrise_set!A193+2) -> 636 | AF193: =HLOOKUP(Calc!$Z$8,look1,Sunrise_set!A193+2) -> 1731
A194: 192 | B194: 612 | C194: 1715 | D194: 621 | E194: 1722 | F194: 615 | G194: 1720 | H194: 630 | I194: 1731 | J194: 623 | K194: 1725 | L194: 625 | M194: 1721 | N194: 626 | O194: 1726 | P194: 620 | Q194: 1725 | R194: 613 | S194: 1718 | T194: 632 | U194: 1736 | V194: 628 | W194: 1734 | X194: 623 | Y194: 1723 | Z194: 636 | AA194: 1731 | AB194: 639 | AC194: 1729 | AE194: =HLOOKUP(Calc!$Y$8,look1,Sunrise_set!A194+2) -> 639 | AF194: =HLOOKUP(Calc!$Z$8,look1,Sunrise_set!A194+2) -> 1729
A195: 193 | B195: 614 | C195: 1713 | D195: 622 | E195: 1720 | F195: 617 | G195: 1718 | H195: 632 | I195: 1729 | J195: 624 | K195: 1723 | L195: 627 | M195: 1719 | N195: 627 | O195: 1723 | P195: 622 | Q195: 1723 | R195: 614 | S195: 1716 | T195: 634 | U195: 1734 | V195: 629 | W195: 1732 | X195: 625 | Y195: 1720 | Z195: 638 | AA195: 1728 | AB195: 641 | AC195: 1726 | AE195: =HLOOKUP(Calc!$Y$8,look1,Sunrise_set!A195+2) -> 641 | AF195: =HLOOKUP(Calc!$Z$8,look1,Sunrise_set!A195+2) -> 1726
A196: 194 | B196: 616 | C196: 1711 | D196: 624 | E196: 1717 | F196: 618 | G196: 1715 | H196: 634 | I196: 1726 | J196: 626 | K196: 1721 | L196: 629 | M196: 1716 | N196: 629 | O196: 1721 | P196: 623 | Q196: 1721 | R196: 616 | S196: 1714 | T196: 635 | U196: 1731 | V196: 631 | W196: 1730 | X196: 627 | Y196: 1718 | Z196: 640 | AA196: 1726 | AB196: 643 | AC196: 1723 | AE196: =HLOOKUP(Calc!$Y$8,look1,Sunrise_set!A196+2) -> 643 | AF196: =HLOOKUP(Calc!$Z$8,look1,Sunrise_set!A196+2) -> 1723
A197: 195 | B197: 617 | C197: 1709 | D197: 626 | E197: 1715 | F197: 620 | G197: 1713 | H197: 636 | I197: 1724 | J197: 628 | K197: 1718 | L197: 630 | M197: 1714 | N197: 631 | O197: 1719 | P197: 625 | Q197: 1719 | R197: 618 | S197: 1712 | T197: 637 | U197: 1729 | V197: 633 | W197: 1728 | X197: 629 | Y197: 1716 | Z197: 642 | AA197: 1723 | AB197: 645 | AC197: 1721 | AE197: =HLOOKUP(Calc!$Y$8,look1,Sunrise_set!A197+2) -> 645 | AF197: =HLOOKUP(Calc!$Z$8,look1,Sunrise_set!A197+2) -> 1721
A198: 196 | B198: 619 | C198: 1706 | D198: 628 | E198: 1713 | F198: 622 | G198: 1711 | H198: 638 | I198: 1722 | J198: 630 | K198: 1716 | L198: 632 | M198: 1711 | N198: 633 | O198: 1716 | P198: 627 | Q198: 1717 | R198: 619 | S198: 1710 | T198: 639 | U198: 1727 | V198: 634 | W198: 1725 | X198: 631 | Y198: 1713 | Z198: 645 | AA198: 1721 | AB198: 647 | AC198: 1718 | AE198: =HLOOKUP(Calc!$Y$8,look1,Sunrise_set!A198+2) -> 647 | AF198: =HLOOKUP(Calc!$Z$8,look1,Sunrise_set!A198+2) -> 1718
A199: 197 | B199: 621 | C199: 1704 | D199: 630 | E199: 1711 | F199: 623 | G199: 1709 | H199: 639 | I199: 1719 | J199: 632 | K199: 1714 | L199: 634 | M199: 1709 | N199: 635 | O199: 1714 | P199: 628 | Q199: 1714 | R199: 621 | S199: 1708 | T199: 641 | U199: 1725 | V199: 636 | W199: 1723 | X199: 633 | Y199: 1711 | Z199: 647 | AA199: 1718 | AB199: 649 | AC199: 1715 | AE199: =HLOOKUP(Calc!$Y$8,look1,Sunrise_set!A199+2) -> 649 | AF199: =HLOOKUP(Calc!$Z$8,look1,Sunrise_set!A199+2) -> 1715
A200: 198 | B200: 623 | C200: 1702 | D200: 631 | E200: 1708 | F200: 625 | G200: 1707 | H200: 641 | I200: 1717 | J200: 633 | K200: 1712 | L200: 636 | M200: 1707 | N200: 637 | O200: 1712 | P200: 630 | Q200: 1712 | R200: 623 | S200: 1706 | T200: 642 | U200: 1723 | V200: 637 | W200: 1721 | X200: 634 | Y200: 1709 | Z200: 649 | AA200: 1716 | AB200: 652 | AC200: 1713 | AE200: =HLOOKUP(Calc!$Y$8,look1,Sunrise_set!A200+2) -> 652 | AF200: =HLOOKUP(Calc!$Z$8,look1,Sunrise_set!A200+2) -> 1713
... 168 more rows

Sheet Switch Regime Entry
C1: GSP Group Name
A2: Regime | B2: Period | C2: Eastern | D2: East Midlands | E2: London | F2: Merseyside & North Wales | G2: Midlands | H2: Northern | I2: North Western | J2: Southern | K2: South Eastern | L2: South Wales | M2: South Western | N2: Yorkshire | O2: South Scotland | P2: North Scotland | Q2: After Sunset | R2: Before Sunrise | S2: Lux On | T2: Lux Off | U2: Intermediate Off | V2: Intermediate On | W2: Switch On | X2: Switch Off | Y2: Switch Class | Z2: Category | AA2: Status | AB2: Default Switch Regime | AC2: GMT/CLK | AD2: Effective From Date | AE2: Effective To Date
A3: F19 | B3: Variable Power Switch Regime - (GMT) | C3: 2120 | D3: 2115 | E3: 2117 | F3: 2111 | G3: 2115 | H3: 2115 | I3: 2113 | J3: 2115 | K3: 2118 | L3: 2110 | M3: 2111 | N3: 2115 | O3: 2110 | P3: 2110 | S3: 20 | T3: 20 | Y3: P | Z3: B | AA3: P | AC3: GMT | AD3: 2018-12-19

Sheet Dropdowns (hidden)
A1: CLK | B1: 0 | C1: 0 | D1: 0
A2: GMT | B2: 30 | C2: 1 | D2: 5
C3: 2 | D3: 10
C4: 3 | D4: 15
C5: 4 | D5: 20
C6: 5 | D6: 25
C7: 6 | D7: 30
C8: 7 | D8: 35
C9: 8 | D9: 40
C10: 9 | D10: 45
C11: 10 | D11: 50
C12: 11 | D12: 55
C13: 12 | D13: 60
C14: 13 | D14: 65
C15: 14 | D15: 70
C16: 15 | D16: 75
C17: 16 | D17: 80
C18: 17 | D18: 85
C19: 18 | D19: 90
C20: 19 | D20: 95
C21: 20 | D21: 100
C22: 21
C23: 22
C24: 23
C25: 24
